Workbook

Sheet Inicio
J3: "… la hoja de cálculo es un instrumento extraordinariamente potente, de fácil uso y versátil pero puede contener graves errores ocultos derivados de fallos cometidos en el diseño del modelo “……. Consejo: Audite continuamente sus trabajos…
J9: Consejos de navegacion a tráves de los vínculos del libro
J10: Volver al vínculo anterior | L10: ALT + ← | M10: ALT+FLECHA IZQUIERDA
J11: Volver al vínculo siguiente | L11: ALT + → | M11: ALT+FLECHA DERECHA
A19: Indice General
B20: Diario de Contabilidad. Registro Contable
B21: Mayores
B22: Pérdidas y Ganacias
B23: Balance. Estado Patrimonial

Sheet PGC (hidden)
A1: PGC Básico - 2008 | U1: Formula Básica 1 | V1: SI(ESERROR(BUSCARV([@Cta];PGCtotal[[Nivel 4]:[Subcuenta]];5;FALSO));"";BUSCARV([@Cta];PGCtotal[[Nivel 4]:[Subcuenta]];5;FALSO))
U2: Nº As | V2: Importe | W2: Cta | X2: Descripción | Y2: D/H | Z2: Fecha | AA2: Observaciones
A3: Nivel 1 | B3: Nivel 2 | C3: Nivel 3 | D3: Nivel 4 | E3: Grupo | F3: Subgrupo | G3: Cuenta | H3: Subcuenta | O3: Grupos | P3: Subgrupos | Q3: Cuentas | R3: Subcuentas | X3: =IF(ISERROR(VLOOKUP(Tabla_Asiento_24[[#This Row],[Cta]],PGCtotal[[Nivel 4]:[Subcuenta]],5,FALSE)),"",VLOOKUP(Tabla_Asiento_24[[#This Row],[Cta]],PGCtotal[[Nivel 4]:[Subcuenta]],5,FALSE)) -> 
A4: 1 | B4: 10 | C4: 100 | D4: 1000 | E4: Financiación Básica | F4: Capital | G4: Capital social | H4: Capital social | O4: 1 | P4: 10 | Q4: 100 | R4: 1000
A5: 1 | B5: 10 | C5: 101 | D5: 1010 | E5: Financiación Básica | F5: Capital | G5: Fondo social | H5: Fondo social | O5: 2 | P5: 11 | Q5: 101 | R5: 1010 | U5: Formato
A6: 1 | B6: 10 | C6: 102 | D6: 1020 | E6: Financiación Básica | F6: Capital | G6: Capital | H6: Capital | O6: 3 | P6: 12 | Q6: 102 | R6: 1020 | U6: 1 | V6: 125 | W6: 100 | X6: =IF(ISERROR(VLOOKUP(Tabla_Asiento_2[[#This Row],[Cta]],PGCtotal[[Nivel 3]:[Subcuenta]],5,FALSE)),"",VLOOKUP(Tabla_Asiento_2[[#This Row],[Cta]],PGCtotal[[Nivel 3]:[Subcuenta]],5,FALSE)) ->  | Y6: D | Z6: 2012-01-01
A7: 1 | B7: 10 | C7: 103 | D7: 1030 | E7: Financiación Básica | F7: Capital | G7: Socios por desembolsos no exigidos... | H7: Socios por desembolsos no exigidos, capital social | O7: 4 | P7: 13 | Q7: 103 | R7: 1030
A8: 1 | B8: 10 | C8: 103 | D8: 1034 | E8: Financiación Básica | F8: Capital | G8: Socios por desembolsos no exigidos, capital pendiente de inscripción | H8: Socios por desembolsos no exigidos, capital pendiente de inscripción | O8: 5 | P8: 14 | Q8: 104 | R8: 1034
A9: 1 | B9: 10 | C9: 104 | D9: 1040 | E9: Financiación Básica | F9: Capital | G9: Socios por aportaciones no dinerarias pendientes... | H9: Socios por aportaciones no dinerarias pendientes, capital social | O9: 6 | P9: 15 | Q9: 108 | R9: 1040
A10: 1 | B10: 10 | C10: 104 | D10: 1044 | E10: Financiación Básica | F10: Capital | G10: Socios por aportaciones no dinerarias pendientes, capital pendiente de inscripción. | H10: Socios por aportaciones no dinerarias pendientes, capital pendiente de inscripción. | O10: 7 | P10: 16 | Q10: 109 | R10: 1044
A11: 1 | B11: 10 | C11: 108 | D11: 1080 | E11: Financiación Básica | F11: Capital | G11: Acciones o participaciones propias en situaciones especiales | H11: Acciones o participaciones propias en situaciones especiales | O11: 8 | P11: 17 | Q11: 110 | R11: 1080
A12: 1 | B12: 10 | C12: 109 | D12: 1090 | E12: Financiación Básica | F12: Capital | G12: Acciones o participaciones propias para reducción de capital | H12: Acciones o participaciones propias para reducción de capital | O12: 9 | P12: 18 | Q12: 111 | R12: 1090
A13: 1 | B13: 11 | C13: 110 | D13: 1100 | E13: Financiación Básica | F13: Reservas | G13: Prima de emisión o asunción | H13: Prima de emisión o asunción | P13: 19 | Q13: 112 | R13: 1100
A14: 1 | B14: 11 | C14: 111 | D14: 1110 | E14: Financiación Básica | F14: Reservas | G14: Patrimonio neto por emisión de instrumentos financieros compuestos | H14: Patrimonio neto por emisión de instrumentos financieros compuestos | P14: 20 | Q14: 113 | R14: 1110
A15: 1 | B15: 11 | C15: 111 | D15: 1111 | E15: Financiación Básica | F15: Reservas | G15: Resto de instrumentos de patrimonio neto | H15: Resto de instrumentos de patrimonio neto | P15: 21 | Q15: 114 | R15: 1111
A16: 1 | B16: 11 | C16: 112 | D16: 1120 | E16: Financiación Básica | F16: Reservas | G16: Reserva legal | H16: Reserva legal | P16: 22 | Q16: 115 | R16: 1120
A17: 1 | B17: 11 | C17: 113 | D17: 1130 | E17: Financiación Básica | F17: Reservas | G17: Reservas voluntarias | H17: Reservas voluntarias | P17: 23 | Q17: 117 | R17: 1130
A18: 1 | B18: 11 | C18: 114 | D18: 1140 | E18: Financiación Básica | F18: Reservas | G18: Reservas especiales | H18: Reservas para acciones o participaciones de la sociedad dominante | P18: 24 | Q18: 118 | R18: 1140
A19: 1 | B19: 11 | C19: 114 | D19: 1141 | E19: Financiación Básica | F19: Reservas | G19: Reservas estatutarias | H19: Reservas estatutarias | P19: 25 | Q19: 119 | R19: 1141
A20: 1 | B20: 11 | C20: 114 | D20: 1142 | E20: Financiación Básica | F20: Reservas | G20: Reserva por capital amortizado | H20: Reserva por capital amortizado | P20: 26 | Q20: 120 | R20: 1142
A21: 1 | B21: 11 | C21: 114 | D21: 1143 | E21: Financiación Básica | F21: Reservas | G21: Reserva por fondo de comercio | H21: Reserva por fondo de comercio | P21: 27 | Q21: 121 | R21: 1143
A22: 1 | B22: 11 | C22: 114 | D22: 1144 | E22: Financiación Básica | F22: Reservas | G22: Reservas por acciones propias aceptadas en garantía | H22: Reservas por acciones propias aceptadas en garantía | P22: 28 | Q22: 129 | R22: 1144
A23: 1 | B23: 11 | C23: 115 | D23: 1150 | E23: Financiación Básica | F23: Reservas | G23: Reservas por pérdidas y ganancias actuariales y otros ajustes | H23: Reservas por pérdidas y ganancias actuariales y otros ajustes | P23: 29 | Q23: 130 | R23: 1150 | W23: f
A24: 1 | B24: 11 | C24: 117 | D24: 1170 | E24: Financiación Básica | F24: Reservas | G24: Otras Aportaciones | H24: Otras Aportaciones | P24: 30 | Q24: 131 | R24: 1170
A25: 1 | B25: 11 | C25: 117 | D25: 1171 | E25: Financiación Básica | F25: Reservas | G25: Otras Aportaciones | H25: Otras Aportaciones | P25: 31 | Q25: 132 | R25: 1171
A26: 1 | B26: 11 | C26: 118 | D26: 1180 | E26: Financiación Básica | F26: Reservas | G26: Aportaciones de socios o propietarios | H26: Aportaciones de socios o propietarios | P26: 32 | Q26: 133 | R26: 1180
A27: 1 | B27: 11 | C27: 119 | D27: 1190 | E27: Financiación Básica | F27: Reservas | G27: Diferencias por ajuste del capital a euros | H27: Diferencias por ajuste del capital a euros | P27: 33 | Q27: 134 | R27: 1190
A28: 1 | B28: 12 | C28: 120 | D28: 1200 | E28: Financiación Básica | F28: Resultados pendientes de aplicación | G28: Remanente | H28: Remanente | P28: 34 | Q28: 135 | R28: 1200
A29: 1 | B29: 12 | C29: 121 | D29: 1210 | E29: Financiación Básica | F29: Resultados pendientes de aplicación | G29: Resultados negativos de ejercicios anteriores | H29: Resultados negativos de ejercicios anteriores | P29: 35 | Q29: 136 | R29: 1210
A30: 1 | B30: 12 | C30: 129 | D30: 1290 | E30: Financiación Básica | F30: Resultados pendientes de aplicación | G30: Resultados del ejercicio | H30: Resultados del ejercicio | P30: 36 | Q30: 137 | R30: 1290
A31: 1 | B31: 13 | C31: 130 | D31: 1300 | E31: Financiación Básica | F31: Subvenciones, donaciones y ajustes por cambios de valor | G31: Subvenciones oficiales de capital | H31: Subvenciones oficiales de capital | P31: 39 | Q31: 140 | R31: 1300
A32: 1 | B32: 13 | C32: 131 | D32: 1310 | E32: Financiación Básica | F32: Subvenciones, donaciones y ajustes por cambios de valor | G32: Donaciones y legados de capital | H32: Donaciones y legados de capital | P32: 40 | Q32: 141 | R32: 1310
A33: 1 | B33: 13 | C33: 132 | D33: 1320 | E33: Financiación Básica | F33: Subvenciones, donaciones y ajustes por cambios de valor | G33: Otras subvenciones, donaciones y legados | H33: Otras subvenciones, donaciones y legados | P33: 41 | Q33: 142 | R33: 1320
A34: 1 | B34: 13 | C34: 133 | D34: 1330 | E34: Financiación Básica | F34: Subvenciones, donaciones y ajustes por cambios de valor | G34: Ajustes por valoración en instrumentos financieros | H34: Ajustes por valoración en instrumentos financieros | P34: 43 | Q34: 143 | R34: 1330
A35: 1 | B35: 13 | C35: 134 | D35: 1340 | E35: Financiación Básica | F35: Subvenciones, donaciones y ajustes por cambios de valor | G35: Operaciones de cobertura | H35: Cobertura de flujos de efectivo | P35: 44 | Q35: 145 | R35: 1340
A36: 1 | B36: 13 | C36: 134 | D36: 1341 | E36: Financiación Básica | F36: Subvenciones, donaciones y ajustes por cambios de valor | G36: Cobertura de una inversión neta en un negocio en el extranjero | H36: Cobertura de una inversión neta en un negocio en el extranjero | P36: 46 | Q36: 146 | R36: 1341
A37: 1 | B37: 13 | C37: 135 | D37: 1350 | E37: Financiación Básica | F37: Subvenciones, donaciones y ajustes por cambios de valor | G37: Diferencias de conversión | H37: Diferencias de conversión | P37: 47 | Q37: 147 | R37: 1350
A38: 1 | B38: 13 | C38: 136 | D38: 1360 | E38: Financiación Básica | F38: Subvenciones, donaciones y ajustes por cambios de valor | G38: Ajustes por valoración en activos no corrientes y grupos enajenables de elementos mantenidos para la venta | H38: Ajustes por valoración en activos no corrientes y grupos enajenables de elementos mantenidos para la venta | P38: 48 | Q38: 150 | R38: 1360
A39: 1 | B39: 13 | C39: 137 | D39: 1370 | E39: Financiación Básica | F39: Subvenciones, donaciones y ajustes por cambios de valor | G39: Ingresos fiscales a distribuir en varios ejercicios | H39: Ingresos fiscales por diferencias permanentes a distribuir en varios ejercicios | P39: 49 | Q39: 153 | R39: 1370
A40: 1 | B40: 13 | C40: 137 | D40: 1371 | E40: Financiación Básica | F40: Subvenciones, donaciones y ajustes por cambios de valor | G40: Ingresos fiscales por deducciones y bonificaciones a distribuir en varios ejercicios | H40: Ingresos fiscales por deducciones y bonificaciones a distribuir en varios ejercicios | P40: 50 | Q40: 154 | R40: 1371
A41: 1 | B41: 14 | C41: 140 | D41: 1400 | E41: Financiación Básica | F41: Provisiones | G41: Provisión para retribuciones y otras prestaciones al personal. | H41: Provisión para retribuciones y otras prestaciones al personal. | P41: 51 | Q41: 160 | R41: 1400
A42: 1 | B42: 14 | C42: 141 | D42: 1410 | E42: Financiación Básica | F42: Provisiones | G42: Provisión para impuestos | H42: Provisión para impuestos | P42: 52 | Q42: 161 | R42: 1410
A43: 1 | B43: 14 | C43: 142 | D43: 1420 | E43: Financiación Básica | F43: Provisiones | G43: Provisión para otras responsabilidades | H43: Provisión para otras responsabilidades | P43: 53 | Q43: 162 | R43: 1420
A44: 1 | B44: 14 | C44: 143 | D44: 1430 | E44: Financiación Básica | F44: Provisiones | G44: Provisión por desmantelamiento, retiro o rehabilitación del inmovilizado. | H44: Provisión por desmantelamiento, retiro o rehabilitación del inmovilizado. | P44: 54 | Q44: 163 | R44: 1430
A45: 1 | B45: 14 | C45: 145 | D45: 1450 | E45: Financiación Básica | F45: Provisiones | G45: Provisión para actuaciones medioambientales | H45: Provisión para actuaciones medioambientales | P45: 55 | Q45: 170 | R45: 1450
A46: 1 | B46: 14 | C46: 146 | D46: 1460 | E46: Financiación Básica | F46: Provisiones | G46: Provisión para reestructuraciones | H46: Provisión para reestructuraciones | P46: 56 | Q46: 171 | R46: 1460
A47: 1 | B47: 14 | C47: 147 | D47: 1470 | E47: Financiación Básica | F47: Provisiones | G47: Provisiones por transacciones con pagos basados en instrumentos de patrimonio | H47: Provisiones por transacciones con pagos basados en instrumentos de patrimonio | P47: 57 | Q47: 172 | R47: 1470
A48: 1 | B48: 15 | C48: 150 | D48: 1500 | E48: Financiación Básica | F48: Deudas a largo plazo con características especiales | G48: Acciones o participaciones a largo plazo contabilizadas como pasivo | H48: Acciones o participaciones a largo plazo contabilizadas como pasivo | P48: 58 | Q48: 173 | R48: 1500
A49: 1 | B49: 15 | C49: 153 | D49: 1530 | E49: Financiación Básica | F49: Deudas a largo plazo con características especiales | G49: Desembolsos no exigidos por acciones o participaciones contabilizadas como pasivo. | H49: Desembolsos no exigidos por acciones o participaciones contabilizadas como pasivo. | P49: 59 | Q49: 174 | R49: 1530
A50: 1 | B50: 15 | C50: 153 | D50: 1533 | E50: Financiación Básica | F50: Deudas a largo plazo con características especiales | G50: Desembolsos no exigidos, empresas del grupo | H50: Desembolsos no exigidos, empresas del grupo | P50: 60 | Q50: 175 | R50: 1533
A51: 1 | B51: 15 | C51: 153 | D51: 1534 | E51: Financiación Básica | F51: Deudas a largo plazo con características especiales | G51: Desembolsos no exigidos, empresas asociadas | H51: Desembolsos no exigidos, empresas asociadas | P51: 61 | Q51: 176 | R51: 1534
A52: 1 | B52: 15 | C52: 153 | D52: 1535 | E52: Financiación Básica | F52: Deudas a largo plazo con características especiales | G52: Desembolsos no exigidos, otras partes vinculadas | H52: Desembolsos no exigidos, otras partes vinculadas | P52: 62 | Q52: 177 | R52: 1535
A53: 1 | B53: 15 | C53: 153 | D53: 1536 | E53: Financiación Básica | F53: Deudas a largo plazo con características especiales | G53: Otros desembolsos no exigidos | H53: Otros desembolsos no exigidos | P53: 63 | Q53: 178 | R53: 1536
A54: 1 | B54: 15 | C54: 154 | D54: 1540 | E54: Financiación Básica | F54: Deudas a largo plazo con características especiales | G54: Aportaciones no dinerarias pendientes por acciones o participaciones contabilizadas como pasivo | H54: Aportaciones no dinerarias pendientes por acciones o participaciones contabilizadas como pasivo | P54: 64 | Q54: 179 | R54: 1540
A55: 1 | B55: 15 | C55: 154 | D55: 1543 | E55: Financiación Básica | F55: Deudas a largo plazo con características especiales | G55: Aportaciones no dinerarias pendientes, empresas del grupo | H55: Aportaciones no dinerarias pendientes, empresas del grupo | P55: 65 | Q55: 180 | R55: 1543
A56: 1 | B56: 15 | C56: 154 | D56: 1544 | E56: Financiación Básica | F56: Deudas a largo plazo con características especiales | G56: Aportaciones no dinerarias pendientes, empresas asociadas | H56: Aportaciones no dinerarias pendientes, empresas asociadas | P56: 66 | Q56: 181 | R56: 1544
A57: 1 | B57: 15 | C57: 154 | D57: 1545 | E57: Financiación Básica | F57: Deudas a largo plazo con características especiales | G57: Aportaciones no dinerarias pendientes, otras partes vinculadas | H57: Aportaciones no dinerarias pendientes, otras partes vinculadas | P57: 67 | Q57: 185 | R57: 1545
A58: 1 | B58: 15 | C58: 154 | D58: 1546 | E58: Financiación Básica | F58: Deudas a largo plazo con características especiales | G58: Otras aportaciones no dinerarias pendientes | H58: Otras aportaciones no dinerarias pendientes | P58: 68 | Q58: 189 | R58: 1546
A59: 1 | B59: 16 | C59: 160 | D59: 1600 | E59: Financiación Básica | F59: Deudas a largo plazo con partes vinculadas | G59: Deudas a largo plazo con entidades de crédito vinculadas | H59: Deudas a largo plazo con entidades de crédito vinculadas | P59: 69 | Q59: 190 | R59: 1600
A60: 1 | B60: 16 | C60: 160 | D60: 1603 | E60: Financiación Básica | F60: Deudas a largo plazo con partes vinculadas | G60: Deudas a largo plazo con entidades de crédito, empresas del grupo | H60: Deudas a largo plazo con entidades de crédito, empresas del grupo | P60: 70 | Q60: 192 | R60: 1603
A61: 1 | B61: 16 | C61: 160 | D61: 1604 | E61: Financiación Básica | F61: Deudas a largo plazo con partes vinculadas | G61: Deudas a largo plazo con entidades de crédito, empresas asociadas | H61: Deudas a largo plazo con entidades de crédito, empresas asociadas | P61: 71 | Q61: 194 | R61: 1604
A62: 1 | B62: 16 | C62: 160 | D62: 1605 | E62: Financiación Básica | F62: Deudas a largo plazo con partes vinculadas | G62: Deudas a largo plazo con otras entidades de crédito vinculadas | H62: Deudas a largo plazo con otras entidades de crédito vinculadas | P62: 73 | Q62: 195 | R62: 1605
A63: 1 | B63: 16 | C63: 161 | D63: 1610 | E63: Financiación Básica | F63: Deudas a largo plazo con partes vinculadas | G63: Proveedores de inmovilizado a largo plazo, partes vinculadas | H63: Proveedores de inmovilizado a largo plazo, partes vinculadas | P63: 74 | Q63: 197 | R63: 1610
A64: 1 | B64: 16 | C64: 161 | D64: 1613 | E64: Financiación Básica | F64: Deudas a largo plazo con partes vinculadas | G64: Proveedores de inmovilizado a largo plazo, empresas del grupo | H64: Proveedores de inmovilizado a largo plazo, empresas del grupo | P64: 75 | Q64: 199 | R64: 1613
A65: 1 | B65: 16 | C65: 161 | D65: 1614 | E65: Financiación Básica | F65: Deudas a largo plazo con partes vinculadas | G65: Proveedores de inmovilizado a largo plazo, empresas asociadas | H65: Proveedores de inmovilizado a largo plazo, empresas asociadas | P65: 76 | Q65: 200 | R65: 1614
A66: 1 | B66: 16 | C66: 161 | D66: 1615 | E66: Financiación Básica | F66: Deudas a largo plazo con partes vinculadas | G66: Proveedores de inmovilizado a largo plazo, otras partes vinculadas | H66: Proveedores de inmovilizado a largo plazo, otras partes vinculadas | P66: 77 | Q66: 201 | R66: 1615
A67: 1 | B67: 16 | C67: 162 | D67: 1620 | E67: Financiación Básica | F67: Deudas a largo plazo con partes vinculadas | G67: Otras deudas a largo plazo con partes vinculadas | H67: Otras deudas a largo plazo con partes vinculadas | P67: 79 | Q67: 202 | R67: 1620
A68: 1 | B68: 16 | C68: 162 | D68: 1623 | E68: Financiación Básica | F68: Deudas a largo plazo con partes vinculadas | G68: Acreedores por arrendamiento financiero a largo plazo, empresas de grupo | H68: Acreedores por arrendamiento financiero a largo plazo, empresas de grupo | P68: 80 | Q68: 203 | R68: 1623
A69: 1 | B69: 16 | C69: 162 | D69: 1624 | E69: Financiación Básica | F69: Deudas a largo plazo con partes vinculadas | G69: Acreedores por arrendamiento financiero a largo plazo, empresas asociadas | H69: Acreedores por arrendamiento financiero a largo plazo, empresas asociadas | P69: 81 | Q69: 204 | R69: 1624
A70: 1 | B70: 16 | C70: 162 | D70: 1625 | E70: Financiación Básica | F70: Deudas a largo plazo con partes vinculadas | G70: Acreedores por arrendamiento financiero a largo plazo, otras partes vinculadas | H70: Acreedores por arrendamiento financiero a largo plazo, otras partes vinculadas | P70: 82 | Q70: 205 | R70: 1625
A71: 1 | B71: 16 | C71: 163 | D71: 1630 | E71: Financiación Básica | F71: Deudas a largo plazo con partes vinculadas | G71: Otras deudas a largo plazo con partes vinculadas | H71: Otras deudas a largo plazo con partes vinculadas | P71: 83 | Q71: 206 | R71: 1630
A72: 1 | B72: 16 | C72: 163 | D72: 1633 | E72: Financiación Básica | F72: Deudas a largo plazo con partes vinculadas | G72: Otras deudas a largo plazo, empresas del grupo | H72: Otras deudas a largo plazo, empresas del grupo | P72: 84 | Q72: 209 | R72: 1633
A73: 1 | B73: 16 | C73: 163 | D73: 1634 | E73: Financiación Básica | F73: Deudas a largo plazo con partes vinculadas | G73: Otras deudas a largo plazo, empresas asociadas | H73: Otras deudas a largo plazo, empresas asociadas | P73: 85 | Q73: 210 | R73: 1634
A74: 1 | B74: 16 | C74: 163 | D74: 1635 | E74: Financiación Básica | F74: Deudas a largo plazo con partes vinculadas | G74: Otras deudas a largo plazo, con otras partes vinculadas | H74: Otras deudas a largo plazo, con otras partes vinculadas | P74: 86 | Q74: 211 | R74: 1635
A75: 1 | B75: 17 | C75: 170 | D75: 1700 | E75: Financiación Básica | F75: Deudas a largo plazo por préstamos recibidos y otros conceptos | G75: Deudas a largo plazo con entidades de crédito | H75: Deudas a largo plazo con entidades de crédito | P75: 89 | Q75: 212 | R75: 1700
A76: 1 | B76: 17 | C76: 170 | D76: 1701 | E76: Financiación Básica | F76: Deudas a largo plazo por préstamos recibidos y otros conceptos | G76: Deudas a largo plazo con entidades de crédito | H76: Deudas a largo plazo con entidades de crédito | P76: 90 | Q76: 213 | R76: 1701
A77: 1 | B77: 17 | C77: 170 | D77: 1705 | E77: Financiación Básica | F77: Deudas a largo plazo por préstamos recibidos y otros conceptos | G77: Deudas a largo plazo con entidades de crédito | H77: Deudas a largo plazo con entidades de crédito | P77: 91 | Q77: 214 | R77: 1705
A78: 1 | B78: 17 | C78: 170 | D78: 1707 | E78: Financiación Básica | F78: Deudas a largo plazo por préstamos recibidos y otros conceptos | G78: Deudas a largo plazo con entidades de crédito | H78: Deudas a largo plazo con entidades de crédito | P78: 92 | Q78: 215 | R78: 1707
A79: 1 | B79: 17 | C79: 171 | D79: 1710 | E79: Financiación Básica | F79: Deudas a largo plazo por préstamos recibidos y otros conceptos | G79: Deudas a largo plazo | H79: Deudas a largo plazo | P79: 94 | Q79: 216 | R79: 1710
A80: 1 | B80: 17 | C80: 172 | D80: 1720 | E80: Financiación Básica | F80: Deudas a largo plazo por préstamos recibidos y otros conceptos | G80: Deudas a largo plazo transformables en subvenciones, donaciones y legados | H80: Deudas a largo plazo transformables en subvenciones, donaciones y legados | P80: 95 | Q80: 217 | R80: 1720
A81: 1 | B81: 17 | C81: 173 | D81: 1730 | E81: Financiación Básica | F81: Deudas a largo plazo por préstamos recibidos y otros conceptos | G81: Proveedores de inmovilizado a largo plazo | H81: Proveedores de inmovilizado a largo plazo | P81: 96 | Q81: 218 | R81: 1730
A82: 1 | B82: 17 | C82: 174 | D82: 1740 | E82: Financiación Básica | F82: Deudas a largo plazo por préstamos recibidos y otros conceptos | G82: Acreedores por arrendamiento financiero a largo plazo | H82: Acreedores por arrendamiento financiero a largo plazo | P82: 99 | Q82: 219 | R82: 1740
A83: 1 | B83: 17 | C83: 175 | D83: 1750 | E83: Financiación Básica | F83: Deudas a largo plazo por préstamos recibidos y otros conceptos | G83: Efectos a pagar a largo plazo | H83: Efectos a pagar a largo plazo | Q83: 220 | R83: 1750
A84: 1 | B84: 17 | C84: 176 | D84: 1760 | E84: Financiación Básica | F84: Deudas a largo plazo por préstamos recibidos y otros conceptos | G84: Pasivos por derivados financieros a largo plazo | H84: Pasivos por derivados financieros a largo plazo | Q84: 221 | R84: 1760
A85: 1 | B85: 17 | C85: 176 | D85: 1765 | E85: Financiación Básica | F85: Deudas a largo plazo por préstamos recibidos y otros conceptos | G85: Pasivos por derivados financieros a largo plazo, cartera de negociación | H85: Pasivos por derivados financieros a largo plazo, cartera de negociación | Q85: 224 | R85: 1765
A86: 1 | B86: 17 | C86: 176 | D86: 1768 | E86: Financiación Básica | F86: Deudas a largo plazo por préstamos recibidos y otros conceptos | G86: Pasivos por derivados financieros a largo plazo, instrumentos de cobertura | H86: Pasivos por derivados financieros a largo plazo, instrumentos de cobertura | Q86: 226 | R86: 1768
A87: 1 | B87: 17 | C87: 177 | D87: 1770 | E87: Financiación Básica | F87: Deudas a largo plazo por préstamos recibidos y otros conceptos | G87: Obligaciones y bonos | H87: Obligaciones y bonos | Q87: 227 | R87: 1770
A88: 1 | B88: 17 | C88: 178 | D88: 1780 | E88: Financiación Básica | F88: Deudas a largo plazo por préstamos recibidos y otros conceptos | G88: Obligaciones y bonos convertibles | H88: Obligaciones y bonos convertibles | Q88: 230 | R88: 1780
A89: 1 | B89: 17 | C89: 179 | D89: 1790 | E89: Financiación Básica | F89: Deudas a largo plazo por préstamos recibidos y otros conceptos | G89: Deudas representadas en otros valores negociables | H89: Deudas representadas en otros valores negociables | Q89: 231 | R89: 1790
A90: 1 | B90: 18 | C90: 180 | D90: 1800 | E90: Financiación Básica | F90: Pasivos por fianzas y garantías a largo plazo | G90: Fianzas recibidas a largo plazo | H90: Fianzas recibidas a largo plazo | Q90: 232 | R90: 1800
A91: 1 | B91: 18 | C91: 181 | D91: 1810 | E91: Financiación Básica | F91: Pasivos por fianzas y garantías a largo plazo | G91: Anticipos recibidos por ventas o prestaciones de servicios a largo plazo | H91: Anticipos recibidos por ventas o prestaciones de servicios a largo plazo | Q91: 233 | R91: 1810
A92: 1 | B92: 18 | C92: 185 | D92: 1850 | E92: Financiación Básica | F92: Pasivos por fianzas y garantías a largo plazo | G92: Depósitos recibidos a largo plazo | H92: Depósitos recibidos a largo plazo | Q92: 237 | R92: 1850
A93: 1 | B93: 18 | C93: 189 | D93: 1890 | E93: Financiación Básica | F93: Pasivos por fianzas y garantías a largo plazo | G93: Garantías financieras a largo plazo | H93: Garantías financieras a largo plazo | Q93: 239 | R93: 1890
A94: 1 | B94: 19 | C94: 190 | D94: 1900 | E94: Financiación Básica | F94: Situaciones transitorias de financiación | G94: Acciones o participaciones emitidas | H94: Acciones o participaciones emitidas | Q94: 240 | R94: 1900
A95: 1 | B95: 19 | C95: 192 | D95: 1920 | E95: Financiación Básica | F95: Situaciones transitorias de financiación | G95: Suscriptores de acciones | H95: Suscriptores de acciones | Q95: 241 | R95: 1920
A96: 1 | B96: 19 | C96: 194 | D96: 1940 | E96: Financiación Básica | F96: Situaciones transitorias de financiación | G96: Capital emitido pendiente de inscripción | H96: Capital emitido pendiente de inscripción | Q96: 242 | R96: 1940
A97: 1 | B97: 19 | C97: 195 | D97: 1950 | E97: Financiación Básica | F97: Situaciones transitorias de financiación | G97: Acciones o participaciones emitidas consideradas como pasivos financieros | H97: Acciones o participaciones emitidas consideradas como pasivos financieros | Q97: 249 | R97: 1950
A98: 1 | B98: 19 | C98: 197 | D98: 1970 | E98: Financiación Básica | F98: Situaciones transitorias de financiación | G98: Suscriptores de acciones consideradas coo pasivos financieros | H98: Suscriptores de acciones consideradas coo pasivos financieros | Q98: 250 | R98: 1970
A99: 1 | B99: 19 | C99: 199 | D99: 1990 | E99: Financiación Básica | F99: Situaciones transitorias de financiación | G99: Acciones o participaciones emitidas consideradas como pasivo financieros, pendientes de inscripción | H99: Acciones o participaciones emitidas consideradas como pasivo financieros, pendientes de inscripción | Q99: 251 | R99: 1990
A100: 2 | B100: 20 | C100: 200 | D100: 2000 | E100: Inmovilizado | F100: Inmovilizaciones intangibles | G100: Investigación | H100: Investigación | Q100: 252 | R100: 2000
A101: 2 | B101: 20 | C101: 201 | D101: 2010 | E101: Inmovilizado | F101: Inmovilizaciones intangibles | G101: Desarrollo | H101: Desarrollo | Q101: 253 | R101: 2010
A102: 2 | B102: 20 | C102: 202 | D102: 2020 | E102: Inmovilizado | F102: Inmovilizaciones intangibles | G102: Concesiones administrativas | H102: Concesiones administrativas | Q102: 254 | R102: 2020
A103: 2 | B103: 20 | C103: 203 | D103: 2030 | E103: Inmovilizado | F103: Inmovilizaciones intangibles | G103: Propiedad industrial | H103: Propiedad industrial | Q103: 255 | R103: 2030
A104: 2 | B104: 20 | C104: 204 | D104: 2040 | E104: Inmovilizado | F104: Inmovilizaciones intangibles | G104: Fondo de comercio | H104: Fondo de comercio | Q104: 257 | R104: 2040
A105: 2 | B105: 20 | C105: 205 | D105: 2050 | E105: Inmovilizado | F105: Inmovilizaciones intangibles | G105: Derechos de traspaso | H105: Derechos de traspaso | Q105: 258 | R105: 2050
A106: 2 | B106: 20 | C106: 206 | D106: 2060 | E106: Inmovilizado | F106: Inmovilizaciones intangibles | G106: Aplicaciones informáticas | H106: Aplicaciones informáticas | Q106: 259 | R106: 2060
A107: 2 | B107: 20 | C107: 209 | D107: 2090 | E107: Inmovilizado | F107: Inmovilizaciones intangibles | G107: Anticipos para inmovilizaciones intangibles | H107: Anticipos para inmovilizaciones intangibles | Q107: 260 | R107: 2090
A108: 2 | B108: 21 | C108: 210 | D108: 2100 | E108: Inmovilizado | F108: Inmovilizaciones materiales | G108: Terrenos y bienes naturales | H108: Terrenos y bienes naturales | Q108: 265 | R108: 2100
A109: 2 | B109: 21 | C109: 211 | D109: 2110 | E109: Inmovilizado | F109: Inmovilizaciones materiales | G109: Construcciones | H109: Construcciones | Q109: 272 | R109: 2110
A110: 2 | B110: 21 | C110: 212 | D110: 2120 | E110: Inmovilizado | F110: Inmovilizaciones materiales | G110: Instalaciones técnicas | H110: Instalaciones técnicas | Q110: 280 | R110: 2120
A111: 2 | B111: 21 | C111: 213 | D111: 2130 | E111: Inmovilizado | F111: Inmovilizaciones materiales | G111: Maquinaria | H111: Maquinaria | Q111: 281 | R111: 2130
A112: 2 | B112: 21 | C112: 214 | D112: 2140 | E112: Inmovilizado | F112: Inmovilizaciones materiales | G112: Utillaje | H112: Utillaje | Q112: 282 | R112: 2140
A113: 2 | B113: 21 | C113: 215 | D113: 2150 | E113: Inmovilizado | F113: Inmovilizaciones materiales | G113: Otras instalaciones | H113: Otras instalaciones | Q113: 290 | R113: 2150
A114: 2 | B114: 21 | C114: 215 | D114: 2159 | E114: Inmovilizado | F114: Inmovilizaciones materiales | G114: Otras instalaciones | H114: Otras instalaciones | Q114: 291 | R114: 2159
A115: 2 | B115: 21 | C115: 216 | D115: 2160 | E115: Inmovilizado | F115: Inmovilizaciones materiales | G115: Mobiliario | H115: Mobiliario | Q115: 292 | R115: 2160
A116: 2 | B116: 21 | C116: 217 | D116: 2170 | E116: Inmovilizado | F116: Inmovilizaciones materiales | G116: Equipos para procesos de información | H116: Equipos para procesos de información | Q116: 293 | R116: 2170
A117: 2 | B117: 21 | C117: 218 | D117: 2180 | E117: Inmovilizado | F117: Inmovilizaciones materiales | G117: Elementos de transporte | H117: Elementos de transporte | Q117: 294 | R117: 2180
A118: 2 | B118: 21 | C118: 219 | D118: 2190 | E118: Inmovilizado | F118: Inmovilizaciones materiales | G118: Otro inmovilizado material | H118: Otro inmovilizado material | Q118: 295 | R118: 2190
A119: 2 | B119: 22 | C119: 220 | D119: 2200 | E119: Inmovilizado | F119: Inversiones inmobiliarias | G119: Inversiones en terrenos y bienes naturales | H119: Inversiones en terrenos y bienes naturales | Q119: 297 | R119: 2200
A120: 2 | B120: 22 | C120: 221 | D120: 2210 | E120: Inmovilizado | F120: Inversiones inmobiliarias | G120: Inversiones en construcciones | H120: Inversiones en construcciones | Q120: 298 | R120: 2210
A121: 2 | B121: 22 | C121: 224 | D121: 2240 | E121: Inmovilizado | F121: Inversiones inmobiliarias | G121: Otras Inversiones | H121: Otras Inversiones | Q121: 300 | R121: 2240
A122: 2 | B122: 22 | C122: 226 | D122: 2260 | E122: Inmovilizado | F122: Inversiones inmobiliarias | G122: Invesriones en Peninsula | H122: Invesriones en Peninsula | Q122: 301 | R122: 2260
A123: 2 | B123: 22 | C123: 226 | D123: 2261 | E123: Inmovilizado | F123: Inversiones inmobiliarias | G123: Invesriones en Peninsula | H123: Invesriones en Peninsula | Q123: 302 | R123: 2261
A124: 2 | B124: 22 | C124: 226 | D124: 2262 | E124: Inmovilizado | F124: Inversiones inmobiliarias | G124: Invesriones en Peninsula | H124: Invesriones en Peninsula | Q124: 303 | R124: 2262
A125: 2 | B125: 22 | C125: 227 | D125: 2270 | E125: Inmovilizado | F125: Inversiones inmobiliarias | G125: Estrátegicas | H125: Estrátegicas Sectoriales | Q125: 304 | R125: 2270
A126: 2 | B126: 22 | C126: 227 | D126: 2271 | E126: Inmovilizado | F126: Inversiones inmobiliarias | G126: Estrátegicas | H126: Estrátegicas Sectoriales | Q126: 305 | R126: 2271
A127: 2 | B127: 22 | C127: 227 | D127: 2272 | E127: Inmovilizado | F127: Inversiones inmobiliarias | G127: Estrátegicas | H127: Estrátegicas Sectoriales | Q127: 306 | R127: 2272
A128: 2 | B128: 22 | C128: 227 | D128: 2279 | E128: Inmovilizado | F128: Inversiones inmobiliarias | G128: Estrátegicas | H128: Estrátegicas Sectoriales | Q128: 307 | R128: 2279
A129: 2 | B129: 23 | C129: 230 | D129: 2300 | E129: Inmovilizado | F129: Inmovilizaciones materiales en curso | G129: Adaptación de terrenos y bienes naturales | H129: Adaptación de terrenos y bienes naturales | Q129: 308 | R129: 2300
A130: 2 | B130: 23 | C130: 231 | D130: 2310 | E130: Inmovilizado | F130: Inmovilizaciones materiales en curso | G130: Construcciones en curso | H130: Construcciones en curso | Q130: 309 | R130: 2310
A131: 2 | B131: 23 | C131: 232 | D131: 2320 | E131: Inmovilizado | F131: Inmovilizaciones materiales en curso | G131: Instalaciones técnicas en montaje | H131: Instalaciones técnicas en montaje | Q131: 310 | R131: 2320
A132: 2 | B132: 23 | C132: 233 | D132: 2330 | E132: Inmovilizado | F132: Inmovilizaciones materiales en curso | G132: Maquinaria en montaje | H132: Maquinaria en montaje | Q132: 320 | R132: 2330
A133: 2 | B133: 23 | C133: 237 | D133: 2370 | E133: Inmovilizado | F133: Inmovilizaciones materiales en curso | G133: Equipos para procesos de información en montaje | H133: Equipos para procesos de información en montaje | Q133: 321 | R133: 2370
A134: 2 | B134: 23 | C134: 239 | D134: 2390 | E134: Inmovilizado | F134: Inmovilizaciones materiales en curso | G134: Anticipos para inmovilizaciones materiales | H134: Anticipos para inmovilizaciones materiales | Q134: 322 | R134: 2390
A135: 2 | B135: 24 | C135: 240 | D135: 2400 | E135: Inmovilizado | F135: Inversiones financieras en partes vinculadas | G135: Participaciones a largo plazo en partes vinculadas | H135: Participaciones a largo plazo en partes vinculadas | Q135: 325 | R135: 2400
A136: 2 | B136: 24 | C136: 240 | D136: 2403 | E136: Inmovilizado | F136: Inversiones financieras en partes vinculadas | G136: Participaciones a largo plazo en empresas del grupo | H136: Participaciones a largo plazo en empresas del grupo | Q136: 326 | R136: 2403
A137: 2 | B137: 24 | C137: 240 | D137: 2404 | E137: Inmovilizado | F137: Inversiones financieras en partes vinculadas | G137: Participaciones a largo plazo en empresas asociadas | H137: Participaciones a largo plazo en empresas asociadas | Q137: 327 | R137: 2404
A138: 2 | B138: 24 | C138: 240 | D138: 2405 | E138: Inmovilizado | F138: Inversiones financieras en partes vinculadas | G138: Participaciones a largo plazo en otras partes vinculadas | H138: Participaciones a largo plazo en otras partes vinculadas | Q138: 328 | R138: 2405
A139: 2 | B139: 24 | C139: 241 | D139: 2410 | E139: Inmovilizado | F139: Inversiones financieras en partes vinculadas | G139: Valores representativos de deuda a largo plazo de partes vinculadas | H139: Valores representativos de deuda a largo plazo de partes vinculadas | Q139: 330 | R139: 2410
A140: 2 | B140: 24 | C140: 241 | D140: 2413 | E140: Inmovilizado | F140: Inversiones financieras en partes vinculadas | G140: Valores representativos de deuda a largo plazo de empresas de grupo | H140: Valores representativos de deuda a largo plazo de empresas de grupo | Q140: 331 | R140: 2413
A141: 2 | B141: 24 | C141: 241 | D141: 2414 | E141: Inmovilizado | F141: Inversiones financieras en partes vinculadas | G141: Valores representativos de deuda a largo plazo de empresas asociadas | H141: Valores representativos de deuda a largo plazo de empresas asociadas | Q141: 332 | R141: 2414
A142: 2 | B142: 24 | C142: 241 | D142: 2415 | E142: Inmovilizado | F142: Inversiones financieras en partes vinculadas | G142: Valores representativos de deuda a largo plazo de otras partes vinculadas | H142: Valores representativos de deuda a largo plazo de otras partes vinculadas | Q142: 333 | R142: 2415
A143: 2 | B143: 24 | C143: 242 | D143: 2420 | E143: Inmovilizado | F143: Inversiones financieras en partes vinculadas | G143: Créditos a largo plazo a partes vinculadas | H143: Créditos a largo plazo a partes vinculadas | Q143: 334 | R143: 2420
A144: 2 | B144: 24 | C144: 242 | D144: 2423 | E144: Inmovilizado | F144: Inversiones financieras en partes vinculadas | G144: Créditos a largo plazo a empresas del grupo | H144: Créditos a largo plazo a empresas del grupo | Q144: 335 | R144: 2423
A145: 2 | B145: 24 | C145: 242 | D145: 2424 | E145: Inmovilizado | F145: Inversiones financieras en partes vinculadas | G145: Créditos a largo plazo a empresas asociadas | H145: Créditos a largo plazo a empresas asociadas | Q145: 336 | R145: 2424
A146: 2 | B146: 24 | C146: 242 | D146: 2425 | E146: Inmovilizado | F146: Inversiones financieras en partes vinculadas | G146: Crédtios a largo plazo a otras partes vinculadas | H146: Crédtios a largo plazo a otras partes vinculadas | Q146: 337 | R146: 2425
A147: 2 | B147: 24 | C147: 249 | D147: 2490 | E147: Inmovilizado | F147: Inversiones financieras en partes vinculadas | G147: Desembolsos pendientes sobre participaciones a largo plazo en partes vinculadas | H147: Desembolsos pendientes sobre participaciones a largo plazo en partes vinculadas | Q147: 338 | R147: 2490
A148: 2 | B148: 24 | C148: 249 | D148: 2493 | E148: Inmovilizado | F148: Inversiones financieras en partes vinculadas | G148: Desembolsos pendientes sobre participaciones a largo plazo en empresas del grupo | H148: Desembolsos pendientes sobre participaciones a largo plazo en empresas del grupo | Q148: 339 | R148: 2493
A149: 2 | B149: 24 | C149: 249 | D149: 2494 | E149: Inmovilizado | F149: Inversiones financieras en partes vinculadas | G149: Desembolsos pendientes sobre participaciones a largo plazo en empresas asociadas | H149: Desembolsos pendientes sobre participaciones a largo plazo en empresas asociadas | Q149: 340 | R149: 2494
A150: 2 | B150: 24 | C150: 249 | D150: 2495 | E150: Inmovilizado | F150: Inversiones financieras en partes vinculadas | G150: Desembolsos pendientes sobre participaciones a largo plazo en otras partes vinculadas | H150: Desembolsos pendientes sobre participaciones a largo plazo en otras partes vinculadas | Q150: 341 | R150: 2495
A151: 2 | B151: 25 | C151: 250 | D151: 2500 | E151: Inmovilizado | F151: Otras inversiones financieras a largo plazo | G151: Inversiones financieras a largo plazo en instrumentos de patrimonio | H151: Inversiones financieras a largo plazo en instrumentos de patrimonio | Q151: 342 | R151: 2500
A152: 2 | B152: 25 | C152: 251 | D152: 2510 | E152: Inmovilizado | F152: Otras inversiones financieras a largo plazo | G152: Valores representativos de deuda a largo plazo | H152: Valores representativos de deuda a largo plazo | Q152: 343 | R152: 2510
A153: 2 | B153: 25 | C153: 251 | D153: 2515 | E153: Inmovilizado | F153: Otras inversiones financieras a largo plazo | G153: Valores representativos de deuda a largo plazo | H153: Valores representativos de deuda a largo plazo | Q153: 344 | R153: 2515
A154: 2 | B154: 25 | C154: 252 | D154: 2520 | E154: Inmovilizado | F154: Otras inversiones financieras a largo plazo | G154: Créditos a largo plazo | H154: Créditos a largo plazo | Q154: 345 | R154: 2520
A155: 2 | B155: 25 | C155: 253 | D155: 2530 | E155: Inmovilizado | F155: Otras inversiones financieras a largo plazo | G155: Créditos a largo plazo por enajenación de inmovilizado | H155: Créditos a largo plazo por enajenación de inmovilizado | Q155: 346 | R155: 2530
A156: 2 | B156: 25 | C156: 254 | D156: 2540 | E156: Inmovilizado | F156: Otras inversiones financieras a largo plazo | G156: Créditos a largo plazo al personal | H156: Créditos a largo plazo al personal | Q156: 347 | R156: 2540
A157: 2 | B157: 25 | C157: 255 | D157: 2550 | E157: Inmovilizado | F157: Otras inversiones financieras a largo plazo | G157: Activos por derivados financieros a largo plazo | H157: Activos por derivados financieros a largo plazo, cartera de negociación | Q157: 348 | R157: 2550
A158: 2 | B158: 25 | C158: 255 | D158: 2553 | E158: Inmovilizado | F158: Otras inversiones financieras a largo plazo | G158: Activos por derivados financieros a largo plazo, instrumentos de cobertura | H158: Activos por derivados financieros a largo plazo, instrumentos de cobertura | Q158: 349 | R158: 2553
A159: 2 | B159: 25 | C159: 257 | D159: 2570 | E159: Inmovilizado | F159: Otras inversiones financieras a largo plazo | G159: Activos por retribuciones a largo plazo de prestación definida | H159: Activos por retribuciones a largo plazo de prestación definida | Q159: 350 | R159: 2570
A160: 2 | B160: 25 | C160: 258 | D160: 2580 | E160: Inmovilizado | F160: Otras inversiones financieras a largo plazo | G160: Imposiciones a largo plazo | H160: Imposiciones a largo plazo | Q160: 351 | R160: 2580
A161: 2 | B161: 25 | C161: 259 | D161: 2590 | E161: Inmovilizado | F161: Otras inversiones financieras a largo plazo | G161: Desembolsos pendientes sobre participaciones en el patrimonio neto a largo plazo | H161: Desembolsos pendientes sobre participaciones en el patrimonio neto a largo plazo | Q161: 352 | R161: 2590
A162: 2 | B162: 26 | C162: 260 | D162: 2600 | E162: Inmovilizado | F162: Fianzas y depósitos constituidos a largo plazo | G162: Fianzas constituidas a largo plazo | H162: Fianzas constituidas a largo plazo | Q162: 353 | R162: 2600
A163: 2 | B163: 26 | C163: 265 | D163: 2650 | E163: Inmovilizado | F163: Fianzas y depósitos constituidos a largo plazo | G163: Depósitos constituidos a largo plazo | H163: Depósitos constituidos a largo plazo | Q163: 354 | R163: 2650
A164: 2 | B164: 27 | C164: 272 | D164: 2720 | E164: Inmovilizado | F164: Fianzas Especiales | G164: Fianzas Secretas | H164: Fianzas Privadas | Q164: 355 | R164: 2720
A165: 2 | B165: 27 | C165: 272 | D165: 2727 | E165: Inmovilizado | F165: Fianzas Especiales | G165: Fianzas Secretas | H165: Fianzas Privadas | Q165: 356 | R165: 2727
A166: 2 | B166: 28 | C166: 280 | D166: 2800 | E166: Inmovilizado | F166: Amortización acumulada del inmovilizado | G166: Amortización acumulada del inmovilizado intangible | H166: Amortización acumulada de investigación | Q166: 357 | R166: 2800
A167: 2 | B167: 28 | C167: 280 | D167: 2801 | E167: Inmovilizado | F167: Amortización acumulada del inmovilizado | G167: Amortización acumulada de desarrollo | H167: Amortización acumulada de desarrollo | Q167: 358 | R167: 2801
A168: 2 | B168: 28 | C168: 280 | D168: 2802 | E168: Inmovilizado | F168: Amortización acumulada del inmovilizado | G168: Amortización acumulada de concesiones administrativas | H168: Amortización acumulada de concesiones administrativas | Q168: 359 | R168: 2802
A169: 2 | B169: 28 | C169: 280 | D169: 2803 | E169: Inmovilizado | F169: Amortización acumulada del inmovilizado | G169: Amortización acumulada de propiedad industrial | H169: Amortización acumulada de propiedad industrial | Q169: 360 | R169: 2803
A170: 2 | B170: 28 | C170: 280 | D170: 2805 | E170: Inmovilizado | F170: Amortización acumulada del inmovilizado | G170: Amortización acumulada de derechos de traspaso | H170: Amortización acumulada de derechos de traspaso | Q170: 361 | R170: 2805
A171: 2 | B171: 28 | C171: 280 | D171: 2806 | E171: Inmovilizado | F171: Amortización acumulada del inmovilizado | G171: Amortización acumulada de aplicaciones informáticas | H171: Amortización acumulada de aplicaciones informáticas | Q171: 365 | R171: 2806
A172: 2 | B172: 28 | C172: 281 | D172: 2810 | E172: Inmovilizado | F172: Amortización acumulada del inmovilizado | G172: Amortización acumulada del inmovilizado material | H172: Amortización acumulada del inmovilizado material | Q172: 366 | R172: 2810
A173: 2 | B173: 28 | C173: 281 | D173: 2811 | E173: Inmovilizado | F173: Amortización acumulada del inmovilizado | G173: Amortización acumulada de construcciones | H173: Amortización acumulada de construcciones | Q173: 368 | R173: 2811
A174: 2 | B174: 28 | C174: 281 | D174: 2812 | E174: Inmovilizado | F174: Amortización acumulada del inmovilizado | G174: Amortización acumulada de instalaciones técnicas | H174: Amortización acumulada de instalaciones técnicas | Q174: 369 | R174: 2812
A175: 2 | B175: 28 | C175: 281 | D175: 2813 | E175: Inmovilizado | F175: Amortización acumulada del inmovilizado | G175: Amortización acumulada de maquinaria | H175: Amortización acumulada de maquinaria | Q175: 390 | R175: 2813
A176: 2 | B176: 28 | C176: 281 | D176: 2814 | E176: Inmovilizado | F176: Amortización acumulada del inmovilizado | G176: Amortización acumulada de utillaje | H176: Amortización acumulada de utillaje | Q176: 391 | R176: 2814
A177: 2 | B177: 28 | C177: 281 | D177: 2815 | E177: Inmovilizado | F177: Amortización acumulada del inmovilizado | G177: Amortización acumulada de otras instalaciones | H177: Amortización acumulada de otras instalaciones | Q177: 392 | R177: 2815
A178: 2 | B178: 28 | C178: 281 | D178: 2816 | E178: Inmovilizado | F178: Amortización acumulada del inmovilizado | G178: Amortización acumulada de mobiliario | H178: Amortización acumulada de mobiliario | Q178: 393 | R178: 2816
A179: 2 | B179: 28 | C179: 281 | D179: 2817 | E179: Inmovilizado | F179: Amortización acumulada del inmovilizado | G179: Amortización acumulada de equipos para procesos de información | H179: Amortización acumulada de equipos para procesos de información | Q179: 394 | R179: 2817
A180: 2 | B180: 28 | C180: 281 | D180: 2818 | E180: Inmovilizado | F180: Amortización acumulada del inmovilizado | G180: Amortización acumulada de elementos de transporte | H180: Amortización acumulada de elementos de transporte | Q180: 395 | R180: 2818
A181: 2 | B181: 28 | C181: 281 | D181: 2819 | E181: Inmovilizado | F181: Amortización acumulada del inmovilizado | G181: Amortización acumulada de otro inmovilizado material | H181: Amortización acumulada de otro inmovilizado material | Q181: 396 | R181: 2819
A182: 2 | B182: 28 | C182: 282 | D182: 2820 | E182: Inmovilizado | F182: Amortización acumulada del inmovilizado | G182: Amortización acumulada de las inversiones inmobiliarias | H182: Amortización acumulada de las inversiones inmobiliarias | Q182: 400 | R182: 2820
A183: 2 | B183: 28 | C183: 282 | D183: 2821 | E183: Inmovilizado | F183: Amortización acumulada del inmovilizado | G183: Amortización acumulada de las inversiones inmobiliarias | H183: Amortización acumulada de las inversiones inmobiliarias | Q183: 401 | R183: 2821
A184: 2 | B184: 28 | C184: 282 | D184: 2824 | E184: Inmovilizado | F184: Amortización acumulada del inmovilizado | G184: Amortización acumulada de las inversiones inmobiliarias | H184: Amortización acumulada de las inversiones inmobiliarias | Q184: 403 | R184: 2824
A185: 2 | B185: 28 | C185: 282 | D185: 2826 | E185: Inmovilizado | F185: Amortización acumulada del inmovilizado | G185: Amortización acumulada de las inversiones inmobiliarias | H185: Amortización acumulada de las inversiones inmobiliarias | Q185: 404 | R185: 2826
A186: 2 | B186: 28 | C186: 282 | D186: 2827 | E186: Inmovilizado | F186: Amortización acumulada del inmovilizado | G186: Amortización acumulada de las inversiones inmobiliarias | H186: Amortización acumulada de las inversiones inmobiliarias | Q186: 405 | R186: 2827
A187: 2 | B187: 28 | C187: 282 | D187: 2828 | E187: Inmovilizado | F187: Amortización acumulada del inmovilizado | G187: Amortización acumulada de las inversiones inmobiliarias | H187: Amortización acumulada de las inversiones inmobiliarias | Q187: 406 | R187: 2828
A188: 2 | B188: 29 | C188: 290 | D188: 2900 | E188: Inmovilizado | F188: Deterioro de valor de inmovilizado | G188: Deterioro de valor del inmovilizado intangible | H188: Deterioro de valor de investigación | Q188: 407 | R188: 2900
A189: 2 | B189: 29 | C189: 290 | D189: 2901 | E189: Inmovilizado | F189: Deterioro de valor de inmovilizado | G189: Deterioro de valor de desarrollo | H189: Deterioro de valor de desarrollo | Q189: 410 | R189: 2901
A190: 2 | B190: 29 | C190: 290 | D190: 2902 | E190: Inmovilizado | F190: Deterioro de valor de inmovilizado | G190: Deterioro de valor de concesiones administrativas | H190: Deterioro de valor de concesiones administrativas | Q190: 411 | R190: 2902
A191: 2 | B191: 29 | C191: 290 | D191: 2903 | E191: Inmovilizado | F191: Deterioro de valor de inmovilizado | G191: Deterioro de valor de propiedad industrial | H191: Deterioro de valor de propiedad industrial | Q191: 419 | R191: 2903
A192: 2 | B192: 29 | C192: 290 | D192: 2905 | E192: Inmovilizado | F192: Deterioro de valor de inmovilizado | G192: Deterioro de valor de derechos de traspaso | H192: Deterioro de valor de derechos de traspaso | Q192: 430 | R192: 2905
A193: 2 | B193: 29 | C193: 290 | D193: 2906 | E193: Inmovilizado | F193: Deterioro de valor de inmovilizado | G193: Deterioro de valor de aplicaciones informáticas | H193: Deterioro de valor de aplicaciones informáticas | Q193: 431 | R193: 2906
A194: 2 | B194: 29 | C194: 291 | D194: 2910 | E194: Inmovilizado | F194: Deterioro de valor de inmovilizado | G194: Deterioro de valor del inmovilizado material | H194: Deterioro de valor de terrenos y bienes naturales | Q194: 432 | R194: 2910
A195: 2 | B195: 29 | C195: 291 | D195: 2911 | E195: Inmovilizado | F195: Deterioro de valor de inmovilizado | G195: Deterioro de valor de construcciones | H195: Deterioro de valor de construcciones | Q195: 433 | R195: 2911
A196: 2 | B196: 29 | C196: 291 | D196: 2912 | E196: Inmovilizado | F196: Deterioro de valor de inmovilizado | G196: Deterioro de valor de instalaciones técnicas | H196: Deterioro de valor de instalaciones técnicas | Q196: 434 | R196: 2912
A197: 2 | B197: 29 | C197: 291 | D197: 2913 | E197: Inmovilizado | F197: Deterioro de valor de inmovilizado | G197: Deterioro de valor de maquinaria | H197: Deterioro de valor de maquinaria | Q197: 435 | R197: 2913
A198: 2 | B198: 29 | C198: 291 | D198: 2914 | E198: Inmovilizado | F198: Deterioro de valor de inmovilizado | G198: Deterioro de valor de utillaje | H198: Deterioro de valor de utillaje | Q198: 436 | R198: 2914
A199: 2 | B199: 29 | C199: 291 | D199: 2915 | E199: Inmovilizado | F199: Deterioro de valor de inmovilizado | G199: Deterioro de valor de otras instalaciones | H199: Deterioro de valor de otras instalaciones | Q199: 437 | R199: 2915
A200: 2 | B200: 29 | C200: 291 | D200: 2916 | E200: Inmovilizado | F200: Deterioro de valor de inmovilizado | G200: Deterioro de valor de mobiliario | H200: Deterioro de valor de mobiliario | Q200: 438 | R200: 2916
... 666 more rows

Sheet Redactor Contable
A1: Redactor Contable (Version 2.0) www.jggomez.eu | E1: Correo del Aula Virtual | G1: joseignacioicod@gmail.com | N1: Diario de Contabilidad
A2: Edición | B2: Alumno: | C2: Jose Ignacio González Gómez re | E2: Práctica o Tarea: | G2: Sociedad Blue SL | N2: Base de datos
A3: Bloqueo | B3: DNI: | C3: 78XXXYYY-K | E3: Fecha: | G3: =NOW() -> 2015-10-23T09:43:01.250 | N3: Nº As | O3: Importe | P3: Cta | Q3: Descripción | R3: D/H | S3: Fecha | T3: Observaciones | U3: Codigo | V3: Codigo 2 | W3: Neto | X3: Resumen del Diario
F4: Código: | G4: =INT((G3-INT(G3))*10000) -> 4048 | N4: 0 | O4: 0 | P4: 0 | Q4: 0 | R4: D | S4: 2015-01-01 | T4: Apertura | U4: =P4&"-"&Q4 -> 0-0 | V4: =N4&"-"&P4&"-"&R4&"-"&O4 -> 0-0-D-0 | W4: =IF(Tabla_Diario[[#This Row],[D/H]]="D",Tabla_Diario[[#This Row],[Importe]],-Tabla_Diario[[#This Row],[Importe]]) -> 0 | X4: TOTAL DEBE: | Y4: =SUMIF(Tabla_Diario[D/H],"D",Tabla_Diario[Importe]) -> 45850
A5: Registro de Asientos | D5: PGC, definiciones y relaciones contables | N5: 1 | O5: 12000 | P5: 5700 | Q5: Caja, euros | R5: D | S5: 2015-01-02 | T5: creacion de la sociedad | U5: 5700-Caja, euros | V5: 1-5700-D-12000 | W5: =IF(Tabla_Diario[[#This Row],[D/H]]="D",Tabla_Diario[[#This Row],[Importe]],-Tabla_Diario[[#This Row],[Importe]]) -> 12000 | X5: TOTAL HABER: | Y5: =SUMIF(Tabla_Diario[D/H],"H",Tabla_Diario[Importe]) -> 45850
F6: Desproteger Diario de Contabilidad | N6: 1 | O6: 12000 | P6: 1000 | Q6: Capital social | R6: H | S6: 2015-01-02 | T6: creacion de la sociedad | U6: 1000-Capital social | V6: 1-1000-H-12000 | W6: =IF(Tabla_Diario[[#This Row],[D/H]]="D",Tabla_Diario[[#This Row],[Importe]],-Tabla_Diario[[#This Row],[Importe]]) -> -12000 | X6: DESCUADRE: | Y6: =Y4-Y5 -> 0
F7: Proteger Diario de Contabilidad | N7: 2 | O7: 9500 | P7: 5720 | Q7: Bancos e instituciones de crédito c/c vista, euros | R7: D | S7: 2015-01-10 | T7: N/I:1234 | U7: 5720-Bancos e instituciones de crédito c/c vista, euros | V7: 2-5720-D-9500 | W7: =IF(Tabla_Diario[[#This Row],[D/H]]="D",Tabla_Diario[[#This Row],[Importe]],-Tabla_Diario[[#This Row],[Importe]]) -> 9500 | X7: Nº Apuntes al D: | Y7: =COUNTIF(Tabla_Diario[D/H],"=D")-1 -> 18
A8: Nº As | B8: Importe | C8: Cta | D8: Descripción | E8: D/H | F8: Fecha | G8: Observaciones | H8: Resumen del Asiento | N8: 2 | O8: 9500 | P8: 5700 | Q8: Caja, euros | R8: H | S8: 2015-01-10 | T8: N/I:1234 | U8: 5700-Caja, euros | V8: 2-5700-H-9500 | W8: =IF(Tabla_Diario[[#This Row],[D/H]]="D",Tabla_Diario[[#This Row],[Importe]],-Tabla_Diario[[#This Row],[Importe]]) -> -9500 | X8: Nº Apuntes al H: | Y8: =COUNTIF(Tabla_Diario[D/H],"=H") -> 19
D9: =IF(ISERROR(VLOOKUP(Tabla_Asiento_2[[#This Row],[Cta]],PGCtotal[[Nivel 4]:[Subcuenta]],5,FALSE)),"",VLOOKUP(Tabla_Asiento_2[[#This Row],[Cta]],PGCtotal[[Nivel 4]:[Subcuenta]],5,FALSE)) ->  | H9: TOTAL DEBE: | J9: =SUMIF(Tabla_Asiento_2[D/H],"D",Tabla_Asiento_2[Importe]) -> 0 | N9: 3 | O9: 3000 | P9: 6000 | Q9: Compras de mercaderías | R9: D | S9: 2015-01-15 | T9: S/F:1234-B | U9: 6000-Compras de mercaderías | V9: 3-6000-D-3000 | W9: =IF(Tabla_Diario[[#This Row],[D/H]]="D",Tabla_Diario[[#This Row],[Importe]],-Tabla_Diario[[#This Row],[Importe]]) -> 3000 | X9: Total Apuntes: | Y9: =Y7+Y8 -> 37
H10: TOTAL HABER: | J10: =SUMIF(Tabla_Asiento_2[D/H],"H",Tabla_Asiento_2[Importe]) -> 0 | N10: 3 | O10: 3000 | P10: 4000 | Q10: Proveedores | R10: H | S10: 2015-01-15 | T10: S/F:1234-B | U10: 4000-Proveedores | V10: 3-4000-H-3000 | W10: =IF(Tabla_Diario[[#This Row],[D/H]]="D",Tabla_Diario[[#This Row],[Importe]],-Tabla_Diario[[#This Row],[Importe]]) -> -3000 | X10: Total Asientos: | Y10: =SUMPRODUCT(1/COUNTIF(Tabla_Diario[Nº As],Tabla_Diario[Nº As]))-1 -> 18
H11: DESCUADRE: | J11: =J9-J10 -> 0 | N11: 4 | O11: 1500 | P11: 4300 | Q11: Clientes | R11: D | S11: 2015-01-15 | T11: N/F nº: 1-A | U11: 4300-Clientes | V11: 4-4300-D-1500 | W11: =IF(Tabla_Diario[[#This Row],[D/H]]="D",Tabla_Diario[[#This Row],[Importe]],-Tabla_Diario[[#This Row],[Importe]]) -> 1500
N12: 4 | O12: 1500 | P12: 7000 | Q12: Ventas de mercaderías | R12: H | S12: 2015-01-15 | T12: N/F nº: 1-A | U12: 7000-Ventas de mercaderías | V12: 4-7000-H-1500 | W12: =IF(Tabla_Diario[[#This Row],[D/H]]="D",Tabla_Diario[[#This Row],[Importe]],-Tabla_Diario[[#This Row],[Importe]]) -> -1500
N13: 5 | O13: 1000 | P13: 6400 | Q13: Sueldos y salarios | R13: D | S13: 2015-03-07 | T13: N/T nº:3434 | U13: 6400-Sueldos y salarios | V13: 5-6400-D-1000 | W13: =IF(Tabla_Diario[[#This Row],[D/H]]="D",Tabla_Diario[[#This Row],[Importe]],-Tabla_Diario[[#This Row],[Importe]]) -> 1000
N14: 5 | O14: 1000 | P14: 5720 | Q14: Bancos e instituciones de crédito c/c vista, euros | R14: H | S14: 2015-03-07 | T14: N/T nº:3434 | U14: 5720-Bancos e instituciones de crédito c/c vista, euros | V14: 5-5720-H-1000 | W14: =IF(Tabla_Diario[[#This Row],[D/H]]="D",Tabla_Diario[[#This Row],[Importe]],-Tabla_Diario[[#This Row],[Importe]]) -> -1000
N15: 6 | O15: 450 | P15: 6420 | Q15: Seguridad Social a cargo de la empresa | R15: D | S15: 2015-04-03 | T15: N/T nº:3435 | U15: 6420-Seguridad Social a cargo de la empresa | V15: 6-6420-D-450 | W15: =IF(Tabla_Diario[[#This Row],[D/H]]="D",Tabla_Diario[[#This Row],[Importe]],-Tabla_Diario[[#This Row],[Importe]]) -> 450
N16: 6 | O16: 450 | P16: 5720 | Q16: Bancos e instituciones de crédito c/c vista, euros | R16: H | S16: 2015-04-03 | T16: N/T nº:3435 | U16: 5720-Bancos e instituciones de crédito c/c vista, euros | V16: 6-5720-H-450 | W16: =IF(Tabla_Diario[[#This Row],[D/H]]="D",Tabla_Diario[[#This Row],[Importe]],-Tabla_Diario[[#This Row],[Importe]]) -> -450
N17: 7 | O17: 600 | P17: 2160 | Q17: Mobiliario | R17: D | S17: 2015-05-25 | T17: S/F nº:3432 | U17: 2160-Mobiliario | V17: 7-2160-D-600 | W17: =IF(Tabla_Diario[[#This Row],[D/H]]="D",Tabla_Diario[[#This Row],[Importe]],-Tabla_Diario[[#This Row],[Importe]]) -> 600
N18: 7 | O18: 600 | P18: 5700 | Q18: Caja, euros | R18: H | S18: 2015-05-25 | T18: S/F nº:3432 | U18: 5700-Caja, euros | V18: 7-5700-H-600 | W18: =IF(Tabla_Diario[[#This Row],[D/H]]="D",Tabla_Diario[[#This Row],[Importe]],-Tabla_Diario[[#This Row],[Importe]]) -> -600
N19: 8 | O19: 750 | P19: 6210 | Q19: Arrendamientos y cánones | R19: D | S19: 2015-06-11 | T19: S/R Nº:2545 | U19: 6210-Arrendamientos y cánones | V19: 8-6210-D-750 | W19: =IF(Tabla_Diario[[#This Row],[D/H]]="D",Tabla_Diario[[#This Row],[Importe]],-Tabla_Diario[[#This Row],[Importe]]) -> 750
N20: 8 | O20: 750 | P20: 5700 | Q20: Caja, euros | R20: H | S20: 2015-06-11 | T20: S/R Nº:2545 | U20: 5700-Caja, euros | V20: 8-5700-H-750 | W20: =IF(Tabla_Diario[[#This Row],[D/H]]="D",Tabla_Diario[[#This Row],[Importe]],-Tabla_Diario[[#This Row],[Importe]]) -> -750
N21: 9 | O21: 100 | P21: 6280 | Q21: Suministros | R21: D | S21: 2015-06-20 | T21: pago suministros varios | U21: 6280-Suministros | V21: 9-6280-D-100 | W21: =IF(Tabla_Diario[[#This Row],[D/H]]="D",Tabla_Diario[[#This Row],[Importe]],-Tabla_Diario[[#This Row],[Importe]]) -> 100
N22: 9 | O22: 100 | P22: 5700 | Q22: Caja, euros | R22: H | S22: 2015-06-20 | T22: pago suministros varios | U22: 5700-Caja, euros | V22: 9-5700-H-100 | W22: =IF(Tabla_Diario[[#This Row],[D/H]]="D",Tabla_Diario[[#This Row],[Importe]],-Tabla_Diario[[#This Row],[Importe]]) -> -100
N23: 10 | O23: 4000 | P23: 2180 | Q23: Elementos de transporte | R23: D | S23: 2015-06-20 | T23: S/F nº:53456 | U23: 2180-Elementos de transporte | V23: 10-2180-D-4000 | W23: =IF(Tabla_Diario[[#This Row],[D/H]]="D",Tabla_Diario[[#This Row],[Importe]],-Tabla_Diario[[#This Row],[Importe]]) -> 4000
N24: 10 | O24: 3600 | P24: 4110 | Q24: Acreedores, efectos comerciales a pagar | R24: H | S24: 2015-06-20 | T24: S/F nº:53456 | U24: 4110-Acreedores, efectos comerciales a pagar | V24: 10-4110-H-3600 | W24: =IF(Tabla_Diario[[#This Row],[D/H]]="D",Tabla_Diario[[#This Row],[Importe]],-Tabla_Diario[[#This Row],[Importe]]) -> -3600
N25: 10 | O25: 400 | P25: 5700 | Q25: Caja, euros | R25: H | S25: 2015-06-20 | T25: S/F nº:53456 | U25: 5700-Caja, euros | V25: 10-5700-H-400 | W25: =IF(Tabla_Diario[[#This Row],[D/H]]="D",Tabla_Diario[[#This Row],[Importe]],-Tabla_Diario[[#This Row],[Importe]]) -> -400
N26: 11 | O26: 1500 | P26: 4310 | Q26: Clientes, efectos comerciales a cobrar | R26: D | S26: 2015-07-08 | T26: N/F nº 2-A | U26: 4310-Clientes, efectos comerciales a cobrar | V26: 11-4310-D-1500 | W26: =IF(Tabla_Diario[[#This Row],[D/H]]="D",Tabla_Diario[[#This Row],[Importe]],-Tabla_Diario[[#This Row],[Importe]]) -> 1500
N27: 11 | O27: 1500 | P27: 7000 | Q27: Ventas de mercaderías | R27: H | S27: 2015-07-08 | T27: N/F nº 2-A | U27: 7000-Ventas de mercaderías | V27: 11-7000-H-1500 | W27: =IF(Tabla_Diario[[#This Row],[D/H]]="D",Tabla_Diario[[#This Row],[Importe]],-Tabla_Diario[[#This Row],[Importe]]) -> -1500
N28: 12 | O28: 350 | P28: 6310 | Q28: Otros tributos | R28: D | S28: 2015-08-20 | T28: pago impuestos locales | U28: 6310-Otros tributos | V28: 12-6310-D-350 | W28: =IF(Tabla_Diario[[#This Row],[D/H]]="D",Tabla_Diario[[#This Row],[Importe]],-Tabla_Diario[[#This Row],[Importe]]) -> 350
N29: 12 | O29: 350 | P29: 5700 | Q29: Caja, euros | R29: H | S29: 2015-08-20 | T29: pago impuestos locales | U29: 5700-Caja, euros | V29: 12-5700-H-350 | W29: =IF(Tabla_Diario[[#This Row],[D/H]]="D",Tabla_Diario[[#This Row],[Importe]],-Tabla_Diario[[#This Row],[Importe]]) -> -350
N30: 13 | O30: 2000 | P30: 6000 | Q30: Compras de mercaderías | R30: D | S30: 2015-09-15 | T30: S/F nº:965B | U30: 6000-Compras de mercaderías | V30: 13-6000-D-2000 | W30: =IF(Tabla_Diario[[#This Row],[D/H]]="D",Tabla_Diario[[#This Row],[Importe]],-Tabla_Diario[[#This Row],[Importe]]) -> 2000
N31: 13 | O31: 2000 | P31: 4000 | Q31: Proveedores | R31: H | S31: 2015-09-15 | T31: S/F nº:965B | U31: 4000-Proveedores | V31: 13-4000-H-2000 | W31: =IF(Tabla_Diario[[#This Row],[D/H]]="D",Tabla_Diario[[#This Row],[Importe]],-Tabla_Diario[[#This Row],[Importe]]) -> -2000
N32: 14 | O32: 100 | P32: 6230 | Q32: Servicios de profesionales independientes | R32: D | S32: 2015-10-25 | T32: N/R nº: 1 | U32: 6230-Servicios de profesionales independientes | V32: 14-6230-D-100 | W32: =IF(Tabla_Diario[[#This Row],[D/H]]="D",Tabla_Diario[[#This Row],[Importe]],-Tabla_Diario[[#This Row],[Importe]]) -> 100
N33: 14 | O33: 100 | P33: 5700 | Q33: Caja, euros | R33: H | S33: 2015-10-25 | T33: N/R nº: 1 | U33: 5700-Caja, euros | V33: 14-5700-H-100 | W33: =IF(Tabla_Diario[[#This Row],[D/H]]="D",Tabla_Diario[[#This Row],[Importe]],-Tabla_Diario[[#This Row],[Importe]]) -> -100
N34: 15 | O34: 1500 | P34: 5700 | Q34: Caja, euros | R34: D | S34: 2015-11-22 | T34: N/R nº: 2 | U34: 5700-Caja, euros | V34: 15-5700-D-1500 | W34: =IF(Tabla_Diario[[#This Row],[D/H]]="D",Tabla_Diario[[#This Row],[Importe]],-Tabla_Diario[[#This Row],[Importe]]) -> 1500
D35: =IF(ISERROR(VLOOKUP(Tabla_Asiento_2[[#This Row],[Cta]],PGCtotal[[Nivel 3]:[Subcuenta]],5,FALSE)),"",VLOOKUP(Tabla_Asiento_2[[#This Row],[Cta]],PGCtotal[[Nivel 3]:[Subcuenta]],5,FALSE)) ->  | N35: 15 | O35: 1500 | P35: 4300 | Q35: Clientes | R35: H | S35: 2015-11-22 | T35: N/R nº:2 | U35: 4300-Clientes | V35: 15-4300-H-1500 | W35: =IF(Tabla_Diario[[#This Row],[D/H]]="D",Tabla_Diario[[#This Row],[Importe]],-Tabla_Diario[[#This Row],[Importe]]) -> -1500
D36: =IF(ISERROR(VLOOKUP(Tabla_Asiento_2[[#This Row],[Cta]],PGCtotal[[Nivel 3]:[Subcuenta]],5,FALSE)),"",VLOOKUP(Tabla_Asiento_2[[#This Row],[Cta]],PGCtotal[[Nivel 3]:[Subcuenta]],5,FALSE)) ->  | N36: 16 | O36: 2000 | P36: 4310 | Q36: Clientes, efectos comerciales a cobrar | R36: D | S36: 2015-12-01 | T36: N/F: nº 3-A | U36: 4310-Clientes, efectos comerciales a cobrar | V36: 16-4310-D-2000 | W36: =IF(Tabla_Diario[[#This Row],[D/H]]="D",Tabla_Diario[[#This Row],[Importe]],-Tabla_Diario[[#This Row],[Importe]]) -> 2000
N37: 16 | O37: 2000 | P37: 7000 | Q37: Ventas de mercaderías | R37: H | S37: 2015-12-01 | T37: N/F: nº 3-A | U37: 7000-Ventas de mercaderías | V37: 16-7000-H-2000 | W37: =IF(Tabla_Diario[[#This Row],[D/H]]="D",Tabla_Diario[[#This Row],[Importe]],-Tabla_Diario[[#This Row],[Importe]]) -> -2000
D38: =IF(ISERROR(VLOOKUP(Tabla_Asiento_2[[#This Row],[Cta]],PGCtotal[[Nivel 3]:[Subcuenta]],5,FALSE)),"",VLOOKUP(Tabla_Asiento_2[[#This Row],[Cta]],PGCtotal[[Nivel 3]:[Subcuenta]],5,FALSE)) ->  | N38: 17 | O38: 4000 | P38: 6710 | Q38: Pérdidas procedentes del inmovilizado material | R38: D | S38: 2015-12-15 | T38: Accidente furgoneta, siniestro total | U38: 6710-Pérdidas procedentes del inmovilizado material | V38: 17-6710-D-4000 | W38: =IF(Tabla_Diario[[#This Row],[D/H]]="D",Tabla_Diario[[#This Row],[Importe]],-Tabla_Diario[[#This Row],[Importe]]) -> 4000
D39: =IF(ISERROR(VLOOKUP(Tabla_Asiento_2[[#This Row],[Cta]],PGCtotal[[Nivel 3]:[Subcuenta]],5,FALSE)),"",VLOOKUP(Tabla_Asiento_2[[#This Row],[Cta]],PGCtotal[[Nivel 3]:[Subcuenta]],5,FALSE)) ->  | N39: 17 | O39: 4000 | P39: 2180 | Q39: Elementos de transporte | R39: H | S39: 2015-12-15 | T39: Accidente furgoneta, siniestro total | U39: 2180-Elementos de transporte | V39: 17-2180-H-4000 | W39: =IF(Tabla_Diario[[#This Row],[D/H]]="D",Tabla_Diario[[#This Row],[Importe]],-Tabla_Diario[[#This Row],[Importe]]) -> -4000
D40: =IF(ISERROR(VLOOKUP(Tabla_Asiento_2[[#This Row],[Cta]],PGCtotal[[Nivel 3]:[Subcuenta]],5,FALSE)),"",VLOOKUP(Tabla_Asiento_2[[#This Row],[Cta]],PGCtotal[[Nivel 3]:[Subcuenta]],5,FALSE)) ->  | N40: 18 | O40: 1500 | P40: 3000 | Q40: Mercaderías A | R40: D | S40: 2015-12-15 | T40: Regularización de Existencias | U40: 3000-Mercaderías A | V40: 18-3000-D-1500 | W40: =IF(Tabla_Diario[[#This Row],[D/H]]="D",Tabla_Diario[[#This Row],[Importe]],-Tabla_Diario[[#This Row],[Importe]]) -> 1500
D41: =IF(ISERROR(VLOOKUP(Tabla_Asiento_2[[#This Row],[Cta]],PGCtotal[[Nivel 3]:[Subcuenta]],5,FALSE)),"",VLOOKUP(Tabla_Asiento_2[[#This Row],[Cta]],PGCtotal[[Nivel 3]:[Subcuenta]],5,FALSE)) ->  | N41: 18 | O41: 1500 | P41: 6100 | Q41: Variación de existencias de mercaderías | R41: H | S41: 2015-12-15 | T41: Regularización de Existencias | U41: 6100-Variación de existencias de mercaderías | V41: 18-6100-H-1500 | W41: =IF(Tabla_Diario[[#This Row],[D/H]]="D",Tabla_Diario[[#This Row],[Importe]],-Tabla_Diario[[#This Row],[Importe]]) -> -1500
D42: =IF(ISERROR(VLOOKUP(Tabla_Asiento_2[[#This Row],[Cta]],PGCtotal[[Nivel 3]:[Subcuenta]],5,FALSE)),"",VLOOKUP(Tabla_Asiento_2[[#This Row],[Cta]],PGCtotal[[Nivel 3]:[Subcuenta]],5,FALSE)) -> 
D43: =IF(ISERROR(VLOOKUP(Tabla_Asiento_2[[#This Row],[Cta]],PGCtotal[[Nivel 3]:[Subcuenta]],5,FALSE)),"",VLOOKUP(Tabla_Asiento_2[[#This Row],[Cta]],PGCtotal[[Nivel 3]:[Subcuenta]],5,FALSE)) -> 
D44: =IF(ISERROR(VLOOKUP(Tabla_Asiento_2[[#This Row],[Cta]],PGCtotal[[Nivel 3]:[Subcuenta]],5,FALSE)),"",VLOOKUP(Tabla_Asiento_2[[#This Row],[Cta]],PGCtotal[[Nivel 3]:[Subcuenta]],5,FALSE)) -> 
D45: =IF(ISERROR(VLOOKUP(Tabla_Asiento_2[[#This Row],[Cta]],PGCtotal[[Nivel 3]:[Subcuenta]],5,FALSE)),"",VLOOKUP(Tabla_Asiento_2[[#This Row],[Cta]],PGCtotal[[Nivel 3]:[Subcuenta]],5,FALSE)) -> 
D46: =IF(ISERROR(VLOOKUP(Tabla_Asiento_2[[#This Row],[Cta]],PGCtotal[[Nivel 3]:[Subcuenta]],5,FALSE)),"",VLOOKUP(Tabla_Asiento_2[[#This Row],[Cta]],PGCtotal[[Nivel 3]:[Subcuenta]],5,FALSE)) -> 
D47: =IF(ISERROR(VLOOKUP(Tabla_Asiento_2[[#This Row],[Cta]],PGCtotal[[Nivel 3]:[Subcuenta]],5,FALSE)),"",VLOOKUP(Tabla_Asiento_2[[#This Row],[Cta]],PGCtotal[[Nivel 3]:[Subcuenta]],5,FALSE)) -> 
D48: =IF(ISERROR(VLOOKUP(Tabla_Asiento_2[[#This Row],[Cta]],PGCtotal[[Nivel 3]:[Subcuenta]],5,FALSE)),"",VLOOKUP(Tabla_Asiento_2[[#This Row],[Cta]],PGCtotal[[Nivel 3]:[Subcuenta]],5,FALSE)) -> 
D49: =IF(ISERROR(VLOOKUP(Tabla_Asiento_2[[#This Row],[Cta]],PGCtotal[[Nivel 3]:[Subcuenta]],5,FALSE)),"",VLOOKUP(Tabla_Asiento_2[[#This Row],[Cta]],PGCtotal[[Nivel 3]:[Subcuenta]],5,FALSE)) -> 
D50: =IF(ISERROR(VLOOKUP(Tabla_Asiento_2[[#This Row],[Cta]],PGCtotal[[Nivel 3]:[Subcuenta]],5,FALSE)),"",VLOOKUP(Tabla_Asiento_2[[#This Row],[Cta]],PGCtotal[[Nivel 3]:[Subcuenta]],5,FALSE)) -> 
D51: =IF(ISERROR(VLOOKUP(Tabla_Asiento_2[[#This Row],[Cta]],PGCtotal[[Nivel 3]:[Subcuenta]],5,FALSE)),"",VLOOKUP(Tabla_Asiento_2[[#This Row],[Cta]],PGCtotal[[Nivel 3]:[Subcuenta]],5,FALSE)) -> 
D52: =IF(ISERROR(VLOOKUP(Tabla_Asiento_2[[#This Row],[Cta]],PGCtotal[[Nivel 3]:[Subcuenta]],5,FALSE)),"",VLOOKUP(Tabla_Asiento_2[[#This Row],[Cta]],PGCtotal[[Nivel 3]:[Subcuenta]],5,FALSE)) -> 
D53: =IF(ISERROR(VLOOKUP(Tabla_Asiento_2[[#This Row],[Cta]],PGCtotal[[Nivel 3]:[Subcuenta]],5,FALSE)),"",VLOOKUP(Tabla_Asiento_2[[#This Row],[Cta]],PGCtotal[[Nivel 3]:[Subcuenta]],5,FALSE)) -> 
D54: =IF(ISERROR(VLOOKUP(Tabla_Asiento_2[[#This Row],[Cta]],PGCtotal[[Nivel 3]:[Subcuenta]],5,FALSE)),"",VLOOKUP(Tabla_Asiento_2[[#This Row],[Cta]],PGCtotal[[Nivel 3]:[Subcuenta]],5,FALSE)) -> 
D55: =IF(ISERROR(VLOOKUP(Tabla_Asiento_2[[#This Row],[Cta]],PGCtotal[[Nivel 3]:[Subcuenta]],5,FALSE)),"",VLOOKUP(Tabla_Asiento_2[[#This Row],[Cta]],PGCtotal[[Nivel 3]:[Subcuenta]],5,FALSE)) -> 
D56: =IF(ISERROR(VLOOKUP(Tabla_Asiento_2[[#This Row],[Cta]],PGCtotal[[Nivel 3]:[Subcuenta]],5,FALSE)),"",VLOOKUP(Tabla_Asiento_2[[#This Row],[Cta]],PGCtotal[[Nivel 3]:[Subcuenta]],5,FALSE)) -> 
D57: =IF(ISERROR(VLOOKUP(Tabla_Asiento_2[[#This Row],[Cta]],PGCtotal[[Nivel 3]:[Subcuenta]],5,FALSE)),"",VLOOKUP(Tabla_Asiento_2[[#This Row],[Cta]],PGCtotal[[Nivel 3]:[Subcuenta]],5,FALSE)) -> 
D58: =IF(ISERROR(VLOOKUP(Tabla_Asiento_2[[#This Row],[Cta]],PGCtotal[[Nivel 3]:[Subcuenta]],5,FALSE)),"",VLOOKUP(Tabla_Asiento_2[[#This Row],[Cta]],PGCtotal[[Nivel 3]:[Subcuenta]],5,FALSE)) -> 
D59: =IF(ISERROR(VLOOKUP(Tabla_Asiento_2[[#This Row],[Cta]],PGCtotal[[Nivel 3]:[Subcuenta]],5,FALSE)),"",VLOOKUP(Tabla_Asiento_2[[#This Row],[Cta]],PGCtotal[[Nivel 3]:[Subcuenta]],5,FALSE)) -> 
D60: =IF(ISERROR(VLOOKUP(Tabla_Asiento_2[[#This Row],[Cta]],PGCtotal[[Nivel 3]:[Subcuenta]],5,FALSE)),"",VLOOKUP(Tabla_Asiento_2[[#This Row],[Cta]],PGCtotal[[Nivel 3]:[Subcuenta]],5,FALSE)) -> 
D61: =IF(ISERROR(VLOOKUP(Tabla_Asiento_2[[#This Row],[Cta]],PGCtotal[[Nivel 3]:[Subcuenta]],5,FALSE)),"",VLOOKUP(Tabla_Asiento_2[[#This Row],[Cta]],PGCtotal[[Nivel 3]:[Subcuenta]],5,FALSE)) -> 
D62: =IF(ISERROR(VLOOKUP(Tabla_Asiento_2[[#This Row],[Cta]],PGCtotal[[Nivel 3]:[Subcuenta]],5,FALSE)),"",VLOOKUP(Tabla_Asiento_2[[#This Row],[Cta]],PGCtotal[[Nivel 3]:[Subcuenta]],5,FALSE)) -> 
D63: =IF(ISERROR(VLOOKUP(Tabla_Asiento_2[[#This Row],[Cta]],PGCtotal[[Nivel 3]:[Subcuenta]],5,FALSE)),"",VLOOKUP(Tabla_Asiento_2[[#This Row],[Cta]],PGCtotal[[Nivel 3]:[Subcuenta]],5,FALSE)) -> 
D64: =IF(ISERROR(VLOOKUP(Tabla_Asiento_2[[#This Row],[Cta]],PGCtotal[[Nivel 3]:[Subcuenta]],5,FALSE)),"",VLOOKUP(Tabla_Asiento_2[[#This Row],[Cta]],PGCtotal[[Nivel 3]:[Subcuenta]],5,FALSE)) -> 
D65: =IF(ISERROR(VLOOKUP(Tabla_Asiento_2[[#This Row],[Cta]],PGCtotal[[Nivel 3]:[Subcuenta]],5,FALSE)),"",VLOOKUP(Tabla_Asiento_2[[#This Row],[Cta]],PGCtotal[[Nivel 3]:[Subcuenta]],5,FALSE)) -> 
D66: =IF(ISERROR(VLOOKUP(Tabla_Asiento_2[[#This Row],[Cta]],PGCtotal[[Nivel 3]:[Subcuenta]],5,FALSE)),"",VLOOKUP(Tabla_Asiento_2[[#This Row],[Cta]],PGCtotal[[Nivel 3]:[Subcuenta]],5,FALSE)) -> 
D67: =IF(ISERROR(VLOOKUP(Tabla_Asiento_2[[#This Row],[Cta]],PGCtotal[[Nivel 3]:[Subcuenta]],5,FALSE)),"",VLOOKUP(Tabla_Asiento_2[[#This Row],[Cta]],PGCtotal[[Nivel 3]:[Subcuenta]],5,FALSE)) -> 
D68: =IF(ISERROR(VLOOKUP(Tabla_Asiento_2[[#This Row],[Cta]],PGCtotal[[Nivel 3]:[Subcuenta]],5,FALSE)),"",VLOOKUP(Tabla_Asiento_2[[#This Row],[Cta]],PGCtotal[[Nivel 3]:[Subcuenta]],5,FALSE)) -> 
D69: =IF(ISERROR(VLOOKUP(Tabla_Asiento_2[[#This Row],[Cta]],PGCtotal[[Nivel 3]:[Subcuenta]],5,FALSE)),"",VLOOKUP(Tabla_Asiento_2[[#This Row],[Cta]],PGCtotal[[Nivel 3]:[Subcuenta]],5,FALSE)) -> 
D70: =IF(ISERROR(VLOOKUP(Tabla_Asiento_2[[#This Row],[Cta]],PGCtotal[[Nivel 3]:[Subcuenta]],5,FALSE)),"",VLOOKUP(Tabla_Asiento_2[[#This Row],[Cta]],PGCtotal[[Nivel 3]:[Subcuenta]],5,FALSE)) -> 
D71: =IF(ISERROR(VLOOKUP(Tabla_Asiento_2[[#This Row],[Cta]],PGCtotal[[Nivel 3]:[Subcuenta]],5,FALSE)),"",VLOOKUP(Tabla_Asiento_2[[#This Row],[Cta]],PGCtotal[[Nivel 3]:[Subcuenta]],5,FALSE)) -> 
D72: =IF(ISERROR(VLOOKUP(Tabla_Asiento_2[[#This Row],[Cta]],PGCtotal[[Nivel 3]:[Subcuenta]],5,FALSE)),"",VLOOKUP(Tabla_Asiento_2[[#This Row],[Cta]],PGCtotal[[Nivel 3]:[Subcuenta]],5,FALSE)) -> 
D73: =IF(ISERROR(VLOOKUP(Tabla_Asiento_2[[#This Row],[Cta]],PGCtotal[[Nivel 3]:[Subcuenta]],5,FALSE)),"",VLOOKUP(Tabla_Asiento_2[[#This Row],[Cta]],PGCtotal[[Nivel 3]:[Subcuenta]],5,FALSE)) -> 
D74: =IF(ISERROR(VLOOKUP(Tabla_Asiento_2[[#This Row],[Cta]],PGCtotal[[Nivel 3]:[Subcuenta]],5,FALSE)),"",VLOOKUP(Tabla_Asiento_2[[#This Row],[Cta]],PGCtotal[[Nivel 3]:[Subcuenta]],5,FALSE)) -> 
D75: =IF(ISERROR(VLOOKUP(Tabla_Asiento_2[[#This Row],[Cta]],PGCtotal[[Nivel 3]:[Subcuenta]],5,FALSE)),"",VLOOKUP(Tabla_Asiento_2[[#This Row],[Cta]],PGCtotal[[Nivel 3]:[Subcuenta]],5,FALSE)) -> 
D76: =IF(ISERROR(VLOOKUP(Tabla_Asiento_2[[#This Row],[Cta]],PGCtotal[[Nivel 3]:[Subcuenta]],5,FALSE)),"",VLOOKUP(Tabla_Asiento_2[[#This Row],[Cta]],PGCtotal[[Nivel 3]:[Subcuenta]],5,FALSE)) -> 
D77: =IF(ISERROR(VLOOKUP(Tabla_Asiento_2[[#This Row],[Cta]],PGCtotal[[Nivel 3]:[Subcuenta]],5,FALSE)),"",VLOOKUP(Tabla_Asiento_2[[#This Row],[Cta]],PGCtotal[[Nivel 3]:[Subcuenta]],5,FALSE)) -> 
D78: =IF(ISERROR(VLOOKUP(Tabla_Asiento_2[[#This Row],[Cta]],PGCtotal[[Nivel 3]:[Subcuenta]],5,FALSE)),"",VLOOKUP(Tabla_Asiento_2[[#This Row],[Cta]],PGCtotal[[Nivel 3]:[Subcuenta]],5,FALSE)) -> 
D79: =IF(ISERROR(VLOOKUP(Tabla_Asiento_2[[#This Row],[Cta]],PGCtotal[[Nivel 3]:[Subcuenta]],5,FALSE)),"",VLOOKUP(Tabla_Asiento_2[[#This Row],[Cta]],PGCtotal[[Nivel 3]:[Subcuenta]],5,FALSE)) -> 
D80: =IF(ISERROR(VLOOKUP(Tabla_Asiento_2[[#This Row],[Cta]],PGCtotal[[Nivel 3]:[Subcuenta]],5,FALSE)),"",VLOOKUP(Tabla_Asiento_2[[#This Row],[Cta]],PGCtotal[[Nivel 3]:[Subcuenta]],5,FALSE)) -> 
D81: =IF(ISERROR(VLOOKUP(Tabla_Asiento_2[[#This Row],[Cta]],PGCtotal[[Nivel 3]:[Subcuenta]],5,FALSE)),"",VLOOKUP(Tabla_Asiento_2[[#This Row],[Cta]],PGCtotal[[Nivel 3]:[Subcuenta]],5,FALSE)) -> 
D82: =IF(ISERROR(VLOOKUP(Tabla_Asiento_2[[#This Row],[Cta]],PGCtotal[[Nivel 3]:[Subcuenta]],5,FALSE)),"",VLOOKUP(Tabla_Asiento_2[[#This Row],[Cta]],PGCtotal[[Nivel 3]:[Subcuenta]],5,FALSE)) -> 
D83: =IF(ISERROR(VLOOKUP(Tabla_Asiento_2[[#This Row],[Cta]],PGCtotal[[Nivel 3]:[Subcuenta]],5,FALSE)),"",VLOOKUP(Tabla_Asiento_2[[#This Row],[Cta]],PGCtotal[[Nivel 3]:[Subcuenta]],5,FALSE)) -> 
D84: =IF(ISERROR(VLOOKUP(Tabla_Asiento_2[[#This Row],[Cta]],PGCtotal[[Nivel 3]:[Subcuenta]],5,FALSE)),"",VLOOKUP(Tabla_Asiento_2[[#This Row],[Cta]],PGCtotal[[Nivel 3]:[Subcuenta]],5,FALSE)) -> 
D85: =IF(ISERROR(VLOOKUP(Tabla_Asiento_2[[#This Row],[Cta]],PGCtotal[[Nivel 3]:[Subcuenta]],5,FALSE)),"",VLOOKUP(Tabla_Asiento_2[[#This Row],[Cta]],PGCtotal[[Nivel 3]:[Subcuenta]],5,FALSE)) -> 
D86: =IF(ISERROR(VLOOKUP(Tabla_Asiento_2[[#This Row],[Cta]],PGCtotal[[Nivel 3]:[Subcuenta]],5,FALSE)),"",VLOOKUP(Tabla_Asiento_2[[#This Row],[Cta]],PGCtotal[[Nivel 3]:[Subcuenta]],5,FALSE)) -> 
D87: =IF(ISERROR(VLOOKUP(Tabla_Asiento_2[[#This Row],[Cta]],PGCtotal[[Nivel 3]:[Subcuenta]],5,FALSE)),"",VLOOKUP(Tabla_Asiento_2[[#This Row],[Cta]],PGCtotal[[Nivel 3]:[Subcuenta]],5,FALSE)) -> 
D88: =IF(ISERROR(VLOOKUP(Tabla_Asiento_2[[#This Row],[Cta]],PGCtotal[[Nivel 3]:[Subcuenta]],5,FALSE)),"",VLOOKUP(Tabla_Asiento_2[[#This Row],[Cta]],PGCtotal[[Nivel 3]:[Subcuenta]],5,FALSE)) -> 
D89: =IF(ISERROR(VLOOKUP(Tabla_Asiento_2[[#This Row],[Cta]],PGCtotal[[Nivel 3]:[Subcuenta]],5,FALSE)),"",VLOOKUP(Tabla_Asiento_2[[#This Row],[Cta]],PGCtotal[[Nivel 3]:[Subcuenta]],5,FALSE)) -> 
D90: =IF(ISERROR(VLOOKUP(Tabla_Asiento_2[[#This Row],[Cta]],PGCtotal[[Nivel 3]:[Subcuenta]],5,FALSE)),"",VLOOKUP(Tabla_Asiento_2[[#This Row],[Cta]],PGCtotal[[Nivel 3]:[Subcuenta]],5,FALSE)) -> 
D91: =IF(ISERROR(VLOOKUP(Tabla_Asiento_2[[#This Row],[Cta]],PGCtotal[[Nivel 3]:[Subcuenta]],5,FALSE)),"",VLOOKUP(Tabla_Asiento_2[[#This Row],[Cta]],PGCtotal[[Nivel 3]:[Subcuenta]],5,FALSE)) -> 
D92: =IF(ISERROR(VLOOKUP(Tabla_Asiento_2[[#This Row],[Cta]],PGCtotal[[Nivel 3]:[Subcuenta]],5,FALSE)),"",VLOOKUP(Tabla_Asiento_2[[#This Row],[Cta]],PGCtotal[[Nivel 3]:[Subcuenta]],5,FALSE)) -> 
D93: =IF(ISERROR(VLOOKUP(Tabla_Asiento_2[[#This Row],[Cta]],PGCtotal[[Nivel 3]:[Subcuenta]],5,FALSE)),"",VLOOKUP(Tabla_Asiento_2[[#This Row],[Cta]],PGCtotal[[Nivel 3]:[Subcuenta]],5,FALSE)) -> 
D94: =IF(ISERROR(VLOOKUP(Tabla_Asiento_2[[#This Row],[Cta]],PGCtotal[[Nivel 3]:[Subcuenta]],5,FALSE)),"",VLOOKUP(Tabla_Asiento_2[[#This Row],[Cta]],PGCtotal[[Nivel 3]:[Subcuenta]],5,FALSE)) -> 
D95: =IF(ISERROR(VLOOKUP(Tabla_Asiento_2[[#This Row],[Cta]],PGCtotal[[Nivel 3]:[Subcuenta]],5,FALSE)),"",VLOOKUP(Tabla_Asiento_2[[#This Row],[Cta]],PGCtotal[[Nivel 3]:[Subcuenta]],5,FALSE)) -> 
D96: =IF(ISERROR(VLOOKUP(Tabla_Asiento_2[[#This Row],[Cta]],PGCtotal[[Nivel 3]:[Subcuenta]],5,FALSE)),"",VLOOKUP(Tabla_Asiento_2[[#This Row],[Cta]],PGCtotal[[Nivel 3]:[Subcuenta]],5,FALSE)) -> 
D97: =IF(ISERROR(VLOOKUP(Tabla_Asiento_2[[#This Row],[Cta]],PGCtotal[[Nivel 3]:[Subcuenta]],5,FALSE)),"",VLOOKUP(Tabla_Asiento_2[[#This Row],[Cta]],PGCtotal[[Nivel 3]:[Subcuenta]],5,FALSE)) -> 
D98: =IF(ISERROR(VLOOKUP(Tabla_Asiento_2[[#This Row],[Cta]],PGCtotal[[Nivel 3]:[Subcuenta]],5,FALSE)),"",VLOOKUP(Tabla_Asiento_2[[#This Row],[Cta]],PGCtotal[[Nivel 3]:[Subcuenta]],5,FALSE)) -> 
D99: =IF(ISERROR(VLOOKUP(Tabla_Asiento_2[[#This Row],[Cta]],PGCtotal[[Nivel 3]:[Subcuenta]],5,FALSE)),"",VLOOKUP(Tabla_Asiento_2[[#This Row],[Cta]],PGCtotal[[Nivel 3]:[Subcuenta]],5,FALSE)) -> 
D100: =IF(ISERROR(VLOOKUP(Tabla_Asiento_2[[#This Row],[Cta]],PGCtotal[[Nivel 3]:[Subcuenta]],5,FALSE)),"",VLOOKUP(Tabla_Asiento_2[[#This Row],[Cta]],PGCtotal[[Nivel 3]:[Subcuenta]],5,FALSE)) -> 
D101: =IF(ISERROR(VLOOKUP(Tabla_Asiento_2[[#This Row],[Cta]],PGCtotal[[Nivel 3]:[Subcuenta]],5,FALSE)),"",VLOOKUP(Tabla_Asiento_2[[#This Row],[Cta]],PGCtotal[[Nivel 3]:[Subcuenta]],5,FALSE)) -> 
D102: =IF(ISERROR(VLOOKUP(Tabla_Asiento_2[[#This Row],[Cta]],PGCtotal[[Nivel 3]:[Subcuenta]],5,FALSE)),"",VLOOKUP(Tabla_Asiento_2[[#This Row],[Cta]],PGCtotal[[Nivel 3]:[Subcuenta]],5,FALSE)) -> 
D103: =IF(ISERROR(VLOOKUP(Tabla_Asiento_2[[#This Row],[Cta]],PGCtotal[[Nivel 3]:[Subcuenta]],5,FALSE)),"",VLOOKUP(Tabla_Asiento_2[[#This Row],[Cta]],PGCtotal[[Nivel 3]:[Subcuenta]],5,FALSE)) -> 
D104: =IF(ISERROR(VLOOKUP(Tabla_Asiento_2[[#This Row],[Cta]],PGCtotal[[Nivel 3]:[Subcuenta]],5,FALSE)),"",VLOOKUP(Tabla_Asiento_2[[#This Row],[Cta]],PGCtotal[[Nivel 3]:[Subcuenta]],5,FALSE)) -> 
D105: =IF(ISERROR(VLOOKUP(Tabla_Asiento_2[[#This Row],[Cta]],PGCtotal[[Nivel 3]:[Subcuenta]],5,FALSE)),"",VLOOKUP(Tabla_Asiento_2[[#This Row],[Cta]],PGCtotal[[Nivel 3]:[Subcuenta]],5,FALSE)) -> 
D106: =IF(ISERROR(VLOOKUP(Tabla_Asiento_2[[#This Row],[Cta]],PGCtotal[[Nivel 3]:[Subcuenta]],5,FALSE)),"",VLOOKUP(Tabla_Asiento_2[[#This Row],[Cta]],PGCtotal[[Nivel 3]:[Subcuenta]],5,FALSE)) -> 
D107: =IF(ISERROR(VLOOKUP(Tabla_Asiento_2[[#This Row],[Cta]],PGCtotal[[Nivel 3]:[Subcuenta]],5,FALSE)),"",VLOOKUP(Tabla_Asiento_2[[#This Row],[Cta]],PGCtotal[[Nivel 3]:[Subcuenta]],5,FALSE)) -> 
D108: =IF(ISERROR(VLOOKUP(Tabla_Asiento_2[[#This Row],[Cta]],PGCtotal[[Nivel 3]:[Subcuenta]],5,FALSE)),"",VLOOKUP(Tabla_Asiento_2[[#This Row],[Cta]],PGCtotal[[Nivel 3]:[Subcuenta]],5,FALSE)) -> 
D109: =IF(ISERROR(VLOOKUP(Tabla_Asiento_2[[#This Row],[Cta]],PGCtotal[[Nivel 3]:[Subcuenta]],5,FALSE)),"",VLOOKUP(Tabla_Asiento_2[[#This Row],[Cta]],PGCtotal[[Nivel 3]:[Subcuenta]],5,FALSE)) -> 
D110: =IF(ISERROR(VLOOKUP(Tabla_Asiento_2[[#This Row],[Cta]],PGCtotal[[Nivel 3]:[Subcuenta]],5,FALSE)),"",VLOOKUP(Tabla_Asiento_2[[#This Row],[Cta]],PGCtotal[[Nivel 3]:[Subcuenta]],5,FALSE)) -> 
D111: =IF(ISERROR(VLOOKUP(Tabla_Asiento_2[[#This Row],[Cta]],PGCtotal[[Nivel 3]:[Subcuenta]],5,FALSE)),"",VLOOKUP(Tabla_Asiento_2[[#This Row],[Cta]],PGCtotal[[Nivel 3]:[Subcuenta]],5,FALSE)) -> 
D112: =IF(ISERROR(VLOOKUP(Tabla_Asiento_2[[#This Row],[Cta]],PGCtotal[[Nivel 3]:[Subcuenta]],5,FALSE)),"",VLOOKUP(Tabla_Asiento_2[[#This Row],[Cta]],PGCtotal[[Nivel 3]:[Subcuenta]],5,FALSE)) -> 
D113: =IF(ISERROR(VLOOKUP(Tabla_Asiento_2[[#This Row],[Cta]],PGCtotal[[Nivel 3]:[Subcuenta]],5,FALSE)),"",VLOOKUP(Tabla_Asiento_2[[#This Row],[Cta]],PGCtotal[[Nivel 3]:[Subcuenta]],5,FALSE)) -> 
D114: =IF(ISERROR(VLOOKUP(Tabla_Asiento_2[[#This Row],[Cta]],PGCtotal[[Nivel 3]:[Subcuenta]],5,FALSE)),"",VLOOKUP(Tabla_Asiento_2[[#This Row],[Cta]],PGCtotal[[Nivel 3]:[Subcuenta]],5,FALSE)) -> 
D115: =IF(ISERROR(VLOOKUP(Tabla_Asiento_2[[#This Row],[Cta]],PGCtotal[[Nivel 3]:[Subcuenta]],5,FALSE)),"",VLOOKUP(Tabla_Asiento_2[[#This Row],[Cta]],PGCtotal[[Nivel 3]:[Subcuenta]],5,FALSE)) -> 
D116: =IF(ISERROR(VLOOKUP(Tabla_Asiento_2[[#This Row],[Cta]],PGCtotal[[Nivel 3]:[Subcuenta]],5,FALSE)),"",VLOOKUP(Tabla_Asiento_2[[#This Row],[Cta]],PGCtotal[[Nivel 3]:[Subcuenta]],5,FALSE)) -> 
D117: =IF(ISERROR(VLOOKUP(Tabla_Asiento_2[[#This Row],[Cta]],PGCtotal[[Nivel 3]:[Subcuenta]],5,FALSE)),"",VLOOKUP(Tabla_Asiento_2[[#This Row],[Cta]],PGCtotal[[Nivel 3]:[Subcuenta]],5,FALSE)) -> 
D118: =IF(ISERROR(VLOOKUP(Tabla_Asiento_2[[#This Row],[Cta]],PGCtotal[[Nivel 3]:[Subcuenta]],5,FALSE)),"",VLOOKUP(Tabla_Asiento_2[[#This Row],[Cta]],PGCtotal[[Nivel 3]:[Subcuenta]],5,FALSE)) -> 
D119: =IF(ISERROR(VLOOKUP(Tabla_Asiento_2[[#This Row],[Cta]],PGCtotal[[Nivel 3]:[Subcuenta]],5,FALSE)),"",VLOOKUP(Tabla_Asiento_2[[#This Row],[Cta]],PGCtotal[[Nivel 3]:[Subcuenta]],5,FALSE)) -> 
D120: =IF(ISERROR(VLOOKUP(Tabla_Asiento_2[[#This Row],[Cta]],PGCtotal[[Nivel 3]:[Subcuenta]],5,FALSE)),"",VLOOKUP(Tabla_Asiento_2[[#This Row],[Cta]],PGCtotal[[Nivel 3]:[Subcuenta]],5,FALSE)) -> 
D121: =IF(ISERROR(VLOOKUP(Tabla_Asiento_2[[#This Row],[Cta]],PGCtotal[[Nivel 3]:[Subcuenta]],5,FALSE)),"",VLOOKUP(Tabla_Asiento_2[[#This Row],[Cta]],PGCtotal[[Nivel 3]:[Subcuenta]],5,FALSE)) -> 
D122: =IF(ISERROR(VLOOKUP(Tabla_Asiento_2[[#This Row],[Cta]],PGCtotal[[Nivel 3]:[Subcuenta]],5,FALSE)),"",VLOOKUP(Tabla_Asiento_2[[#This Row],[Cta]],PGCtotal[[Nivel 3]:[Subcuenta]],5,FALSE)) -> 
D123: =IF(ISERROR(VLOOKUP(Tabla_Asiento_2[[#This Row],[Cta]],PGCtotal[[Nivel 3]:[Subcuenta]],5,FALSE)),"",VLOOKUP(Tabla_Asiento_2[[#This Row],[Cta]],PGCtotal[[Nivel 3]:[Subcuenta]],5,FALSE)) -> 
D124: =IF(ISERROR(VLOOKUP(Tabla_Asiento_2[[#This Row],[Cta]],PGCtotal[[Nivel 3]:[Subcuenta]],5,FALSE)),"",VLOOKUP(Tabla_Asiento_2[[#This Row],[Cta]],PGCtotal[[Nivel 3]:[Subcuenta]],5,FALSE)) -> 
D125: =IF(ISERROR(VLOOKUP(Tabla_Asiento_2[[#This Row],[Cta]],PGCtotal[[Nivel 3]:[Subcuenta]],5,FALSE)),"",VLOOKUP(Tabla_Asiento_2[[#This Row],[Cta]],PGCtotal[[Nivel 3]:[Subcuenta]],5,FALSE)) -> 
D126: =IF(ISERROR(VLOOKUP(Tabla_Asiento_2[[#This Row],[Cta]],PGCtotal[[Nivel 3]:[Subcuenta]],5,FALSE)),"",VLOOKUP(Tabla_Asiento_2[[#This Row],[Cta]],PGCtotal[[Nivel 3]:[Subcuenta]],5,FALSE)) -> 
D127: =IF(ISERROR(VLOOKUP(Tabla_Asiento_2[[#This Row],[Cta]],PGCtotal[[Nivel 3]:[Subcuenta]],5,FALSE)),"",VLOOKUP(Tabla_Asiento_2[[#This Row],[Cta]],PGCtotal[[Nivel 3]:[Subcuenta]],5,FALSE)) -> 
D128: =IF(ISERROR(VLOOKUP(Tabla_Asiento_2[[#This Row],[Cta]],PGCtotal[[Nivel 3]:[Subcuenta]],5,FALSE)),"",VLOOKUP(Tabla_Asiento_2[[#This Row],[Cta]],PGCtotal[[Nivel 3]:[Subcuenta]],5,FALSE)) -> 
D129: =IF(ISERROR(VLOOKUP(Tabla_Asiento_2[[#This Row],[Cta]],PGCtotal[[Nivel 3]:[Subcuenta]],5,FALSE)),"",VLOOKUP(Tabla_Asiento_2[[#This Row],[Cta]],PGCtotal[[Nivel 3]:[Subcuenta]],5,FALSE)) -> 
D130: =IF(ISERROR(VLOOKUP(Tabla_Asiento_2[[#This Row],[Cta]],PGCtotal[[Nivel 3]:[Subcuenta]],5,FALSE)),"",VLOOKUP(Tabla_Asiento_2[[#This Row],[Cta]],PGCtotal[[Nivel 3]:[Subcuenta]],5,FALSE)) -> 
D131: =IF(ISERROR(VLOOKUP(Tabla_Asiento_2[[#This Row],[Cta]],PGCtotal[[Nivel 3]:[Subcuenta]],5,FALSE)),"",VLOOKUP(Tabla_Asiento_2[[#This Row],[Cta]],PGCtotal[[Nivel 3]:[Subcuenta]],5,FALSE)) -> 
D132: =IF(ISERROR(VLOOKUP(Tabla_Asiento_2[[#This Row],[Cta]],PGCtotal[[Nivel 3]:[Subcuenta]],5,FALSE)),"",VLOOKUP(Tabla_Asiento_2[[#This Row],[Cta]],PGCtotal[[Nivel 3]:[Subcuenta]],5,FALSE)) -> 
D133: =IF(ISERROR(VLOOKUP(Tabla_Asiento_2[[#This Row],[Cta]],PGCtotal[[Nivel 3]:[Subcuenta]],5,FALSE)),"",VLOOKUP(Tabla_Asiento_2[[#This Row],[Cta]],PGCtotal[[Nivel 3]:[Subcuenta]],5,FALSE)) -> 
D134: =IF(ISERROR(VLOOKUP(Tabla_Asiento_2[[#This Row],[Cta]],PGCtotal[[Nivel 3]:[Subcuenta]],5,FALSE)),"",VLOOKUP(Tabla_Asiento_2[[#This Row],[Cta]],PGCtotal[[Nivel 3]:[Subcuenta]],5,FALSE)) -> 
D135: =IF(ISERROR(VLOOKUP(Tabla_Asiento_2[[#This Row],[Cta]],PGCtotal[[Nivel 3]:[Subcuenta]],5,FALSE)),"",VLOOKUP(Tabla_Asiento_2[[#This Row],[Cta]],PGCtotal[[Nivel 3]:[Subcuenta]],5,FALSE)) -> 
D136: =IF(ISERROR(VLOOKUP(Tabla_Asiento_2[[#This Row],[Cta]],PGCtotal[[Nivel 3]:[Subcuenta]],5,FALSE)),"",VLOOKUP(Tabla_Asiento_2[[#This Row],[Cta]],PGCtotal[[Nivel 3]:[Subcuenta]],5,FALSE)) -> 
D137: =IF(ISERROR(VLOOKUP(Tabla_Asiento_2[[#This Row],[Cta]],PGCtotal[[Nivel 3]:[Subcuenta]],5,FALSE)),"",VLOOKUP(Tabla_Asiento_2[[#This Row],[Cta]],PGCtotal[[Nivel 3]:[Subcuenta]],5,FALSE)) -> 
D138: =IF(ISERROR(VLOOKUP(Tabla_Asiento_2[[#This Row],[Cta]],PGCtotal[[Nivel 3]:[Subcuenta]],5,FALSE)),"",VLOOKUP(Tabla_Asiento_2[[#This Row],[Cta]],PGCtotal[[Nivel 3]:[Subcuenta]],5,FALSE)) -> 
D139: =IF(ISERROR(VLOOKUP(Tabla_Asiento_2[[#This Row],[Cta]],PGCtotal[[Nivel 3]:[Subcuenta]],5,FALSE)),"",VLOOKUP(Tabla_Asiento_2[[#This Row],[Cta]],PGCtotal[[Nivel 3]:[Subcuenta]],5,FALSE)) -> 
D140: =IF(ISERROR(VLOOKUP(Tabla_Asiento_2[[#This Row],[Cta]],PGCtotal[[Nivel 3]:[Subcuenta]],5,FALSE)),"",VLOOKUP(Tabla_Asiento_2[[#This Row],[Cta]],PGCtotal[[Nivel 3]:[Subcuenta]],5,FALSE)) -> 
D141: =IF(ISERROR(VLOOKUP(Tabla_Asiento_2[[#This Row],[Cta]],PGCtotal[[Nivel 3]:[Subcuenta]],5,FALSE)),"",VLOOKUP(Tabla_Asiento_2[[#This Row],[Cta]],PGCtotal[[Nivel 3]:[Subcuenta]],5,FALSE)) -> 
D142: =IF(ISERROR(VLOOKUP(Tabla_Asiento_2[[#This Row],[Cta]],PGCtotal[[Nivel 3]:[Subcuenta]],5,FALSE)),"",VLOOKUP(Tabla_Asiento_2[[#This Row],[Cta]],PGCtotal[[Nivel 3]:[Subcuenta]],5,FALSE)) -> 
D143: =IF(ISERROR(VLOOKUP(Tabla_Asiento_2[[#This Row],[Cta]],PGCtotal[[Nivel 3]:[Subcuenta]],5,FALSE)),"",VLOOKUP(Tabla_Asiento_2[[#This Row],[Cta]],PGCtotal[[Nivel 3]:[Subcuenta]],5,FALSE)) -> 
D144: =IF(ISERROR(VLOOKUP(Tabla_Asiento_2[[#This Row],[Cta]],PGCtotal[[Nivel 3]:[Subcuenta]],5,FALSE)),"",VLOOKUP(Tabla_Asiento_2[[#This Row],[Cta]],PGCtotal[[Nivel 3]:[Subcuenta]],5,FALSE)) -> 
D145: =IF(ISERROR(VLOOKUP(Tabla_Asiento_2[[#This Row],[Cta]],PGCtotal[[Nivel 3]:[Subcuenta]],5,FALSE)),"",VLOOKUP(Tabla_Asiento_2[[#This Row],[Cta]],PGCtotal[[Nivel 3]:[Subcuenta]],5,FALSE)) -> 
D146: =IF(ISERROR(VLOOKUP(Tabla_Asiento_2[[#This Row],[Cta]],PGCtotal[[Nivel 3]:[Subcuenta]],5,FALSE)),"",VLOOKUP(Tabla_Asiento_2[[#This Row],[Cta]],PGCtotal[[Nivel 3]:[Subcuenta]],5,FALSE)) -> 
D147: =IF(ISERROR(VLOOKUP(Tabla_Asiento_2[[#This Row],[Cta]],PGCtotal[[Nivel 3]:[Subcuenta]],5,FALSE)),"",VLOOKUP(Tabla_Asiento_2[[#This Row],[Cta]],PGCtotal[[Nivel 3]:[Subcuenta]],5,FALSE)) -> 
D148: =IF(ISERROR(VLOOKUP(Tabla_Asiento_2[[#This Row],[Cta]],PGCtotal[[Nivel 3]:[Subcuenta]],5,FALSE)),"",VLOOKUP(Tabla_Asiento_2[[#This Row],[Cta]],PGCtotal[[Nivel 3]:[Subcuenta]],5,FALSE)) -> 
D149: =IF(ISERROR(VLOOKUP(Tabla_Asiento_2[[#This Row],[Cta]],PGCtotal[[Nivel 3]:[Subcuenta]],5,FALSE)),"",VLOOKUP(Tabla_Asiento_2[[#This Row],[Cta]],PGCtotal[[Nivel 3]:[Subcuenta]],5,FALSE)) -> 
D150: =IF(ISERROR(VLOOKUP(Tabla_Asiento_2[[#This Row],[Cta]],PGCtotal[[Nivel 3]:[Subcuenta]],5,FALSE)),"",VLOOKUP(Tabla_Asiento_2[[#This Row],[Cta]],PGCtotal[[Nivel 3]:[Subcuenta]],5,FALSE)) -> 
D151: =IF(ISERROR(VLOOKUP(Tabla_Asiento_2[[#This Row],[Cta]],PGCtotal[[Nivel 3]:[Subcuenta]],5,FALSE)),"",VLOOKUP(Tabla_Asiento_2[[#This Row],[Cta]],PGCtotal[[Nivel 3]:[Subcuenta]],5,FALSE)) -> 
D152: =IF(ISERROR(VLOOKUP(Tabla_Asiento_2[[#This Row],[Cta]],PGCtotal[[Nivel 3]:[Subcuenta]],5,FALSE)),"",VLOOKUP(Tabla_Asiento_2[[#This Row],[Cta]],PGCtotal[[Nivel 3]:[Subcuenta]],5,FALSE)) -> 
D153: =IF(ISERROR(VLOOKUP(Tabla_Asiento_2[[#This Row],[Cta]],PGCtotal[[Nivel 3]:[Subcuenta]],5,FALSE)),"",VLOOKUP(Tabla_Asiento_2[[#This Row],[Cta]],PGCtotal[[Nivel 3]:[Subcuenta]],5,FALSE)) -> 
D154: =IF(ISERROR(VLOOKUP(Tabla_Asiento_2[[#This Row],[Cta]],PGCtotal[[Nivel 3]:[Subcuenta]],5,FALSE)),"",VLOOKUP(Tabla_Asiento_2[[#This Row],[Cta]],PGCtotal[[Nivel 3]:[Subcuenta]],5,FALSE)) -> 
D155: =IF(ISERROR(VLOOKUP(Tabla_Asiento_2[[#This Row],[Cta]],PGCtotal[[Nivel 3]:[Subcuenta]],5,FALSE)),"",VLOOKUP(Tabla_Asiento_2[[#This Row],[Cta]],PGCtotal[[Nivel 3]:[Subcuenta]],5,FALSE)) -> 
D156: =IF(ISERROR(VLOOKUP(Tabla_Asiento_2[[#This Row],[Cta]],PGCtotal[[Nivel 3]:[Subcuenta]],5,FALSE)),"",VLOOKUP(Tabla_Asiento_2[[#This Row],[Cta]],PGCtotal[[Nivel 3]:[Subcuenta]],5,FALSE)) -> 
D157: =IF(ISERROR(VLOOKUP(Tabla_Asiento_2[[#This Row],[Cta]],PGCtotal[[Nivel 3]:[Subcuenta]],5,FALSE)),"",VLOOKUP(Tabla_Asiento_2[[#This Row],[Cta]],PGCtotal[[Nivel 3]:[Subcuenta]],5,FALSE)) -> 
D158: =IF(ISERROR(VLOOKUP(Tabla_Asiento_2[[#This Row],[Cta]],PGCtotal[[Nivel 3]:[Subcuenta]],5,FALSE)),"",VLOOKUP(Tabla_Asiento_2[[#This Row],[Cta]],PGCtotal[[Nivel 3]:[Subcuenta]],5,FALSE)) -> 
D159: =IF(ISERROR(VLOOKUP(Tabla_Asiento_2[[#This Row],[Cta]],PGCtotal[[Nivel 3]:[Subcuenta]],5,FALSE)),"",VLOOKUP(Tabla_Asiento_2[[#This Row],[Cta]],PGCtotal[[Nivel 3]:[Subcuenta]],5,FALSE)) -> 
D160: =IF(ISERROR(VLOOKUP(Tabla_Asiento_2[[#This Row],[Cta]],PGCtotal[[Nivel 3]:[Subcuenta]],5,FALSE)),"",VLOOKUP(Tabla_Asiento_2[[#This Row],[Cta]],PGCtotal[[Nivel 3]:[Subcuenta]],5,FALSE)) -> 
D161: =IF(ISERROR(VLOOKUP(Tabla_Asiento_2[[#This Row],[Cta]],PGCtotal[[Nivel 3]:[Subcuenta]],5,FALSE)),"",VLOOKUP(Tabla_Asiento_2[[#This Row],[Cta]],PGCtotal[[Nivel 3]:[Subcuenta]],5,FALSE)) -> 
D162: =IF(ISERROR(VLOOKUP(Tabla_Asiento_2[[#This Row],[Cta]],PGCtotal[[Nivel 3]:[Subcuenta]],5,FALSE)),"",VLOOKUP(Tabla_Asiento_2[[#This Row],[Cta]],PGCtotal[[Nivel 3]:[Subcuenta]],5,FALSE)) -> 
D163: =IF(ISERROR(VLOOKUP(Tabla_Asiento_2[[#This Row],[Cta]],PGCtotal[[Nivel 3]:[Subcuenta]],5,FALSE)),"",VLOOKUP(Tabla_Asiento_2[[#This Row],[Cta]],PGCtotal[[Nivel 3]:[Subcuenta]],5,FALSE)) -> 
D164: =IF(ISERROR(VLOOKUP(Tabla_Asiento_2[[#This Row],[Cta]],PGCtotal[[Nivel 3]:[Subcuenta]],5,FALSE)),"",VLOOKUP(Tabla_Asiento_2[[#This Row],[Cta]],PGCtotal[[Nivel 3]:[Subcuenta]],5,FALSE)) -> 
D165: =IF(ISERROR(VLOOKUP(Tabla_Asiento_2[[#This Row],[Cta]],PGCtotal[[Nivel 3]:[Subcuenta]],5,FALSE)),"",VLOOKUP(Tabla_Asiento_2[[#This Row],[Cta]],PGCtotal[[Nivel 3]:[Subcuenta]],5,FALSE)) -> 
D166: =IF(ISERROR(VLOOKUP(Tabla_Asiento_2[[#This Row],[Cta]],PGCtotal[[Nivel 3]:[Subcuenta]],5,FALSE)),"",VLOOKUP(Tabla_Asiento_2[[#This Row],[Cta]],PGCtotal[[Nivel 3]:[Subcuenta]],5,FALSE)) -> 
D167: =IF(ISERROR(VLOOKUP(Tabla_Asiento_2[[#This Row],[Cta]],PGCtotal[[Nivel 3]:[Subcuenta]],5,FALSE)),"",VLOOKUP(Tabla_Asiento_2[[#This Row],[Cta]],PGCtotal[[Nivel 3]:[Subcuenta]],5,FALSE)) -> 
D168: =IF(ISERROR(VLOOKUP(Tabla_Asiento_2[[#This Row],[Cta]],PGCtotal[[Nivel 3]:[Subcuenta]],5,FALSE)),"",VLOOKUP(Tabla_Asiento_2[[#This Row],[Cta]],PGCtotal[[Nivel 3]:[Subcuenta]],5,FALSE)) -> 
D169: =IF(ISERROR(VLOOKUP(Tabla_Asiento_2[[#This Row],[Cta]],PGCtotal[[Nivel 3]:[Subcuenta]],5,FALSE)),"",VLOOKUP(Tabla_Asiento_2[[#This Row],[Cta]],PGCtotal[[Nivel 3]:[Subcuenta]],5,FALSE)) -> 
D170: =IF(ISERROR(VLOOKUP(Tabla_Asiento_2[[#This Row],[Cta]],PGCtotal[[Nivel 3]:[Subcuenta]],5,FALSE)),"",VLOOKUP(Tabla_Asiento_2[[#This Row],[Cta]],PGCtotal[[Nivel 3]:[Subcuenta]],5,FALSE)) -> 
D171: =IF(ISERROR(VLOOKUP(Tabla_Asiento_2[[#This Row],[Cta]],PGCtotal[[Nivel 3]:[Subcuenta]],5,FALSE)),"",VLOOKUP(Tabla_Asiento_2[[#This Row],[Cta]],PGCtotal[[Nivel 3]:[Subcuenta]],5,FALSE)) -> 
D172: =IF(ISERROR(VLOOKUP(Tabla_Asiento_2[[#This Row],[Cta]],PGCtotal[[Nivel 3]:[Subcuenta]],5,FALSE)),"",VLOOKUP(Tabla_Asiento_2[[#This Row],[Cta]],PGCtotal[[Nivel 3]:[Subcuenta]],5,FALSE)) -> 
D173: =IF(ISERROR(VLOOKUP(Tabla_Asiento_2[[#This Row],[Cta]],PGCtotal[[Nivel 3]:[Subcuenta]],5,FALSE)),"",VLOOKUP(Tabla_Asiento_2[[#This Row],[Cta]],PGCtotal[[Nivel 3]:[Subcuenta]],5,FALSE)) -> 
D174: =IF(ISERROR(VLOOKUP(Tabla_Asiento_2[[#This Row],[Cta]],PGCtotal[[Nivel 3]:[Subcuenta]],5,FALSE)),"",VLOOKUP(Tabla_Asiento_2[[#This Row],[Cta]],PGCtotal[[Nivel 3]:[Subcuenta]],5,FALSE)) -> 
D175: =IF(ISERROR(VLOOKUP(Tabla_Asiento_2[[#This Row],[Cta]],PGCtotal[[Nivel 3]:[Subcuenta]],5,FALSE)),"",VLOOKUP(Tabla_Asiento_2[[#This Row],[Cta]],PGCtotal[[Nivel 3]:[Subcuenta]],5,FALSE)) -> 
D176: =IF(ISERROR(VLOOKUP(Tabla_Asiento_2[[#This Row],[Cta]],PGCtotal[[Nivel 3]:[Subcuenta]],5,FALSE)),"",VLOOKUP(Tabla_Asiento_2[[#This Row],[Cta]],PGCtotal[[Nivel 3]:[Subcuenta]],5,FALSE)) -> 
D177: =IF(ISERROR(VLOOKUP(Tabla_Asiento_2[[#This Row],[Cta]],PGCtotal[[Nivel 3]:[Subcuenta]],5,FALSE)),"",VLOOKUP(Tabla_Asiento_2[[#This Row],[Cta]],PGCtotal[[Nivel 3]:[Subcuenta]],5,FALSE)) -> 
D178: =IF(ISERROR(VLOOKUP(Tabla_Asiento_2[[#This Row],[Cta]],PGCtotal[[Nivel 3]:[Subcuenta]],5,FALSE)),"",VLOOKUP(Tabla_Asiento_2[[#This Row],[Cta]],PGCtotal[[Nivel 3]:[Subcuenta]],5,FALSE)) -> 
D179: =IF(ISERROR(VLOOKUP(Tabla_Asiento_2[[#This Row],[Cta]],PGCtotal[[Nivel 3]:[Subcuenta]],5,FALSE)),"",VLOOKUP(Tabla_Asiento_2[[#This Row],[Cta]],PGCtotal[[Nivel 3]:[Subcuenta]],5,FALSE)) -> 
D180: =IF(ISERROR(VLOOKUP(Tabla_Asiento_2[[#This Row],[Cta]],PGCtotal[[Nivel 3]:[Subcuenta]],5,FALSE)),"",VLOOKUP(Tabla_Asiento_2[[#This Row],[Cta]],PGCtotal[[Nivel 3]:[Subcuenta]],5,FALSE)) -> 
D181: =IF(ISERROR(VLOOKUP(Tabla_Asiento_2[[#This Row],[Cta]],PGCtotal[[Nivel 3]:[Subcuenta]],5,FALSE)),"",VLOOKUP(Tabla_Asiento_2[[#This Row],[Cta]],PGCtotal[[Nivel 3]:[Subcuenta]],5,FALSE)) -> 
D182: =IF(ISERROR(VLOOKUP(Tabla_Asiento_2[[#This Row],[Cta]],PGCtotal[[Nivel 3]:[Subcuenta]],5,FALSE)),"",VLOOKUP(Tabla_Asiento_2[[#This Row],[Cta]],PGCtotal[[Nivel 3]:[Subcuenta]],5,FALSE)) -> 
D183: =IF(ISERROR(VLOOKUP(Tabla_Asiento_2[[#This Row],[Cta]],PGCtotal[[Nivel 3]:[Subcuenta]],5,FALSE)),"",VLOOKUP(Tabla_Asiento_2[[#This Row],[Cta]],PGCtotal[[Nivel 3]:[Subcuenta]],5,FALSE)) -> 
D184: =IF(ISERROR(VLOOKUP(Tabla_Asiento_2[[#This Row],[Cta]],PGCtotal[[Nivel 3]:[Subcuenta]],5,FALSE)),"",VLOOKUP(Tabla_Asiento_2[[#This Row],[Cta]],PGCtotal[[Nivel 3]:[Subcuenta]],5,FALSE)) -> 
D185: =IF(ISERROR(VLOOKUP(Tabla_Asiento_2[[#This Row],[Cta]],PGCtotal[[Nivel 3]:[Subcuenta]],5,FALSE)),"",VLOOKUP(Tabla_Asiento_2[[#This Row],[Cta]],PGCtotal[[Nivel 3]:[Subcuenta]],5,FALSE)) -> 
D186: =IF(ISERROR(VLOOKUP(Tabla_Asiento_2[[#This Row],[Cta]],PGCtotal[[Nivel 3]:[Subcuenta]],5,FALSE)),"",VLOOKUP(Tabla_Asiento_2[[#This Row],[Cta]],PGCtotal[[Nivel 3]:[Subcuenta]],5,FALSE)) -> 
D187: =IF(ISERROR(VLOOKUP(Tabla_Asiento_2[[#This Row],[Cta]],PGCtotal[[Nivel 3]:[Subcuenta]],5,FALSE)),"",VLOOKUP(Tabla_Asiento_2[[#This Row],[Cta]],PGCtotal[[Nivel 3]:[Subcuenta]],5,FALSE)) -> 
D188: =IF(ISERROR(VLOOKUP(Tabla_Asiento_2[[#This Row],[Cta]],PGCtotal[[Nivel 3]:[Subcuenta]],5,FALSE)),"",VLOOKUP(Tabla_Asiento_2[[#This Row],[Cta]],PGCtotal[[Nivel 3]:[Subcuenta]],5,FALSE)) -> 
D189: =IF(ISERROR(VLOOKUP(Tabla_Asiento_2[[#This Row],[Cta]],PGCtotal[[Nivel 3]:[Subcuenta]],5,FALSE)),"",VLOOKUP(Tabla_Asiento_2[[#This Row],[Cta]],PGCtotal[[Nivel 3]:[Subcuenta]],5,FALSE)) -> 
D190: =IF(ISERROR(VLOOKUP(Tabla_Asiento_2[[#This Row],[Cta]],PGCtotal[[Nivel 3]:[Subcuenta]],5,FALSE)),"",VLOOKUP(Tabla_Asiento_2[[#This Row],[Cta]],PGCtotal[[Nivel 3]:[Subcuenta]],5,FALSE)) -> 
D191: =IF(ISERROR(VLOOKUP(Tabla_Asiento_2[[#This Row],[Cta]],PGCtotal[[Nivel 3]:[Subcuenta]],5,FALSE)),"",VLOOKUP(Tabla_Asiento_2[[#This Row],[Cta]],PGCtotal[[Nivel 3]:[Subcuenta]],5,FALSE)) -> 
D192: =IF(ISERROR(VLOOKUP(Tabla_Asiento_2[[#This Row],[Cta]],PGCtotal[[Nivel 3]:[Subcuenta]],5,FALSE)),"",VLOOKUP(Tabla_Asiento_2[[#This Row],[Cta]],PGCtotal[[Nivel 3]:[Subcuenta]],5,FALSE)) -> 
D193: =IF(ISERROR(VLOOKUP(Tabla_Asiento_2[[#This Row],[Cta]],PGCtotal[[Nivel 3]:[Subcuenta]],5,FALSE)),"",VLOOKUP(Tabla_Asiento_2[[#This Row],[Cta]],PGCtotal[[Nivel 3]:[Subcuenta]],5,FALSE)) -> 
D194: =IF(ISERROR(VLOOKUP(Tabla_Asiento_2[[#This Row],[Cta]],PGCtotal[[Nivel 3]:[Subcuenta]],5,FALSE)),"",VLOOKUP(Tabla_Asiento_2[[#This Row],[Cta]],PGCtotal[[Nivel 3]:[Subcuenta]],5,FALSE)) -> 
D195: =IF(ISERROR(VLOOKUP(Tabla_Asiento_2[[#This Row],[Cta]],PGCtotal[[Nivel 3]:[Subcuenta]],5,FALSE)),"",VLOOKUP(Tabla_Asiento_2[[#This Row],[Cta]],PGCtotal[[Nivel 3]:[Subcuenta]],5,FALSE)) -> 
D196: =IF(ISERROR(VLOOKUP(Tabla_Asiento_2[[#This Row],[Cta]],PGCtotal[[Nivel 3]:[Subcuenta]],5,FALSE)),"",VLOOKUP(Tabla_Asiento_2[[#This Row],[Cta]],PGCtotal[[Nivel 3]:[Subcuenta]],5,FALSE)) -> 
D197: =IF(ISERROR(VLOOKUP(Tabla_Asiento_2[[#This Row],[Cta]],PGCtotal[[Nivel 3]:[Subcuenta]],5,FALSE)),"",VLOOKUP(Tabla_Asiento_2[[#This Row],[Cta]],PGCtotal[[Nivel 3]:[Subcuenta]],5,FALSE)) -> 
D198: =IF(ISERROR(VLOOKUP(Tabla_Asiento_2[[#This Row],[Cta]],PGCtotal[[Nivel 3]:[Subcuenta]],5,FALSE)),"",VLOOKUP(Tabla_Asiento_2[[#This Row],[Cta]],PGCtotal[[Nivel 3]:[Subcuenta]],5,FALSE)) -> 
D199: =IF(ISERROR(VLOOKUP(Tabla_Asiento_2[[#This Row],[Cta]],PGCtotal[[Nivel 3]:[Subcuenta]],5,FALSE)),"",VLOOKUP(Tabla_Asiento_2[[#This Row],[Cta]],PGCtotal[[Nivel 3]:[Subcuenta]],5,FALSE)) -> 
D200: =IF(ISERROR(VLOOKUP(Tabla_Asiento_2[[#This Row],[Cta]],PGCtotal[[Nivel 3]:[Subcuenta]],5,FALSE)),"",VLOOKUP(Tabla_Asiento_2[[#This Row],[Cta]],PGCtotal[[Nivel 3]:[Subcuenta]],5,FALSE)) -> 
... 798 more rows

Sheet Mayores
A1: Cuentas de Mayor
B2: Actualizar Mayores
B4: Nº Asiento | C4: (Todas) | I4: Nº Asiento | J4: (Todas)
B6: Importes | C6: D/H | I6: Importes | J6: D/H
B7: Cuentas | C7: D | D7: H | E7: Saldo | I7: Cuentas | J7: D | K7: H
B8: 0-0 | C8: 0 | E8: 0 | I8: 0-0 | J8: 0
B9: 1000-Capital social | D9: 12000 | E9: -12000 | I9: 1000-Capital social | K9: 12000
B10: 2160-Mobiliario | C10: 600 | E10: 600 | I10: 2160-Mobiliario | J10: 600
B11: 2180-Elementos de transporte | C11: 4000 | D11: 4000 | E11: 0 | I11: 2180-Elementos de transporte | J11: 4000 | K11: 4000
B12: 3000-Mercaderías A | C12: 1500 | E12: 1500 | I12: 3000-Mercaderías A | J12: 1500
B13: 4000-Proveedores | D13: 5000 | E13: -5000 | I13: 4000-Proveedores | K13: 5000
B14: 4110-Acreedores, efectos comerciales a pagar | D14: 3600 | E14: -3600 | I14: 4110-Acreedores, efectos comerciales a pagar | K14: 3600
B15: 4300-Clientes | C15: 1500 | D15: 1500 | E15: 0 | I15: 4300-Clientes | J15: 1500 | K15: 1500
B16: 4310-Clientes, efectos comerciales a cobrar | C16: 3500 | E16: 3500 | I16: 4310-Clientes, efectos comerciales a cobrar | J16: 3500
B17: 5700-Caja, euros | C17: 13500 | D17: 11800 | E17: 1700 | I17: 5700-Caja, euros | J17: 13500 | K17: 11800
B18: 5720-Bancos e instituciones de crédito c/c vista, euros | C18: 9500 | D18: 1450 | E18: 8050 | I18: 5720-Bancos e instituciones de crédito c/c vista, euros | J18: 9500 | K18: 1450
B19: 6000-Compras de mercaderías | C19: 5000 | E19: 5000 | I19: 6000-Compras de mercaderías | J19: 5000
B20: 6100-Variación de existencias de mercaderías | D20: 1500 | E20: -1500 | I20: 6100-Variación de existencias de mercaderías | K20: 1500
B21: 6210-Arrendamientos y cánones | C21: 750 | E21: 750 | I21: 6210-Arrendamientos y cánones | J21: 750
B22: 6230-Servicios de profesionales independientes | C22: 100 | E22: 100 | I22: 6230-Servicios de profesionales independientes | J22: 100
B23: 6280-Suministros | C23: 100 | E23: 100 | I23: 6280-Suministros | J23: 100
B24: 6310-Otros tributos | C24: 350 | E24: 350 | I24: 6310-Otros tributos | J24: 350
B25: 6400-Sueldos y salarios | C25: 1000 | E25: 1000 | I25: 6400-Sueldos y salarios | J25: 1000
B26: 6420-Seguridad Social a cargo de la empresa | C26: 450 | E26: 450 | I26: 6420-Seguridad Social a cargo de la empresa | J26: 450
B27: 6710-Pérdidas procedentes del inmovilizado material | C27: 4000 | E27: 4000 | I27: 6710-Pérdidas procedentes del inmovilizado material | J27: 4000
B28: 7000-Ventas de mercaderías | D28: 5000 | E28: -5000 | I28: 7000-Ventas de mercaderías | K28: 5000
B29: Total general | C29: 45850 | D29: 45850 | E29: 0 | I29: Total general | J29: 45850 | K29: 45850

Sheet PyG
A1: Perdidas y Ganancias Abreviada
A2: CUENTAS | H2: (Debe) Haber
H3: Ejercicio
A4: 700,701,702,703,704, 705,(706),(708),(709) | D4: 1. Importe neto de la cifra de negocios | H4: =SUMIF(Tabla5[Grupo Abreviado],"=PYG1",Tabla5[Saldo]) -> 5000
A5: (6930), 71*,7930 | D5: 2. Variación de existencias de productos terminados y en curso de fabricación | H5: =SUMIF(Tabla5[Grupo Abreviado],"=PYG2",Tabla5[Saldo]) -> 0
A6: 73 | D6: 3. Trabajos realizados por la empresa para su activo | H6: =SUMIF(Tabla5[Grupo Abreviado],"=PYG3",Tabla5[Saldo]) -> 0
A7: (600),(601),(602),606,(607),608,609,61*, (6931),(6932),(6933),7931,7932,7933 | D7: 4. Aprovisionamientos | H7: =SUMIF(Tabla5[Grupo Abreviado],"=PYG4",Tabla5[Saldo]) -> 3500
A8: 740,747,75 | D8: 5. Otros ingresos de explotación | H8: =SUMIF(Tabla5[Grupo Abreviado],"=PYG5",Tabla5[Saldo]) -> 0
A9: (64),7950,7957 | D9: 6. Gastos de personal | H9: =SUMIF(Tabla5[Grupo Abreviado],"=PYG6",Tabla5[Saldo]) -> 1450
A10: (62),(631),(634),636,639,(65),(694),(695),794, 7954 | D10: 7. Otros gastos de explotación | H10: =SUMIF(Tabla5[Grupo Abreviado],"=PYG7",Tabla5[Saldo]) -> 1300
A11: (68) | D11: 8. Amortización de Inmovilizado | H11: =SUMIF(Tabla5[Grupo Abreviado],"=PYG8",Tabla5[Saldo]) -> 0
A12: 746 | D12: 9. Imputación de subvenciones de inmovilizado financiero y otras | H12: =SUMIF(Tabla5[Grupo Abreviado],"=PYG9",Tabla5[Saldo]) -> 0
A13: 7951,7952,7955,7956 | D13: 10. Exceso de provisión | H13: =SUMIF(Tabla5[Grupo Abreviado],"=PYG10",Tabla5[Saldo]) -> 0
A14: (670),(671),(672),(690),(691),(692),770, 771,772,790,791,792 | D14: 11. Deterioro y resultados por enajenación de inmovilizado | H14: =SUMIF(Tabla5[Grupo Abreviado],"=PYG11",Tabla5[Saldo]) -> 4000
D15: A) RESULTADO DE EXPLOTACIÓN | H15: =H4+H5+H6-H7+H8-H9-H10-H11+H12+H13-H14 -> -5250
A16: 760,761,762,767,769 | D16: 12. Ingresos financieros | H16: =SUMIF(Tabla5[Grupo Abreviado],"=PYG12",Tabla5[Saldo]) -> 0
A17: (660),(661),(662),(664),(665),(669) | D17: 13. Gastos financieros | H17: =SUMIF(Tabla5[Grupo Abreviado],"=PYG13",Tabla5[Saldo]) -> 0
A18: (663),763 | D18: 14. Variación de valor razonable en instrumentos financieros | H18: =SUMIF(Tabla5[Grupo Abreviado],"=PYG14",Tabla5[Saldo]) -> 0
A19: (668),768 | D19: 15. Diferencias de cambio | H19: =SUMIF(Tabla5[Grupo Abreviado],"=PYG15",Tabla5[Saldo]) -> 0
A20: (666),(667),(673),(675),(696),(697),(698), (699),766,773,775,796,797,798,799 | D20: 16. Deterioro y resultados por enajenaciones de instrumentos financieros | H20: =SUMIF(Tabla5[Grupo Abreviado],"=PYG16",Tabla5[Saldo]) -> 0
D21: B) RESULTADO FINANCIERO | H21: =H16-H17-H18-H19-H20 -> 0
D22: C) RESULTADO ANTES DE IMPUESTOS | H22: =H15-H21 -> -5250
A23: (6300)*,6301*,(633),638 | D23: 17.Impuestos sobre sociedades | H23: =SUMIF(Tabla5[Grupo Abreviado],"=PYG17",Tabla5[Saldo]) -> 0
D24: D) RESULTADO DEL EJERCICIO | H24: =H22+H23 -> -5250
A25: * Su signo puede ser positivo o negativo

Sheet Balance
A1: Balance Abreviado | L1: Balance Abreviado
A2: Nº de Cuentas | D2: ACTIVO | G2: Ejercicio | L2: Nº de Cuentas | O2: PATRIMONIO NETO Y PASIVO | R2: Ejercicio
D3: A) ACTIVOS NO CORRIENTES | G3: =SUM(G4:G9) -> 600 | O3: A) PATRIMONIO NETO | R3: =R4+R16+R17 -> 6750
A4: 20,(280),(290) | D4: I. Inmovilizado Intangible | G4: =SUMIF(Tabla5[Grupo Abreviado],"=AAI",Tabla5[Saldo]) -> 0 | O4: A-1) Fondos propios | R4: =R5+R8+R9+R10+R11+R12+R13+R14+R15 -> 6750
A5: 21,(281),(291),23 | D5: II. Inmovilizado material | G5: =SUMIF(Tabla5[Grupo Abreviado],"=AAII",Tabla5[Saldo]) -> 600 | O5: I. Capital | R5: =R6+R7 -> 12000
A6: 22,(282),(292) | D6: III. Inversiones immobiliarias | G6: =SUMIF(Tabla5[Grupo Abreviado],"=AAIII",Tabla5[Saldo]) -> 0 | L6: 100,101,102 | O6: 1. Capital Escriturado | R6: =SUMIF(Tabla5[Grupo Abreviado],"=PAI1",Tabla5[Saldo]) -> 12000
A7: 2403,2404,2413,2414,2423,2424,(2493),(2494),(293),(2943),(2944), (2953), (2954) | D7: IV. Inversiones en empresas del grupo y asociadas a largo plazo | G7: =SUMIF(Tabla5[Grupo Abreviado],"=AAIV",Tabla5[Saldo]) -> 0 | L7: (1030), (1040) | O7: 2. (Capital no exigido) | R7: =SUMIF(Tabla5[Grupo Abreviado],"=PAI2",Tabla5[Saldo]) -> 0
A8: 2405,2415,2425,(2495),250,251,252,253,254,255,257,258,(259), 26, (2945), (2955), (297), (298) | D8: V. Inversiones financieras a largo plazo | G8: =SUMIF(Tabla5[Grupo Abreviado],"=AAV",Tabla5[Saldo]) -> 0 | L8: 110 | O8: II. Prima de emisión | R8: =SUMIF(Tabla5[Grupo Abreviado],"=PAII",Tabla5[Saldo]) -> 0
A9: 474 | D9: VI. Activos por impuestos diferidos | G9: =SUMIF(Tabla5[Grupo Abreviado],"=AAVI",Tabla5[Saldo]) -> 0 | L9: 112,113,114,115,119 | O9: III. Reservas | R9: =SUMIF(Tabla5[Grupo Abreviado],"=PAIII",Tabla5[Saldo]) -> 0
D10: B) ACTIVOS CORRIENTES | G10: =G11+G12+G13+G17+G18+G19+G20 -> 14750 | L10: (108),(109) | O10: IV. (Acciones y participaciones en patrimonio propias) | R10: =SUMIF(Tabla5[Grupo Abreviado],"=PAIV",Tabla5[Saldo]) -> 0
A11: 580,581,582,583,584,(599) | D11: I. Activos no corrientes mantenidos para la venta | G11: =SUMIF(Tabla5[Grupo Abreviado],"=ABI",Tabla5[Saldo]) -> 0 | L11: 120,(121) | O11: V. Resultado de ejercicios anteriores | R11: =SUMIF(Tabla5[Grupo Abreviado],"=PAV",Tabla5[Saldo]) -> 0
A12: 30,31,32,33,34,35,36,(39),407 | D12: II. Existencias | G12: =SUMIF(Tabla5[Grupo Abreviado],"=ABII",Tabla5[Saldo]) -> 1500 | L12: 128 | O12: VI. Otras aportaciones de socios | R12: =SUMIF(Tabla5[Grupo Abreviado],"=PAVI",Tabla5[Saldo]) -> 0
D13: III. Deudores comerciales y otras cuentas a cobrar | G13: =SUM(G14:G16) -> 3500 | L13: 129 | O13: VII. Resultados del ejercicio | R13: =IF('Sumas y Saldos'!F22>0,'Sumas y Saldos'!F22,IF('Sumas y Saldos'!F22<0,'Sumas y Saldos'!F22,PyG!H24)) -> -5250
A14: 430,431,432,433,434,435,436, (437),(490),(493) | D14: 1. Clientes por ventas y prestaciones de servicios | G14: =SUMIF(Tabla5[Grupo Abreviado],"=ABIII1",Tabla5[Saldo]) -> 3500 | L14: -557 | O14: VIII. (Dividendos a cuenta) | R14: =SUMIF(Tabla5[Grupo Abreviado],"=PAVIII",Tabla5[Saldo]) -> 0
A15: 5580 | D15: 2. Accionistas (socios) por desembolso exigidos | G15: =SUMIF(Tabla5[Grupo Abreviado],"=ABIII2",Tabla5[Saldo]) -> 0 | L15: 111 | O15: IX. Otros instrumentos de patrimonio neto | R15: =SUMIF(Tabla5[Grupo Abreviado],"=PAIX",Tabla5[Saldo]) -> 0
A16: 44,460,470,471,472,5531,5533,544 | D16: 3. Otros deudores | G16: =SUMIF(Tabla5[Grupo Abreviado],"=ABIII3",Tabla5[Saldo]) -> 0 | L16: 133,1340,137 | O16: A-2) Ajustes por cambios de valor | R16: =SUMIF(Tabla5[Grupo Abreviado],"=PA2",Tabla5[Saldo]) -> 0
A17: 5303,5304,5313,5314,5323, 5324,5333,5334, 5343, 5344,5353, 5354,(5393),(5394),5523,5524,(593), (5943),(5944),(5953),(5954) | D17: IV. Inversiones en empresas del grupo y asociadas a corto plazo | G17: =SUMIF(Tabla5[Grupo Abreviado],"=ABIV",Tabla5[Saldo]) -> 0 | L17: 130,131,132 | O17: A-3) Subvenciones, donaciones y legados recibidos | R17: =SUMIF(Tabla5[Grupo Abreviado],"=PA3",Tabla5[Saldo]) -> 0
A18: 5305,5315,5325,5335, 5345,5355,(5395),540,541,542,543,545,546,547,548,(549),551, 5525, 5590,5593,565,566,(5945),(5955),(597), (598) | D18: V. Inversiones financieras a corto plazo | G18: =SUMIF(Tabla5[Grupo Abreviado],"=ABV",Tabla5[Saldo]) -> 0 | O18: B) PASIVO NO CORRIENTE | R18: =R19+R20+R24+R25+R26 -> 0
A19: 480, 567 | D19: VI. Periodificaciones a corto plazo | G19: =SUMIF(Tabla5[Grupo Abreviado],"=ABVI",Tabla5[Saldo]) -> 0 | L19: 14 | O19: I. Provisiones a largo plazo | R19: =SUMIF(Tabla5[Grupo Abreviado],"=PBI",Tabla5[Saldo]) -> 0
A20: 57 | D20: VII. Efectivos y otros activos liquidos equivalentes | G20: =SUMIF(Tabla5[Grupo Abreviado],"=ABVII",Tabla5[Saldo]) -> 9750 | O20: II. Deudas a largo plazo | R20: =SUM(R21:R23) -> 0
D21: TOTAL DE ACTIVO | G21: =G10+G3 -> 15350 | L21: 1605, 170 | O21: 1. Deudas con entidades de créditos | R21: =SUMIF(Tabla5[Grupo Abreviado],"=PBII1",Tabla5[Saldo]) -> 0
L22: 1625.174 | O22: 2. Acreedores por arrendamientos financieros | R22: =SUMIF(Tabla5[Grupo Abreviado],"=PBII2",Tabla5[Saldo]) -> 0
L23: 1615,1635,171,172,173,175,176,177,178 179,180,185,189 | O23: 3. Otras deudas a largo plazo | R23: =SUMIF(Tabla5[Grupo Abreviado],"=PBII3",Tabla5[Saldo]) -> 0
L24: 1603,1604,1613,1614,1623,1624,1633, 1634 | O24: III. Deudas con empresas del grupo y asociadas a largo plazo | R24: =SUMIF(Tabla5[Grupo Abreviado],"=PBIII",Tabla5[Saldo]) -> 0
L25: 479 | O25: IV. Pasivos por impuestos diferidos | R25: =SUMIF(Tabla5[Grupo Abreviado],"=PBIV",Tabla5[Saldo]) -> 0
L26: 181 | O26: V. Periodificaciones a largo plazo | R26: =SUMIF(Tabla5[Grupo Abreviado],"=PBV",Tabla5[Saldo]) -> 0
O27: C) PASIVO CORRIENTE | R27: =R28+R29+R30+R34+R35+R38 -> 8600
L28: 585,586,587,588,589 | O28: I. Pasivos vinculados con activos no corrientes mantenidos para la venta | R28: =SUMIF(Tabla5[Grupo Abreviado],"=PCI",Tabla5[Saldo]) -> 0
L29: 499, 529 | O29: II. Provisiones a corto plazo | R29: =SUMIF(Tabla5[Grupo Abreviado],"=PCII",Tabla5[Saldo]) -> 0
O30: III. Deudas a corto plazo | R30: =R31+R32+R33 -> 0
L31: 5105,520,527 | O31: 1. Deudas con entidades de créditos | R31: =SUMIF(Tabla5[Grupo Abreviado],"=PCIII1",Tabla5[Saldo]) -> 0
L32: 5125.524 | O32: 2. Acreedores por arrendamientos financieros | R32: =SUMIF(Tabla5[Grupo Abreviado],"=PCIII2",Tabla5[Saldo]) -> 0
L33: (1034),(1044),(190),(192),194,500,501 505,506,509,5115, 5135,5145, 521,522,523,525,526,528,551,5525, 5530,55532, 555,5565,5595,5598,560,561,569, | O33: 3. Otras deudas a corto plazo | R33: =SUMIF(Tabla5[Grupo Abreviado],"=PCIII3",Tabla5[Saldo]) -> 0
L34: 5103,5104,5113,5114,5123,5124,5133, 5134,5143,5144,5523,5524,5563,5564 | O34: IV. Deudas con empresas del grupo y asociadas a corto plazo | R34: =SUMIF(Tabla5[Grupo Abreviado],"=PCIV",Tabla5[Saldo]) -> 0
O35: V. Acreedores comerciales y otras cuentas a pagar | R35: =R36+R37 -> 8600
L36: 400,401,403,404,405,(406) | O36: 1. Proveedores | R36: =SUMIF(Tabla5[Grupo Abreviado],"=PCV1",Tabla5[Saldo]) -> 5000
L37: 41,438,465,466,475,476,477 | O37: 2. Otros acreedores | R37: =SUMIF(Tabla5[Grupo Abreviado],"=PCV2",Tabla5[Saldo]) -> 3600
L38: 485, 568 | O38: VI. Periodificación a corto plazo | R38: =SUMIF(Tabla5[Grupo Abreviado],"=PCVI",Tabla5[Saldo]) -> 0
O39: TOTAL PATRIMONIO NETO Y PASIVO | R39: =R27+R18+R3 -> 15350

Sheet Flujos de Tesoreria
D1: Actualizar Tabla de Tesoreria
B4: Estudio de los Movimientos de Tesoreria
B7: Total Movimientos: | D7: =COUNTIF($E$13:$E$1320,"<>0") -> 10
B8: Total Fechas | D8: =COUNTA($B$13:$B$1368)-1 -> 10
B9: Cta | C9: (Varios elementos)
B10: Cuentas de Tesoreria (570-572)
B11: T. Importe | C11: Tipo | E11: Tesoreria
B12: Fecha | C12: D | D12: H
B13: 2015-01-02 | C13: 12000 | E13: =IFERROR(GETPIVOTDATA("Importe",$B$11,"D/H","D","Fecha",B13)-GETPIVOTDATA("Importe",$B$11,"D/H","H","Fecha",B13),0) -> 12000
B14: 2015-01-10 | C14: 9500 | D14: 9500 | E14: =IFERROR((GETPIVOTDATA("Importe",$B$11,"D/H","D","Fecha",B14)-GETPIVOTDATA("Importe",$B$11,"D/H","H","Fecha",B14)+E13),0) -> 12000
B15: 2015-03-07 | D15: 1000 | E15: =IFERROR((GETPIVOTDATA("Importe",$B$11,"D/H","D","Fecha",B15)-GETPIVOTDATA("Importe",$B$11,"D/H","H","Fecha",B15)+E14),0) -> 11000
B16: 2015-04-03 | D16: 450 | E16: 10550
B17: 2015-05-25 | D17: 600 | E17: 9950
B18: 2015-06-11 | D18: 750 | E18: 9200
B19: 2015-06-20 | D19: 500 | E19: 8700
B20: 2015-08-20 | D20: 350 | E20: 8350
B21: 2015-10-25 | D21: 100 | E21: 8250
B22: 2015-11-22 | C22: 1500 | E22: 9750
B23: Total general | C23: 23000 | D23: 13250 | E23: 0
E24: 0
E25: 0
E26: 0
E27: 0
E28: 0
E29: 0
E30: 0
E31: 0
E32: 0
E33: 0
E34: 0
E35: 0
E36: 0
E37: 0
E38: 0
E39: 0
E40: 0
E41: 0 | F41: =IFERROR(G40+GETPIVOTDATA("Importe",$B$11,"D/H","Saldo","Fecha",B41)," ") -> 
E42: 0 | F42: =IFERROR(F41+GETPIVOTDATA("Importe",$B$11,"D/H","Saldo","Fecha",B42)," ") -> 
E43: 0
E44: 0
E45: 0
E46: 0 | F46: =IFERROR(#REF!+GETPIVOTDATA("Importe",$B$11,"D/H","Saldo","Fecha",B46),"") -> 
E47: 0 | F47: =IFERROR(F46+GETPIVOTDATA("Importe",$B$11,"D/H","Saldo","Fecha",B47),"") -> 
E48: 0
E49: 0
E50: 0
E51: 0
E52: 0
E53: 0
E54: 0
E55: 0
E56: 0
E57: 0
E58: 0
E59: 0
E60: 0
E61: 0
E62: 0
E63: 0
E64: 0
E65: 0
E66: 0
E67: 0
E68: 0
E69: 0
E70: 0
E71: 0
E72: 0
E73: 0
E74: 0
E75: 0
E76: 0
E77: 0
E78: 0
E79: =IFERROR((GETPIVOTDATA("Importe",$B$11,"D/H","D","Fecha",B79)-GETPIVOTDATA("Importe",$B$11,"D/H","H","Fecha",B79)+E78),0) -> 0
E80: 0
E81: 0
E82: 0
E83: 0
E84: 0
E85: 0
E86: 0
E87: 0 | F87: =IFERROR(F86+GETPIVOTDATA("Importe",$B$11,"D/H","Saldo","Fecha",B87),"") -> 
E88: 0
E89: 0
E90: 0
E91: 0
E92: 0
E93: 0
E94: 0
E95: 0
E96: 0
E97: 0
E98: 0
E99: =IFERROR((GETPIVOTDATA("Importe",$B$11,"D/H","D","Fecha",B99)-GETPIVOTDATA("Importe",$B$11,"D/H","H","Fecha",B99)+E98),0) -> 0
E100: 0
E101: 0
E102: 0
E103: 0
E104: 0
E105: 0
E106: 0
E107: 0
E108: 0
E109: 0
E110: 0
E111: 0
E112: 0
E113: 0
E114: 0
E115: 0
E116: 0
E117: 0
E118: 0
E119: 0
E120: 0
E121: 0
E122: 0
E123: 0
E124: 0
E125: 0
E126: 0
E127: 0
E128: 0
E129: 0
E130: 0
E131: 0
E132: 0
E133: 0
E134: 0
E135: 0
E136: =IFERROR((GETPIVOTDATA("Importe",$B$11,"D/H","D","Fecha",B136)-GETPIVOTDATA("Importe",$B$11,"D/H","H","Fecha",B136)+E135),0) -> 0
E137: 0
E138: 0
E139: 0
E140: 0
E141: 0
E142: 0
E143: 0
E144: 0
E145: 0
E146: 0
E147: 0
E148: 0
E149: 0
E150: 0
E151: 0 | F151: =IFERROR(F150+GETPIVOTDATA("Importe",$B$11,"D/H","Saldo","Fecha",B151),"") -> 
E152: 0
E153: 0
E154: 0
E155: 0
E156: 0
E157: 0
E158: 0
E159: 0
E160: 0
E161: 0
E162: 0
E163: 0
E164: 0
E165: 0
E166: 0
E167: 0
E168: 0
E169: 0
E170: 0
E171: 0
E172: 0
E173: 0
E174: 0
E175: 0
E176: 0
E177: 0
E178: 0
E179: 0
E180: 0
E181: 0
E182: 0
E183: 0
E184: 0
E185: 0
E186: 0
E187: 0
E188: 0
E189: 0
E190: 0
E191: 0
E192: 0
E193: 0
E194: 0
E195: 0
E196: 0
E197: 0
E198: 0
E199: 0
E200: =IFERROR((GETPIVOTDATA("Importe",$B$11,"D/H","D","Fecha",B200)-GETPIVOTDATA("Importe",$B$11,"D/H","H","Fecha",B200)+E199),0) -> 0
E201: 0
E202: 0
E203: 0
E204: 0
... 1162 more rows

Sheet Ratios
A1: ORDENACION FUNCIONAL DEL PATRIMONIO | M1: ORDENACION FUNCIONAL RESULTADOS
E4: Ejercicio | J4: Ejercicio | P4: Importe | Q4: %
A5: ACTIVO EXPLOTACIÓN | E5: =E6+E10 -> 15350 | G5: Patrimonio Neto | J5: =J6+J16+J17 -> 6750 | M5: Importe Neto de la Cifra de Negocios | P5: =PyG!H4 -> 5000 | Q5: =P5/$P$5 -> 1
A6: ACTIVO NO CORRIENTE EXPLOTACIÓN | E6: =SUM(E7:E9) -> 600 | G6: A-1 Fondos Propios | J6: =SUM(J7:J15) -> 6750 | M6: Consumo de Existencias | P6: =PyG!H5+PyG!H7 -> 3500 | Q6: =P6/$P$5 -> 0.7
A7: Inmovilizado intangible | E7: =Balance!G4 -> 0 | G7: I Capital | J7: =Balance!R5 -> 12000 | M7: Rtdo. Bruto de Explotación | P7: =P5-P6 -> 1500 | Q7: =P7/$P$5 -> 0.3
A8: Inmovilizado material | E8: =Balance!G5 -> 600 | G8: II Prima de Emisión | J8: =Balance!R8 -> 0 | M8: Gastos de Personal | P8: =PyG!H9 -> 1450 | Q8: =P8/$P$5 -> 0.29
A9: Activos por impuesto diferido | E9: =Balance!G9 -> 0 | G9: III Reservas | J9: =Balance!R9 -> 0 | M9: Otros Gastos de Explotación | P9: =PyG!H10 -> 1300 | Q9: =P9/$P$5 -> 0.26
A10: ACTIVO CORRIENTE EXPLOTACIÓN | E10: =E12+E13+E14+E16 -> 14750 | G10: IV Acciones Propias | J10: =Balance!R10 -> 0 | M10: Amortización del Inmovilizado (b) | P10: =PyG!H11 -> 0 | Q10: 0
A11: ACTIVOS COMERCIALES | G11: V Rtdos de Ejercicios Anteriores | J11: =Balance!R11 -> 0 | M11: Rtdo Neto de Explotación | P11: =P7-P8-P9-P10 -> -1250 | Q11: -0.25
A12: Existencias | E12: =Balance!G12 -> 1500 | G12: VI Otras Aportaciones | J12: =Balance!R12 -> 0 | M12: Otros Ingresos de Explotación | P12: =PyG!H8 -> 0 | Q12: 0
A13: Clientes por ventas y prestaciones de servicios | E13: =Balance!G14 -> 3500 | G13: VII Rtdo del Ejercicio | J13: =Balance!R13 -> -5250 | M13: Traba. realizados por la empresa Inmov. | P13: =PyG!H6 -> 0 | Q13: 0
A14: Otros deudores (incluye periodificaciones c/p) | E14: =Balance!G16+Balance!G19 -> 0 | G14: VIII Dividendo a Cuenta | J14: =Balance!R14 -> 0 | M14: Imputación de Subvenciones (c) | P14: =PyG!H12 -> 0 | Q14: 0
A15: TESORERÍA | G15: IX Otros instrumentos de Patrimonio | J15: =Balance!R15 -> 0 | M15: Excesos de Provisiones (d) | P15: =PyG!H13 -> 0 | Q15: 0
A16: Efectivo y otros activos líquidos equivalentes | E16: =Balance!G20 -> 9750 | G16: A-2 Ajustes por cambio de valor | J16: =Balance!R16 -> 0 | M16: Deterioro Enajenación Inmovilizado (e) | P16: =-PyG!H14 -> -4000 | Q16: -0.8
G17: A-3 Subvenciones, Donaciones.. | J17: =Balance!R17 -> 0 | M17: Rtdo Antes de Intereses e Impuestos | P17: =P11+P12+P13+P14+P15+P16 -> -5250 | Q17: -1.05
A18: ACTIVO AJENO A LA EXPLOTACIÓN | E18: =E19+E23 -> 0 | G18: Pasivo Total | J18: =J19+J28 -> 8600 | M18: Ingresos Financieros | P18: =PyG!H16 -> 0 | Q18: 0
A19: ACTIVO NO CORRIENTE AJENO EXPLOTACIÓN | E19: =E20+E21+E22 -> 0 | G19: Pasivo No Corriente | J19: =J20+J24 -> 0 | M19: Gastos Financieros | P19: =PyG!H17 -> 0 | Q19: 0
A20: Inversiones inmobiliarias | E20: =Balance!G6 -> 0 | G20: Créditos Puros a L/P | J20: =SUM(J21:J23) -> 0 | M20: Resto de ingresos y gastos financieros | P20: =0 -> 0 | Q20: 0
A21: Inver.empresas del grupo y asociadas a L/P | E21: =Balance!G7 -> 0 | G21: Deudas con Entidades de Credito | J21: =Balance!R21 -> 0 | M21: Variac.Valor Razonable (f) | P21: =PyG!H18 -> 0 | Q21: 0
A22: Inversiones financieras a largo plazo | E22: =Balance!G8 -> 0 | G22: Deud. Empr.Grupo y Asociadas L/P | J22: =Balance!R24 -> 0 | M22: Diferencias de cambio (g) | P22: =PyG!H19 -> 0 | Q22: 0
A23: ACTIVO CORRIENTE AJENO EXPLOTACIÓN | E23: =E24+E25+E26 -> 0 | G23: Otras Deudas a L/P | J23: =Balance!R23+Balance!R22 -> 0 | M23: Deterioro Enajenación Financiero (h) | P23: =PyG!H20 -> 0 | Q23: 0
A24: Inver.empresas del grupo y asociadas a C/P | E24: =Balance!G17 -> 0 | G24: Otros Pasivos no Corrientes | J24: =SUM(J25:J27) -> 0 | M24: Rtdo Antes de Impuestos | P24: =P17+P18-P19+P20+P21+P22-P23 -> -5250 | Q24: =P24/$P$5 -> -1.05
A25: Inversiones financieras a corto plazo | E25: =Balance!G18 -> 0 | G25: Provisiones a L/P | J25: =Balance!R19 -> 0 | M25: Impuesto sobre beneficios (a) | P25: =PyG!H23 -> 0 | Q25: 0
A26: Accionistas (socios) por desembolsos exigidos | E26: =Balance!G15 -> 0 | G26: Pasivos por Impuestos Diferidos | J26: =Balance!R25 -> 0 | M26: Rtdo del Ejercicio (a) | P26: =P24-P25 -> -5250 | Q26: =P26/$P$5 -> -1.05
G27: Periodificaciones a L/P | J27: =Balance!R26 -> 0
A28: TOTAL ACTIVO | E28: =E18+E5 -> 15350 | G28: Pasivo Corriente | J28: =J29+J32+J36 -> 8600 | M28: Ratios e indicadores básicos
G29: Pasivos Comerciales | J29: =SUM(J30:J31) -> 8600
G30: Proveedores | J30: =Balance!R36 -> 5000 | M30: Análisis del Endeudamiento
G31: Otros Acreedores | J31: =Balance!R37 -> 3600 | M31: Endeudamiento total
G32: Créditos Puros a C/P | J32: =SUM(J33:J35) -> 0 | N32: Pasivo Total / Patrimonio Neto | Q32: =IFERROR(((Balance!R18+Balance!R27)/Balance!R3),0) -> 1.274074074
G33: Deudas con Entidades de Credito | J33: =Balance!R31 -> 0 | M33: Endeudamiento a Largo Plazo
G34: Deud. Empr.Grupo y Asociadas C/P | J34: =Balance!R34 -> 0 | N34: Pasivo No Corriente / Patrimonio Neto | Q34: =IFERROR(Balance!R18/Balance!R3,0) -> 0
G35: Otras Deudas a C/P | J35: =Balance!R33+Balance!R28+Balance!R38 -> 0 | M35: Endeudamiento a Corto Plazo
G36: Otros Pasivos Corrientes | J36: =SUM(J37) -> 0 | N36: Pasivo Corriente / Patrimonio Neto | Q36: =IFERROR(Balance!R27/Balance!R3,0) -> 1.274074074
G37: Provisiones a C/P | J37: =Balance!R29 -> 0
G38: TOTAL PASIVO | J38: =J18+J5 -> 15350 | M38: Análisis Financiero o de Solvencia
M39: Equilibrio a L/P: Garantía
N40: Activo Total / Pasivo Total | Q40: =IFERROR(Balance!G21/(Balance!R18+Balance!R27),0) -> 1.784883721
M41: Equilibrio a L/P: Financiación Actinvo No Corriente
M42: Activo No Corriente / Pasivo No Corriente | Q42: =IFERROR(Balance!G3/Balance!R18,0) -> 0
M43: Equilibrio a C/P: Ratio Corriente
M44: Activo Corriente / Pasivo Corriente | Q44: =IFERROR(Balance!G10/Balance!R27,0) -> 1.715116279
M46: Análisis Económico o de la Rentabilidad
M47: Rentabilidad Económica Global
M48: (BDI+Gtos Financieros)/(Total Activo -Accion. Exig) % | Q48: =IFERROR(((PyG!H24+PyG!H17)/(Balance!G21-Balance!G15)),0) -> -0.342019544
M49: Rentabilidad Económica: Margen Económico
M50: (BDI+Gtos Financieros)/(Cifra de Negocios) % | Q50: =IFERROR(((PyG!H24+PyG!H17)/(PyG!H4)),0) -> -1.05
M51: Rentabilidad Económica: Rotación del Activo
M52: (Cifra de Negocios)/(Total Activo - Accioni. Exig) % | Q52: =IFERROR((PyG!H4/(Balance!G21-Balance!G15)),0) -> 0.325732899
M53: Rentabilidad Financiera Global
M54: BDI/ (Patrimonio Neto -Accion Exigidos)% | Q54: =IFERROR((PyG!H24/(Balance!R3-Balance!G15)),0) -> -0.7777777778
M55: Rentab. Financiera: Coste Medio Contable de la Deuda
M56: Gastos Financieros / Pasivo Total % | Q56: =IFERROR((PyG!H17/(Balance!R18+Balance!R27)),0) -> 0
M57: Rentabilidad Financiera: Ratio de Endeudamiento
M58: Pasivo Total / (Patrimonio Neto -Accion Exigidos)% | Q58: =IFERROR(((Balance!R18+Balance!R27)/(Balance!R3-Balance!G15)),0) -> 1.274074074

Sheet Sumas y Saldos (hidden)
A1: Balance de Sumas y Saldos
A2: Cuenta | B2: Multiplicador | C2: Grupo Abreviado | D2: Debe | E2: Haber | F2: Saldo
A3: 1000 | B3: -1 | C3: PAI1 | D3: =SUMIFS(Tabla_Diario[Importe],Tabla_Diario[Cta],Tabla5[Cuenta],Tabla_Diario[D/H],"D") -> 0 | E3: =SUMIFS(Tabla_Diario[Importe],Tabla_Diario[Cta],Tabla5[Cuenta],Tabla_Diario[D/H],"H") -> 12000 | F3: =(Tabla5[[#This Row],[Debe]]-Tabla5[[#This Row],[Haber]])*Tabla5[[#This Row],[Multiplicador]] -> 12000
A4: 1010 | B4: -1 | C4: PAI1 | D4: =SUMIFS(Tabla_Diario[Importe],Tabla_Diario[Cta],Tabla5[Cuenta],Tabla_Diario[D/H],"D") -> 0 | E4: =SUMIFS(Tabla_Diario[Importe],Tabla_Diario[Cta],Tabla5[Cuenta],Tabla_Diario[D/H],"H") -> 0 | F4: =(Tabla5[[#This Row],[Debe]]-Tabla5[[#This Row],[Haber]])*Tabla5[[#This Row],[Multiplicador]] -> 0
A5: 1020 | B5: -1 | C5: PAI1 | D5: =SUMIFS(Tabla_Diario[Importe],Tabla_Diario[Cta],Tabla5[Cuenta],Tabla_Diario[D/H],"D") -> 0 | E5: =SUMIFS(Tabla_Diario[Importe],Tabla_Diario[Cta],Tabla5[Cuenta],Tabla_Diario[D/H],"H") -> 0 | F5: =(Tabla5[[#This Row],[Debe]]-Tabla5[[#This Row],[Haber]])*Tabla5[[#This Row],[Multiplicador]] -> 0
A6: 1030 | B6: 1 | C6: PAI2 | D6: =SUMIFS(Tabla_Diario[Importe],Tabla_Diario[Cta],Tabla5[Cuenta],Tabla_Diario[D/H],"D") -> 0 | E6: =SUMIFS(Tabla_Diario[Importe],Tabla_Diario[Cta],Tabla5[Cuenta],Tabla_Diario[D/H],"H") -> 0 | F6: =(Tabla5[[#This Row],[Debe]]-Tabla5[[#This Row],[Haber]])*Tabla5[[#This Row],[Multiplicador]] -> 0
A7: 1040 | B7: 1 | C7: PAI2 | D7: =SUMIFS(Tabla_Diario[Importe],Tabla_Diario[Cta],Tabla5[Cuenta],Tabla_Diario[D/H],"D") -> 0 | E7: =SUMIFS(Tabla_Diario[Importe],Tabla_Diario[Cta],Tabla5[Cuenta],Tabla_Diario[D/H],"H") -> 0 | F7: =(Tabla5[[#This Row],[Debe]]-Tabla5[[#This Row],[Haber]])*Tabla5[[#This Row],[Multiplicador]] -> 0
A8: 1080 | B8: 1 | C8: PAIV | D8: =SUMIFS(Tabla_Diario[Importe],Tabla_Diario[Cta],Tabla5[Cuenta],Tabla_Diario[D/H],"D") -> 0 | E8: =SUMIFS(Tabla_Diario[Importe],Tabla_Diario[Cta],Tabla5[Cuenta],Tabla_Diario[D/H],"H") -> 0 | F8: =(Tabla5[[#This Row],[Debe]]-Tabla5[[#This Row],[Haber]])*Tabla5[[#This Row],[Multiplicador]] -> 0 | I8: 5730
A9: 1090 | B9: 1 | C9: PAIV | D9: =SUMIFS(Tabla_Diario[Importe],Tabla_Diario[Cta],Tabla5[Cuenta],Tabla_Diario[D/H],"D") -> 0 | E9: =SUMIFS(Tabla_Diario[Importe],Tabla_Diario[Cta],Tabla5[Cuenta],Tabla_Diario[D/H],"H") -> 0 | F9: =(Tabla5[[#This Row],[Debe]]-Tabla5[[#This Row],[Haber]])*Tabla5[[#This Row],[Multiplicador]] -> 0
A10: 1100 | B10: -1 | C10: PAII | D10: =SUMIFS(Tabla_Diario[Importe],Tabla_Diario[Cta],Tabla5[Cuenta],Tabla_Diario[D/H],"D") -> 0 | E10: =SUMIFS(Tabla_Diario[Importe],Tabla_Diario[Cta],Tabla5[Cuenta],Tabla_Diario[D/H],"H") -> 0 | F10: =(Tabla5[[#This Row],[Debe]]-Tabla5[[#This Row],[Haber]])*Tabla5[[#This Row],[Multiplicador]] -> 0
A11: 1110 | B11: -1 | C11: PAIX | D11: =SUMIFS(Tabla_Diario[Importe],Tabla_Diario[Cta],Tabla5[Cuenta],Tabla_Diario[D/H],"D") -> 0 | E11: =SUMIFS(Tabla_Diario[Importe],Tabla_Diario[Cta],Tabla5[Cuenta],Tabla_Diario[D/H],"H") -> 0 | F11: =(Tabla5[[#This Row],[Debe]]-Tabla5[[#This Row],[Haber]])*Tabla5[[#This Row],[Multiplicador]] -> 0
A12: 1120 | B12: -1 | C12: PAIII | D12: =SUMIFS(Tabla_Diario[Importe],Tabla_Diario[Cta],Tabla5[Cuenta],Tabla_Diario[D/H],"D") -> 0 | E12: =SUMIFS(Tabla_Diario[Importe],Tabla_Diario[Cta],Tabla5[Cuenta],Tabla_Diario[D/H],"H") -> 0 | F12: =(Tabla5[[#This Row],[Debe]]-Tabla5[[#This Row],[Haber]])*Tabla5[[#This Row],[Multiplicador]] -> 0
A13: 1130 | B13: -1 | C13: PAIII | D13: =SUMIFS(Tabla_Diario[Importe],Tabla_Diario[Cta],Tabla5[Cuenta],Tabla_Diario[D/H],"D") -> 0 | E13: =SUMIFS(Tabla_Diario[Importe],Tabla_Diario[Cta],Tabla5[Cuenta],Tabla_Diario[D/H],"H") -> 0 | F13: =(Tabla5[[#This Row],[Debe]]-Tabla5[[#This Row],[Haber]])*Tabla5[[#This Row],[Multiplicador]] -> 0
A14: 1140 | B14: -1 | C14: PAIII | D14: =SUMIFS(Tabla_Diario[Importe],Tabla_Diario[Cta],Tabla5[Cuenta],Tabla_Diario[D/H],"D") -> 0 | E14: =SUMIFS(Tabla_Diario[Importe],Tabla_Diario[Cta],Tabla5[Cuenta],Tabla_Diario[D/H],"H") -> 0 | F14: =(Tabla5[[#This Row],[Debe]]-Tabla5[[#This Row],[Haber]])*Tabla5[[#This Row],[Multiplicador]] -> 0
A15: 1150 | B15: -1 | C15: PAIII | D15: =SUMIFS(Tabla_Diario[Importe],Tabla_Diario[Cta],Tabla5[Cuenta],Tabla_Diario[D/H],"D") -> 0 | E15: =SUMIFS(Tabla_Diario[Importe],Tabla_Diario[Cta],Tabla5[Cuenta],Tabla_Diario[D/H],"H") -> 0 | F15: =(Tabla5[[#This Row],[Debe]]-Tabla5[[#This Row],[Haber]])*Tabla5[[#This Row],[Multiplicador]] -> 0
A16: 1170 | B16: -1 | C16: PAIII | D16: =SUMIFS(Tabla_Diario[Importe],Tabla_Diario[Cta],Tabla5[Cuenta],Tabla_Diario[D/H],"D") -> 0 | E16: =SUMIFS(Tabla_Diario[Importe],Tabla_Diario[Cta],Tabla5[Cuenta],Tabla_Diario[D/H],"H") -> 0 | F16: =(Tabla5[[#This Row],[Debe]]-Tabla5[[#This Row],[Haber]])*Tabla5[[#This Row],[Multiplicador]] -> 0
A17: 1180 | B17: -1 | C17: PAIII | D17: =SUMIFS(Tabla_Diario[Importe],Tabla_Diario[Cta],Tabla5[Cuenta],Tabla_Diario[D/H],"D") -> 0 | E17: =SUMIFS(Tabla_Diario[Importe],Tabla_Diario[Cta],Tabla5[Cuenta],Tabla_Diario[D/H],"H") -> 0 | F17: =(Tabla5[[#This Row],[Debe]]-Tabla5[[#This Row],[Haber]])*Tabla5[[#This Row],[Multiplicador]] -> 0
A18: 1190 | B18: -1 | C18: PAIII | D18: =SUMIFS(Tabla_Diario[Importe],Tabla_Diario[Cta],Tabla5[Cuenta],Tabla_Diario[D/H],"D") -> 0 | E18: =SUMIFS(Tabla_Diario[Importe],Tabla_Diario[Cta],Tabla5[Cuenta],Tabla_Diario[D/H],"H") -> 0 | F18: =(Tabla5[[#This Row],[Debe]]-Tabla5[[#This Row],[Haber]])*Tabla5[[#This Row],[Multiplicador]] -> 0
A19: 1200 | B19: -1 | C19: PAV | D19: =SUMIFS(Tabla_Diario[Importe],Tabla_Diario[Cta],Tabla5[Cuenta],Tabla_Diario[D/H],"D") -> 0 | E19: =SUMIFS(Tabla_Diario[Importe],Tabla_Diario[Cta],Tabla5[Cuenta],Tabla_Diario[D/H],"H") -> 0 | F19: =(Tabla5[[#This Row],[Debe]]-Tabla5[[#This Row],[Haber]])*Tabla5[[#This Row],[Multiplicador]] -> 0
A20: 1210 | B20: 1 | C20: PAV | D20: =SUMIFS(Tabla_Diario[Importe],Tabla_Diario[Cta],Tabla5[Cuenta],Tabla_Diario[D/H],"D") -> 0 | E20: =SUMIFS(Tabla_Diario[Importe],Tabla_Diario[Cta],Tabla5[Cuenta],Tabla_Diario[D/H],"H") -> 0 | F20: =(Tabla5[[#This Row],[Debe]]-Tabla5[[#This Row],[Haber]])*Tabla5[[#This Row],[Multiplicador]] -> 0
A21: 1280 | B21: -1 | C21: PAVI | D21: =SUMIFS(Tabla_Diario[Importe],Tabla_Diario[Cta],Tabla5[Cuenta],Tabla_Diario[D/H],"D") -> 0 | E21: =SUMIFS(Tabla_Diario[Importe],Tabla_Diario[Cta],Tabla5[Cuenta],Tabla_Diario[D/H],"H") -> 0 | F21: =(Tabla5[[#This Row],[Debe]]-Tabla5[[#This Row],[Haber]])*Tabla5[[#This Row],[Multiplicador]] -> 0
A22: 1290 | B22: -1 | C22: PAVII | D22: =SUMIFS(Tabla_Diario[Importe],Tabla_Diario[Cta],Tabla5[Cuenta],Tabla_Diario[D/H],"D") -> 0 | E22: =SUMIFS(Tabla_Diario[Importe],Tabla_Diario[Cta],Tabla5[Cuenta],Tabla_Diario[D/H],"H") -> 0 | F22: =(Tabla5[[#This Row],[Debe]]-Tabla5[[#This Row],[Haber]])*Tabla5[[#This Row],[Multiplicador]] -> 0
A23: 1300 | B23: -1 | C23: PA3 | D23: =SUMIFS(Tabla_Diario[Importe],Tabla_Diario[Cta],Tabla5[Cuenta],Tabla_Diario[D/H],"D") -> 0 | E23: =SUMIFS(Tabla_Diario[Importe],Tabla_Diario[Cta],Tabla5[Cuenta],Tabla_Diario[D/H],"H") -> 0 | F23: =(Tabla5[[#This Row],[Debe]]-Tabla5[[#This Row],[Haber]])*Tabla5[[#This Row],[Multiplicador]] -> 0
A24: 1310 | B24: -1 | C24: PA3 | D24: =SUMIFS(Tabla_Diario[Importe],Tabla_Diario[Cta],Tabla5[Cuenta],Tabla_Diario[D/H],"D") -> 0 | E24: =SUMIFS(Tabla_Diario[Importe],Tabla_Diario[Cta],Tabla5[Cuenta],Tabla_Diario[D/H],"H") -> 0 | F24: =(Tabla5[[#This Row],[Debe]]-Tabla5[[#This Row],[Haber]])*Tabla5[[#This Row],[Multiplicador]] -> 0
A25: 1320 | B25: -1 | C25: PA3 | D25: =SUMIFS(Tabla_Diario[Importe],Tabla_Diario[Cta],Tabla5[Cuenta],Tabla_Diario[D/H],"D") -> 0 | E25: =SUMIFS(Tabla_Diario[Importe],Tabla_Diario[Cta],Tabla5[Cuenta],Tabla_Diario[D/H],"H") -> 0 | F25: =(Tabla5[[#This Row],[Debe]]-Tabla5[[#This Row],[Haber]])*Tabla5[[#This Row],[Multiplicador]] -> 0
A26: 1330 | B26: -1 | C26: PA2 | D26: =SUMIFS(Tabla_Diario[Importe],Tabla_Diario[Cta],Tabla5[Cuenta],Tabla_Diario[D/H],"D") -> 0 | E26: =SUMIFS(Tabla_Diario[Importe],Tabla_Diario[Cta],Tabla5[Cuenta],Tabla_Diario[D/H],"H") -> 0 | F26: =(Tabla5[[#This Row],[Debe]]-Tabla5[[#This Row],[Haber]])*Tabla5[[#This Row],[Multiplicador]] -> 0
A27: 1340 | B27: -1 | C27: PA2 | D27: =SUMIFS(Tabla_Diario[Importe],Tabla_Diario[Cta],Tabla5[Cuenta],Tabla_Diario[D/H],"D") -> 0 | E27: =SUMIFS(Tabla_Diario[Importe],Tabla_Diario[Cta],Tabla5[Cuenta],Tabla_Diario[D/H],"H") -> 0 | F27: =(Tabla5[[#This Row],[Debe]]-Tabla5[[#This Row],[Haber]])*Tabla5[[#This Row],[Multiplicador]] -> 0
A28: 1350 | B28: -1 | C28: PA2 | D28: =SUMIFS(Tabla_Diario[Importe],Tabla_Diario[Cta],Tabla5[Cuenta],Tabla_Diario[D/H],"D") -> 0 | E28: =SUMIFS(Tabla_Diario[Importe],Tabla_Diario[Cta],Tabla5[Cuenta],Tabla_Diario[D/H],"H") -> 0 | F28: =(Tabla5[[#This Row],[Debe]]-Tabla5[[#This Row],[Haber]])*Tabla5[[#This Row],[Multiplicador]] -> 0
A29: 1360 | B29: -1 | C29: PA2 | D29: =SUMIFS(Tabla_Diario[Importe],Tabla_Diario[Cta],Tabla5[Cuenta],Tabla_Diario[D/H],"D") -> 0 | E29: =SUMIFS(Tabla_Diario[Importe],Tabla_Diario[Cta],Tabla5[Cuenta],Tabla_Diario[D/H],"H") -> 0 | F29: =(Tabla5[[#This Row],[Debe]]-Tabla5[[#This Row],[Haber]])*Tabla5[[#This Row],[Multiplicador]] -> 0
A30: 1370 | B30: -1 | C30: PA2 | D30: =SUMIFS(Tabla_Diario[Importe],Tabla_Diario[Cta],Tabla5[Cuenta],Tabla_Diario[D/H],"D") -> 0 | E30: =SUMIFS(Tabla_Diario[Importe],Tabla_Diario[Cta],Tabla5[Cuenta],Tabla_Diario[D/H],"H") -> 0 | F30: =(Tabla5[[#This Row],[Debe]]-Tabla5[[#This Row],[Haber]])*Tabla5[[#This Row],[Multiplicador]] -> 0
A31: 1400 | B31: -1 | C31: PBI | D31: =SUMIFS(Tabla_Diario[Importe],Tabla_Diario[Cta],Tabla5[Cuenta],Tabla_Diario[D/H],"D") -> 0 | E31: =SUMIFS(Tabla_Diario[Importe],Tabla_Diario[Cta],Tabla5[Cuenta],Tabla_Diario[D/H],"H") -> 0 | F31: =(Tabla5[[#This Row],[Debe]]-Tabla5[[#This Row],[Haber]])*Tabla5[[#This Row],[Multiplicador]] -> 0
A32: 1410 | B32: -1 | C32: PBI | D32: =SUMIFS(Tabla_Diario[Importe],Tabla_Diario[Cta],Tabla5[Cuenta],Tabla_Diario[D/H],"D") -> 0 | E32: =SUMIFS(Tabla_Diario[Importe],Tabla_Diario[Cta],Tabla5[Cuenta],Tabla_Diario[D/H],"H") -> 0 | F32: =(Tabla5[[#This Row],[Debe]]-Tabla5[[#This Row],[Haber]])*Tabla5[[#This Row],[Multiplicador]] -> 0
A33: 1420 | B33: -1 | C33: PBI | D33: =SUMIFS(Tabla_Diario[Importe],Tabla_Diario[Cta],Tabla5[Cuenta],Tabla_Diario[D/H],"D") -> 0 | E33: =SUMIFS(Tabla_Diario[Importe],Tabla_Diario[Cta],Tabla5[Cuenta],Tabla_Diario[D/H],"H") -> 0 | F33: =(Tabla5[[#This Row],[Debe]]-Tabla5[[#This Row],[Haber]])*Tabla5[[#This Row],[Multiplicador]] -> 0
A34: 1430 | B34: -1 | C34: PBI | D34: =SUMIFS(Tabla_Diario[Importe],Tabla_Diario[Cta],Tabla5[Cuenta],Tabla_Diario[D/H],"D") -> 0 | E34: =SUMIFS(Tabla_Diario[Importe],Tabla_Diario[Cta],Tabla5[Cuenta],Tabla_Diario[D/H],"H") -> 0 | F34: =(Tabla5[[#This Row],[Debe]]-Tabla5[[#This Row],[Haber]])*Tabla5[[#This Row],[Multiplicador]] -> 0
A35: 1450 | B35: -1 | C35: PBI | D35: =SUMIFS(Tabla_Diario[Importe],Tabla_Diario[Cta],Tabla5[Cuenta],Tabla_Diario[D/H],"D") -> 0 | E35: =SUMIFS(Tabla_Diario[Importe],Tabla_Diario[Cta],Tabla5[Cuenta],Tabla_Diario[D/H],"H") -> 0 | F35: =(Tabla5[[#This Row],[Debe]]-Tabla5[[#This Row],[Haber]])*Tabla5[[#This Row],[Multiplicador]] -> 0
A36: 1460 | B36: -1 | C36: PBI | D36: =SUMIFS(Tabla_Diario[Importe],Tabla_Diario[Cta],Tabla5[Cuenta],Tabla_Diario[D/H],"D") -> 0 | E36: =SUMIFS(Tabla_Diario[Importe],Tabla_Diario[Cta],Tabla5[Cuenta],Tabla_Diario[D/H],"H") -> 0 | F36: =(Tabla5[[#This Row],[Debe]]-Tabla5[[#This Row],[Haber]])*Tabla5[[#This Row],[Multiplicador]] -> 0
A37: 1470 | B37: -1 | C37: PBI | D37: =SUMIFS(Tabla_Diario[Importe],Tabla_Diario[Cta],Tabla5[Cuenta],Tabla_Diario[D/H],"D") -> 0 | E37: =SUMIFS(Tabla_Diario[Importe],Tabla_Diario[Cta],Tabla5[Cuenta],Tabla_Diario[D/H],"H") -> 0 | F37: =(Tabla5[[#This Row],[Debe]]-Tabla5[[#This Row],[Haber]])*Tabla5[[#This Row],[Multiplicador]] -> 0
A38: 1500 | B38: -1 | C38: PBII2 | D38: =SUMIFS(Tabla_Diario[Importe],Tabla_Diario[Cta],Tabla5[Cuenta],Tabla_Diario[D/H],"D") -> 0 | E38: =SUMIFS(Tabla_Diario[Importe],Tabla_Diario[Cta],Tabla5[Cuenta],Tabla_Diario[D/H],"H") -> 0 | F38: =(Tabla5[[#This Row],[Debe]]-Tabla5[[#This Row],[Haber]])*Tabla5[[#This Row],[Multiplicador]] -> 0
A39: 1530 | B39: -1 | C39: PBII2 | D39: =SUMIFS(Tabla_Diario[Importe],Tabla_Diario[Cta],Tabla5[Cuenta],Tabla_Diario[D/H],"D") -> 0 | E39: =SUMIFS(Tabla_Diario[Importe],Tabla_Diario[Cta],Tabla5[Cuenta],Tabla_Diario[D/H],"H") -> 0 | F39: =(Tabla5[[#This Row],[Debe]]-Tabla5[[#This Row],[Haber]])*Tabla5[[#This Row],[Multiplicador]] -> 0
A40: 1540 | B40: -1 | C40: PBII2 | D40: =SUMIFS(Tabla_Diario[Importe],Tabla_Diario[Cta],Tabla5[Cuenta],Tabla_Diario[D/H],"D") -> 0 | E40: =SUMIFS(Tabla_Diario[Importe],Tabla_Diario[Cta],Tabla5[Cuenta],Tabla_Diario[D/H],"H") -> 0 | F40: =(Tabla5[[#This Row],[Debe]]-Tabla5[[#This Row],[Haber]])*Tabla5[[#This Row],[Multiplicador]] -> 0
A41: 1600 | B41: -1 | C41: PBII2 | D41: =SUMIFS(Tabla_Diario[Importe],Tabla_Diario[Cta],Tabla5[Cuenta],Tabla_Diario[D/H],"D") -> 0 | E41: =SUMIFS(Tabla_Diario[Importe],Tabla_Diario[Cta],Tabla5[Cuenta],Tabla_Diario[D/H],"H") -> 0 | F41: =(Tabla5[[#This Row],[Debe]]-Tabla5[[#This Row],[Haber]])*Tabla5[[#This Row],[Multiplicador]] -> 0
A42: 1610 | B42: -1 | C42: PBII3 | D42: =SUMIFS(Tabla_Diario[Importe],Tabla_Diario[Cta],Tabla5[Cuenta],Tabla_Diario[D/H],"D") -> 0 | E42: =SUMIFS(Tabla_Diario[Importe],Tabla_Diario[Cta],Tabla5[Cuenta],Tabla_Diario[D/H],"H") -> 0 | F42: =(Tabla5[[#This Row],[Debe]]-Tabla5[[#This Row],[Haber]])*Tabla5[[#This Row],[Multiplicador]] -> 0
A43: 1620 | B43: -1 | C43: PBIII | D43: =SUMIFS(Tabla_Diario[Importe],Tabla_Diario[Cta],Tabla5[Cuenta],Tabla_Diario[D/H],"D") -> 0 | E43: =SUMIFS(Tabla_Diario[Importe],Tabla_Diario[Cta],Tabla5[Cuenta],Tabla_Diario[D/H],"H") -> 0 | F43: =(Tabla5[[#This Row],[Debe]]-Tabla5[[#This Row],[Haber]])*Tabla5[[#This Row],[Multiplicador]] -> 0
A44: 1630 | B44: -1 | C44: PBII3 | D44: =SUMIFS(Tabla_Diario[Importe],Tabla_Diario[Cta],Tabla5[Cuenta],Tabla_Diario[D/H],"D") -> 0 | E44: =SUMIFS(Tabla_Diario[Importe],Tabla_Diario[Cta],Tabla5[Cuenta],Tabla_Diario[D/H],"H") -> 0 | F44: =(Tabla5[[#This Row],[Debe]]-Tabla5[[#This Row],[Haber]])*Tabla5[[#This Row],[Multiplicador]] -> 0
A45: 1700 | B45: -1 | C45: PBII2 | D45: =SUMIFS(Tabla_Diario[Importe],Tabla_Diario[Cta],Tabla5[Cuenta],Tabla_Diario[D/H],"D") -> 0 | E45: =SUMIFS(Tabla_Diario[Importe],Tabla_Diario[Cta],Tabla5[Cuenta],Tabla_Diario[D/H],"H") -> 0 | F45: =(Tabla5[[#This Row],[Debe]]-Tabla5[[#This Row],[Haber]])*Tabla5[[#This Row],[Multiplicador]] -> 0
A46: 1710 | B46: -1 | C46: PBII3 | D46: =SUMIFS(Tabla_Diario[Importe],Tabla_Diario[Cta],Tabla5[Cuenta],Tabla_Diario[D/H],"D") -> 0 | E46: =SUMIFS(Tabla_Diario[Importe],Tabla_Diario[Cta],Tabla5[Cuenta],Tabla_Diario[D/H],"H") -> 0 | F46: =(Tabla5[[#This Row],[Debe]]-Tabla5[[#This Row],[Haber]])*Tabla5[[#This Row],[Multiplicador]] -> 0
A47: 1720 | B47: -1 | C47: PBII3 | D47: =SUMIFS(Tabla_Diario[Importe],Tabla_Diario[Cta],Tabla5[Cuenta],Tabla_Diario[D/H],"D") -> 0 | E47: =SUMIFS(Tabla_Diario[Importe],Tabla_Diario[Cta],Tabla5[Cuenta],Tabla_Diario[D/H],"H") -> 0 | F47: =(Tabla5[[#This Row],[Debe]]-Tabla5[[#This Row],[Haber]])*Tabla5[[#This Row],[Multiplicador]] -> 0
A48: 1730 | B48: -1 | C48: PBII3 | D48: =SUMIFS(Tabla_Diario[Importe],Tabla_Diario[Cta],Tabla5[Cuenta],Tabla_Diario[D/H],"D") -> 0 | E48: =SUMIFS(Tabla_Diario[Importe],Tabla_Diario[Cta],Tabla5[Cuenta],Tabla_Diario[D/H],"H") -> 0 | F48: =(Tabla5[[#This Row],[Debe]]-Tabla5[[#This Row],[Haber]])*Tabla5[[#This Row],[Multiplicador]] -> 0
A49: 1740 | B49: -1 | C49: PBII3 | D49: =SUMIFS(Tabla_Diario[Importe],Tabla_Diario[Cta],Tabla5[Cuenta],Tabla_Diario[D/H],"D") -> 0 | E49: =SUMIFS(Tabla_Diario[Importe],Tabla_Diario[Cta],Tabla5[Cuenta],Tabla_Diario[D/H],"H") -> 0 | F49: =(Tabla5[[#This Row],[Debe]]-Tabla5[[#This Row],[Haber]])*Tabla5[[#This Row],[Multiplicador]] -> 0
A50: 1750 | B50: -1 | C50: PBII3 | D50: =SUMIFS(Tabla_Diario[Importe],Tabla_Diario[Cta],Tabla5[Cuenta],Tabla_Diario[D/H],"D") -> 0 | E50: =SUMIFS(Tabla_Diario[Importe],Tabla_Diario[Cta],Tabla5[Cuenta],Tabla_Diario[D/H],"H") -> 0 | F50: =(Tabla5[[#This Row],[Debe]]-Tabla5[[#This Row],[Haber]])*Tabla5[[#This Row],[Multiplicador]] -> 0
A51: 1760 | B51: -1 | C51: PBII3 | D51: =SUMIFS(Tabla_Diario[Importe],Tabla_Diario[Cta],Tabla5[Cuenta],Tabla_Diario[D/H],"D") -> 0 | E51: =SUMIFS(Tabla_Diario[Importe],Tabla_Diario[Cta],Tabla5[Cuenta],Tabla_Diario[D/H],"H") -> 0 | F51: =(Tabla5[[#This Row],[Debe]]-Tabla5[[#This Row],[Haber]])*Tabla5[[#This Row],[Multiplicador]] -> 0
A52: 1770 | B52: -1 | C52: PBII3 | D52: =SUMIFS(Tabla_Diario[Importe],Tabla_Diario[Cta],Tabla5[Cuenta],Tabla_Diario[D/H],"D") -> 0 | E52: =SUMIFS(Tabla_Diario[Importe],Tabla_Diario[Cta],Tabla5[Cuenta],Tabla_Diario[D/H],"H") -> 0 | F52: =(Tabla5[[#This Row],[Debe]]-Tabla5[[#This Row],[Haber]])*Tabla5[[#This Row],[Multiplicador]] -> 0
A53: 1780 | B53: -1 | C53: PBII3 | D53: =SUMIFS(Tabla_Diario[Importe],Tabla_Diario[Cta],Tabla5[Cuenta],Tabla_Diario[D/H],"D") -> 0 | E53: =SUMIFS(Tabla_Diario[Importe],Tabla_Diario[Cta],Tabla5[Cuenta],Tabla_Diario[D/H],"H") -> 0 | F53: =(Tabla5[[#This Row],[Debe]]-Tabla5[[#This Row],[Haber]])*Tabla5[[#This Row],[Multiplicador]] -> 0
A54: 1790 | B54: -1 | C54: PBII3 | D54: =SUMIFS(Tabla_Diario[Importe],Tabla_Diario[Cta],Tabla5[Cuenta],Tabla_Diario[D/H],"D") -> 0 | E54: =SUMIFS(Tabla_Diario[Importe],Tabla_Diario[Cta],Tabla5[Cuenta],Tabla_Diario[D/H],"H") -> 0 | F54: =(Tabla5[[#This Row],[Debe]]-Tabla5[[#This Row],[Haber]])*Tabla5[[#This Row],[Multiplicador]] -> 0
A55: 1800 | B55: -1 | C55: PBII3 | D55: =SUMIFS(Tabla_Diario[Importe],Tabla_Diario[Cta],Tabla5[Cuenta],Tabla_Diario[D/H],"D") -> 0 | E55: =SUMIFS(Tabla_Diario[Importe],Tabla_Diario[Cta],Tabla5[Cuenta],Tabla_Diario[D/H],"H") -> 0 | F55: =(Tabla5[[#This Row],[Debe]]-Tabla5[[#This Row],[Haber]])*Tabla5[[#This Row],[Multiplicador]] -> 0
A56: 1810 | B56: -1 | C56: PBV | D56: =SUMIFS(Tabla_Diario[Importe],Tabla_Diario[Cta],Tabla5[Cuenta],Tabla_Diario[D/H],"D") -> 0 | E56: =SUMIFS(Tabla_Diario[Importe],Tabla_Diario[Cta],Tabla5[Cuenta],Tabla_Diario[D/H],"H") -> 0 | F56: =(Tabla5[[#This Row],[Debe]]-Tabla5[[#This Row],[Haber]])*Tabla5[[#This Row],[Multiplicador]] -> 0
A57: 1850 | B57: -1 | C57: PBII3 | D57: =SUMIFS(Tabla_Diario[Importe],Tabla_Diario[Cta],Tabla5[Cuenta],Tabla_Diario[D/H],"D") -> 0 | E57: =SUMIFS(Tabla_Diario[Importe],Tabla_Diario[Cta],Tabla5[Cuenta],Tabla_Diario[D/H],"H") -> 0 | F57: =(Tabla5[[#This Row],[Debe]]-Tabla5[[#This Row],[Haber]])*Tabla5[[#This Row],[Multiplicador]] -> 0
A58: 1890 | B58: -1 | C58: PBII3 | D58: =SUMIFS(Tabla_Diario[Importe],Tabla_Diario[Cta],Tabla5[Cuenta],Tabla_Diario[D/H],"D") -> 0 | E58: =SUMIFS(Tabla_Diario[Importe],Tabla_Diario[Cta],Tabla5[Cuenta],Tabla_Diario[D/H],"H") -> 0 | F58: =(Tabla5[[#This Row],[Debe]]-Tabla5[[#This Row],[Haber]])*Tabla5[[#This Row],[Multiplicador]] -> 0
A59: 1900 | B59: 1 | C59: PCIII3 | D59: =SUMIFS(Tabla_Diario[Importe],Tabla_Diario[Cta],Tabla5[Cuenta],Tabla_Diario[D/H],"D") -> 0 | E59: =SUMIFS(Tabla_Diario[Importe],Tabla_Diario[Cta],Tabla5[Cuenta],Tabla_Diario[D/H],"H") -> 0 | F59: =(Tabla5[[#This Row],[Debe]]-Tabla5[[#This Row],[Haber]])*Tabla5[[#This Row],[Multiplicador]] -> 0
A60: 1920 | B60: 1 | C60: PCIII3 | D60: =SUMIFS(Tabla_Diario[Importe],Tabla_Diario[Cta],Tabla5[Cuenta],Tabla_Diario[D/H],"D") -> 0 | E60: =SUMIFS(Tabla_Diario[Importe],Tabla_Diario[Cta],Tabla5[Cuenta],Tabla_Diario[D/H],"H") -> 0 | F60: =(Tabla5[[#This Row],[Debe]]-Tabla5[[#This Row],[Haber]])*Tabla5[[#This Row],[Multiplicador]] -> 0
A61: 1940 | B61: -1 | C61: PCIII3 | D61: =SUMIFS(Tabla_Diario[Importe],Tabla_Diario[Cta],Tabla5[Cuenta],Tabla_Diario[D/H],"D") -> 0 | E61: =SUMIFS(Tabla_Diario[Importe],Tabla_Diario[Cta],Tabla5[Cuenta],Tabla_Diario[D/H],"H") -> 0 | F61: =(Tabla5[[#This Row],[Debe]]-Tabla5[[#This Row],[Haber]])*Tabla5[[#This Row],[Multiplicador]] -> 0
A62: 1950 | B62: -1 | C62: PCIII3 | D62: =SUMIFS(Tabla_Diario[Importe],Tabla_Diario[Cta],Tabla5[Cuenta],Tabla_Diario[D/H],"D") -> 0 | E62: =SUMIFS(Tabla_Diario[Importe],Tabla_Diario[Cta],Tabla5[Cuenta],Tabla_Diario[D/H],"H") -> 0 | F62: =(Tabla5[[#This Row],[Debe]]-Tabla5[[#This Row],[Haber]])*Tabla5[[#This Row],[Multiplicador]] -> 0
A63: 1970 | B63: -1 | C63: PCIII3 | D63: =SUMIFS(Tabla_Diario[Importe],Tabla_Diario[Cta],Tabla5[Cuenta],Tabla_Diario[D/H],"D") -> 0 | E63: =SUMIFS(Tabla_Diario[Importe],Tabla_Diario[Cta],Tabla5[Cuenta],Tabla_Diario[D/H],"H") -> 0 | F63: =(Tabla5[[#This Row],[Debe]]-Tabla5[[#This Row],[Haber]])*Tabla5[[#This Row],[Multiplicador]] -> 0
A64: 1990 | B64: -1 | C64: PCIII3 | D64: =SUMIFS(Tabla_Diario[Importe],Tabla_Diario[Cta],Tabla5[Cuenta],Tabla_Diario[D/H],"D") -> 0 | E64: =SUMIFS(Tabla_Diario[Importe],Tabla_Diario[Cta],Tabla5[Cuenta],Tabla_Diario[D/H],"H") -> 0 | F64: =(Tabla5[[#This Row],[Debe]]-Tabla5[[#This Row],[Haber]])*Tabla5[[#This Row],[Multiplicador]] -> 0
A65: 2000 | B65: 1 | C65: AAI | D65: =SUMIFS(Tabla_Diario[Importe],Tabla_Diario[Cta],Tabla5[Cuenta],Tabla_Diario[D/H],"D") -> 0 | E65: =SUMIFS(Tabla_Diario[Importe],Tabla_Diario[Cta],Tabla5[Cuenta],Tabla_Diario[D/H],"H") -> 0 | F65: =(Tabla5[[#This Row],[Debe]]-Tabla5[[#This Row],[Haber]])*Tabla5[[#This Row],[Multiplicador]] -> 0
A66: 2010 | B66: 1 | C66: AAI | D66: =SUMIFS(Tabla_Diario[Importe],Tabla_Diario[Cta],Tabla5[Cuenta],Tabla_Diario[D/H],"D") -> 0 | E66: =SUMIFS(Tabla_Diario[Importe],Tabla_Diario[Cta],Tabla5[Cuenta],Tabla_Diario[D/H],"H") -> 0 | F66: =(Tabla5[[#This Row],[Debe]]-Tabla5[[#This Row],[Haber]])*Tabla5[[#This Row],[Multiplicador]] -> 0
A67: 2020 | B67: 1 | C67: AAI | D67: =SUMIFS(Tabla_Diario[Importe],Tabla_Diario[Cta],Tabla5[Cuenta],Tabla_Diario[D/H],"D") -> 0 | E67: =SUMIFS(Tabla_Diario[Importe],Tabla_Diario[Cta],Tabla5[Cuenta],Tabla_Diario[D/H],"H") -> 0 | F67: =(Tabla5[[#This Row],[Debe]]-Tabla5[[#This Row],[Haber]])*Tabla5[[#This Row],[Multiplicador]] -> 0
A68: 2030 | B68: 1 | C68: AAI | D68: =SUMIFS(Tabla_Diario[Importe],Tabla_Diario[Cta],Tabla5[Cuenta],Tabla_Diario[D/H],"D") -> 0 | E68: =SUMIFS(Tabla_Diario[Importe],Tabla_Diario[Cta],Tabla5[Cuenta],Tabla_Diario[D/H],"H") -> 0 | F68: =(Tabla5[[#This Row],[Debe]]-Tabla5[[#This Row],[Haber]])*Tabla5[[#This Row],[Multiplicador]] -> 0
A69: 2040 | B69: 1 | C69: AAI | D69: =SUMIFS(Tabla_Diario[Importe],Tabla_Diario[Cta],Tabla5[Cuenta],Tabla_Diario[D/H],"D") -> 0 | E69: =SUMIFS(Tabla_Diario[Importe],Tabla_Diario[Cta],Tabla5[Cuenta],Tabla_Diario[D/H],"H") -> 0 | F69: =(Tabla5[[#This Row],[Debe]]-Tabla5[[#This Row],[Haber]])*Tabla5[[#This Row],[Multiplicador]] -> 0
A70: 2050 | B70: 1 | C70: AAI | D70: =SUMIFS(Tabla_Diario[Importe],Tabla_Diario[Cta],Tabla5[Cuenta],Tabla_Diario[D/H],"D") -> 0 | E70: =SUMIFS(Tabla_Diario[Importe],Tabla_Diario[Cta],Tabla5[Cuenta],Tabla_Diario[D/H],"H") -> 0 | F70: =(Tabla5[[#This Row],[Debe]]-Tabla5[[#This Row],[Haber]])*Tabla5[[#This Row],[Multiplicador]] -> 0
A71: 2060 | B71: 1 | C71: AAI | D71: =SUMIFS(Tabla_Diario[Importe],Tabla_Diario[Cta],Tabla5[Cuenta],Tabla_Diario[D/H],"D") -> 0 | E71: =SUMIFS(Tabla_Diario[Importe],Tabla_Diario[Cta],Tabla5[Cuenta],Tabla_Diario[D/H],"H") -> 0 | F71: =(Tabla5[[#This Row],[Debe]]-Tabla5[[#This Row],[Haber]])*Tabla5[[#This Row],[Multiplicador]] -> 0
A72: 2090 | B72: 1 | C72: AAI | D72: =SUMIFS(Tabla_Diario[Importe],Tabla_Diario[Cta],Tabla5[Cuenta],Tabla_Diario[D/H],"D") -> 0 | E72: =SUMIFS(Tabla_Diario[Importe],Tabla_Diario[Cta],Tabla5[Cuenta],Tabla_Diario[D/H],"H") -> 0 | F72: =(Tabla5[[#This Row],[Debe]]-Tabla5[[#This Row],[Haber]])*Tabla5[[#This Row],[Multiplicador]] -> 0
A73: 2100 | B73: 1 | C73: AAII | D73: =SUMIFS(Tabla_Diario[Importe],Tabla_Diario[Cta],Tabla5[Cuenta],Tabla_Diario[D/H],"D") -> 0 | E73: =SUMIFS(Tabla_Diario[Importe],Tabla_Diario[Cta],Tabla5[Cuenta],Tabla_Diario[D/H],"H") -> 0 | F73: =(Tabla5[[#This Row],[Debe]]-Tabla5[[#This Row],[Haber]])*Tabla5[[#This Row],[Multiplicador]] -> 0
A74: 2110 | B74: 1 | C74: AAII | D74: =SUMIFS(Tabla_Diario[Importe],Tabla_Diario[Cta],Tabla5[Cuenta],Tabla_Diario[D/H],"D") -> 0 | E74: =SUMIFS(Tabla_Diario[Importe],Tabla_Diario[Cta],Tabla5[Cuenta],Tabla_Diario[D/H],"H") -> 0 | F74: =(Tabla5[[#This Row],[Debe]]-Tabla5[[#This Row],[Haber]])*Tabla5[[#This Row],[Multiplicador]] -> 0
A75: 2120 | B75: 1 | C75: AAII | D75: =SUMIFS(Tabla_Diario[Importe],Tabla_Diario[Cta],Tabla5[Cuenta],Tabla_Diario[D/H],"D") -> 0 | E75: =SUMIFS(Tabla_Diario[Importe],Tabla_Diario[Cta],Tabla5[Cuenta],Tabla_Diario[D/H],"H") -> 0 | F75: =(Tabla5[[#This Row],[Debe]]-Tabla5[[#This Row],[Haber]])*Tabla5[[#This Row],[Multiplicador]] -> 0
A76: 2130 | B76: 1 | C76: AAII | D76: =SUMIFS(Tabla_Diario[Importe],Tabla_Diario[Cta],Tabla5[Cuenta],Tabla_Diario[D/H],"D") -> 0 | E76: =SUMIFS(Tabla_Diario[Importe],Tabla_Diario[Cta],Tabla5[Cuenta],Tabla_Diario[D/H],"H") -> 0 | F76: =(Tabla5[[#This Row],[Debe]]-Tabla5[[#This Row],[Haber]])*Tabla5[[#This Row],[Multiplicador]] -> 0
A77: 2140 | B77: 1 | C77: AAII | D77: =SUMIFS(Tabla_Diario[Importe],Tabla_Diario[Cta],Tabla5[Cuenta],Tabla_Diario[D/H],"D") -> 0 | E77: =SUMIFS(Tabla_Diario[Importe],Tabla_Diario[Cta],Tabla5[Cuenta],Tabla_Diario[D/H],"H") -> 0 | F77: =(Tabla5[[#This Row],[Debe]]-Tabla5[[#This Row],[Haber]])*Tabla5[[#This Row],[Multiplicador]] -> 0
A78: 2150 | B78: 1 | C78: AAII | D78: =SUMIFS(Tabla_Diario[Importe],Tabla_Diario[Cta],Tabla5[Cuenta],Tabla_Diario[D/H],"D") -> 0 | E78: =SUMIFS(Tabla_Diario[Importe],Tabla_Diario[Cta],Tabla5[Cuenta],Tabla_Diario[D/H],"H") -> 0 | F78: =(Tabla5[[#This Row],[Debe]]-Tabla5[[#This Row],[Haber]])*Tabla5[[#This Row],[Multiplicador]] -> 0
A79: 2160 | B79: 1 | C79: AAII | D79: =SUMIFS(Tabla_Diario[Importe],Tabla_Diario[Cta],Tabla5[Cuenta],Tabla_Diario[D/H],"D") -> 600 | E79: =SUMIFS(Tabla_Diario[Importe],Tabla_Diario[Cta],Tabla5[Cuenta],Tabla_Diario[D/H],"H") -> 0 | F79: =(Tabla5[[#This Row],[Debe]]-Tabla5[[#This Row],[Haber]])*Tabla5[[#This Row],[Multiplicador]] -> 600
A80: 2170 | B80: 1 | C80: AAII | D80: =SUMIFS(Tabla_Diario[Importe],Tabla_Diario[Cta],Tabla5[Cuenta],Tabla_Diario[D/H],"D") -> 0 | E80: =SUMIFS(Tabla_Diario[Importe],Tabla_Diario[Cta],Tabla5[Cuenta],Tabla_Diario[D/H],"H") -> 0 | F80: =(Tabla5[[#This Row],[Debe]]-Tabla5[[#This Row],[Haber]])*Tabla5[[#This Row],[Multiplicador]] -> 0
A81: 2180 | B81: 1 | C81: AAII | D81: =SUMIFS(Tabla_Diario[Importe],Tabla_Diario[Cta],Tabla5[Cuenta],Tabla_Diario[D/H],"D") -> 4000 | E81: =SUMIFS(Tabla_Diario[Importe],Tabla_Diario[Cta],Tabla5[Cuenta],Tabla_Diario[D/H],"H") -> 4000 | F81: =(Tabla5[[#This Row],[Debe]]-Tabla5[[#This Row],[Haber]])*Tabla5[[#This Row],[Multiplicador]] -> 0
A82: 2190 | B82: 1 | C82: AAII | D82: =SUMIFS(Tabla_Diario[Importe],Tabla_Diario[Cta],Tabla5[Cuenta],Tabla_Diario[D/H],"D") -> 0 | E82: =SUMIFS(Tabla_Diario[Importe],Tabla_Diario[Cta],Tabla5[Cuenta],Tabla_Diario[D/H],"H") -> 0 | F82: =(Tabla5[[#This Row],[Debe]]-Tabla5[[#This Row],[Haber]])*Tabla5[[#This Row],[Multiplicador]] -> 0
A83: 2200 | B83: 1 | C83: AAIII | D83: =SUMIFS(Tabla_Diario[Importe],Tabla_Diario[Cta],Tabla5[Cuenta],Tabla_Diario[D/H],"D") -> 0 | E83: =SUMIFS(Tabla_Diario[Importe],Tabla_Diario[Cta],Tabla5[Cuenta],Tabla_Diario[D/H],"H") -> 0 | F83: =(Tabla5[[#This Row],[Debe]]-Tabla5[[#This Row],[Haber]])*Tabla5[[#This Row],[Multiplicador]] -> 0
A84: 2210 | B84: 1 | C84: AAIII | D84: =SUMIFS(Tabla_Diario[Importe],Tabla_Diario[Cta],Tabla5[Cuenta],Tabla_Diario[D/H],"D") -> 0 | E84: =SUMIFS(Tabla_Diario[Importe],Tabla_Diario[Cta],Tabla5[Cuenta],Tabla_Diario[D/H],"H") -> 0 | F84: =(Tabla5[[#This Row],[Debe]]-Tabla5[[#This Row],[Haber]])*Tabla5[[#This Row],[Multiplicador]] -> 0
A85: 2240 | B85: 1 | C85: AAIII | D85: =SUMIFS(Tabla_Diario[Importe],Tabla_Diario[Cta],Tabla5[Cuenta],Tabla_Diario[D/H],"D") -> 0 | E85: =SUMIFS(Tabla_Diario[Importe],Tabla_Diario[Cta],Tabla5[Cuenta],Tabla_Diario[D/H],"H") -> 0 | F85: =(Tabla5[[#This Row],[Debe]]-Tabla5[[#This Row],[Haber]])*Tabla5[[#This Row],[Multiplicador]] -> 0
A86: 2260 | B86: 1 | C86: AAIII | D86: =SUMIFS(Tabla_Diario[Importe],Tabla_Diario[Cta],Tabla5[Cuenta],Tabla_Diario[D/H],"D") -> 0 | E86: =SUMIFS(Tabla_Diario[Importe],Tabla_Diario[Cta],Tabla5[Cuenta],Tabla_Diario[D/H],"H") -> 0 | F86: =(Tabla5[[#This Row],[Debe]]-Tabla5[[#This Row],[Haber]])*Tabla5[[#This Row],[Multiplicador]] -> 0
A87: 2270 | B87: 1 | C87: AAIII | D87: =SUMIFS(Tabla_Diario[Importe],Tabla_Diario[Cta],Tabla5[Cuenta],Tabla_Diario[D/H],"D") -> 0 | E87: =SUMIFS(Tabla_Diario[Importe],Tabla_Diario[Cta],Tabla5[Cuenta],Tabla_Diario[D/H],"H") -> 0 | F87: =(Tabla5[[#This Row],[Debe]]-Tabla5[[#This Row],[Haber]])*Tabla5[[#This Row],[Multiplicador]] -> 0
A88: 2300 | B88: 1 | C88: AAII | D88: =SUMIFS(Tabla_Diario[Importe],Tabla_Diario[Cta],Tabla5[Cuenta],Tabla_Diario[D/H],"D") -> 0 | E88: =SUMIFS(Tabla_Diario[Importe],Tabla_Diario[Cta],Tabla5[Cuenta],Tabla_Diario[D/H],"H") -> 0 | F88: =(Tabla5[[#This Row],[Debe]]-Tabla5[[#This Row],[Haber]])*Tabla5[[#This Row],[Multiplicador]] -> 0
A89: 2310 | B89: 1 | C89: AAII | D89: =SUMIFS(Tabla_Diario[Importe],Tabla_Diario[Cta],Tabla5[Cuenta],Tabla_Diario[D/H],"D") -> 0 | E89: =SUMIFS(Tabla_Diario[Importe],Tabla_Diario[Cta],Tabla5[Cuenta],Tabla_Diario[D/H],"H") -> 0 | F89: =(Tabla5[[#This Row],[Debe]]-Tabla5[[#This Row],[Haber]])*Tabla5[[#This Row],[Multiplicador]] -> 0
A90: 2320 | B90: 1 | C90: AAII | D90: =SUMIFS(Tabla_Diario[Importe],Tabla_Diario[Cta],Tabla5[Cuenta],Tabla_Diario[D/H],"D") -> 0 | E90: =SUMIFS(Tabla_Diario[Importe],Tabla_Diario[Cta],Tabla5[Cuenta],Tabla_Diario[D/H],"H") -> 0 | F90: =(Tabla5[[#This Row],[Debe]]-Tabla5[[#This Row],[Haber]])*Tabla5[[#This Row],[Multiplicador]] -> 0
A91: 2330 | B91: 1 | C91: AAII | D91: =SUMIFS(Tabla_Diario[Importe],Tabla_Diario[Cta],Tabla5[Cuenta],Tabla_Diario[D/H],"D") -> 0 | E91: =SUMIFS(Tabla_Diario[Importe],Tabla_Diario[Cta],Tabla5[Cuenta],Tabla_Diario[D/H],"H") -> 0 | F91: =(Tabla5[[#This Row],[Debe]]-Tabla5[[#This Row],[Haber]])*Tabla5[[#This Row],[Multiplicador]] -> 0
A92: 2370 | B92: 1 | C92: AAII | D92: =SUMIFS(Tabla_Diario[Importe],Tabla_Diario[Cta],Tabla5[Cuenta],Tabla_Diario[D/H],"D") -> 0 | E92: =SUMIFS(Tabla_Diario[Importe],Tabla_Diario[Cta],Tabla5[Cuenta],Tabla_Diario[D/H],"H") -> 0 | F92: =(Tabla5[[#This Row],[Debe]]-Tabla5[[#This Row],[Haber]])*Tabla5[[#This Row],[Multiplicador]] -> 0
A93: 2390 | B93: 1 | C93: AAII | D93: =SUMIFS(Tabla_Diario[Importe],Tabla_Diario[Cta],Tabla5[Cuenta],Tabla_Diario[D/H],"D") -> 0 | E93: =SUMIFS(Tabla_Diario[Importe],Tabla_Diario[Cta],Tabla5[Cuenta],Tabla_Diario[D/H],"H") -> 0 | F93: =(Tabla5[[#This Row],[Debe]]-Tabla5[[#This Row],[Haber]])*Tabla5[[#This Row],[Multiplicador]] -> 0
A94: 2400 | B94: 1 | C94: AAV | D94: =SUMIFS(Tabla_Diario[Importe],Tabla_Diario[Cta],Tabla5[Cuenta],Tabla_Diario[D/H],"D") -> 0 | E94: =SUMIFS(Tabla_Diario[Importe],Tabla_Diario[Cta],Tabla5[Cuenta],Tabla_Diario[D/H],"H") -> 0 | F94: =(Tabla5[[#This Row],[Debe]]-Tabla5[[#This Row],[Haber]])*Tabla5[[#This Row],[Multiplicador]] -> 0
A95: 2410 | B95: 1 | C95: AAV | D95: =SUMIFS(Tabla_Diario[Importe],Tabla_Diario[Cta],Tabla5[Cuenta],Tabla_Diario[D/H],"D") -> 0 | E95: =SUMIFS(Tabla_Diario[Importe],Tabla_Diario[Cta],Tabla5[Cuenta],Tabla_Diario[D/H],"H") -> 0 | F95: =(Tabla5[[#This Row],[Debe]]-Tabla5[[#This Row],[Haber]])*Tabla5[[#This Row],[Multiplicador]] -> 0
A96: 2420 | B96: 1 | C96: AAV | D96: =SUMIFS(Tabla_Diario[Importe],Tabla_Diario[Cta],Tabla5[Cuenta],Tabla_Diario[D/H],"D") -> 0 | E96: =SUMIFS(Tabla_Diario[Importe],Tabla_Diario[Cta],Tabla5[Cuenta],Tabla_Diario[D/H],"H") -> 0 | F96: =(Tabla5[[#This Row],[Debe]]-Tabla5[[#This Row],[Haber]])*Tabla5[[#This Row],[Multiplicador]] -> 0
A97: 2490 | B97: 1 | C97: AAV | D97: =SUMIFS(Tabla_Diario[Importe],Tabla_Diario[Cta],Tabla5[Cuenta],Tabla_Diario[D/H],"D") -> 0 | E97: =SUMIFS(Tabla_Diario[Importe],Tabla_Diario[Cta],Tabla5[Cuenta],Tabla_Diario[D/H],"H") -> 0 | F97: =(Tabla5[[#This Row],[Debe]]-Tabla5[[#This Row],[Haber]])*Tabla5[[#This Row],[Multiplicador]] -> 0
A98: 2500 | B98: 1 | C98: AAV | D98: =SUMIFS(Tabla_Diario[Importe],Tabla_Diario[Cta],Tabla5[Cuenta],Tabla_Diario[D/H],"D") -> 0 | E98: =SUMIFS(Tabla_Diario[Importe],Tabla_Diario[Cta],Tabla5[Cuenta],Tabla_Diario[D/H],"H") -> 0 | F98: =(Tabla5[[#This Row],[Debe]]-Tabla5[[#This Row],[Haber]])*Tabla5[[#This Row],[Multiplicador]] -> 0
A99: 2510 | B99: 1 | C99: AAV | D99: =SUMIFS(Tabla_Diario[Importe],Tabla_Diario[Cta],Tabla5[Cuenta],Tabla_Diario[D/H],"D") -> 0 | E99: =SUMIFS(Tabla_Diario[Importe],Tabla_Diario[Cta],Tabla5[Cuenta],Tabla_Diario[D/H],"H") -> 0 | F99: =(Tabla5[[#This Row],[Debe]]-Tabla5[[#This Row],[Haber]])*Tabla5[[#This Row],[Multiplicador]] -> 0
A100: 2520 | B100: 1 | C100: AAV | D100: =SUMIFS(Tabla_Diario[Importe],Tabla_Diario[Cta],Tabla5[Cuenta],Tabla_Diario[D/H],"D") -> 0 | E100: =SUMIFS(Tabla_Diario[Importe],Tabla_Diario[Cta],Tabla5[Cuenta],Tabla_Diario[D/H],"H") -> 0 | F100: =(Tabla5[[#This Row],[Debe]]-Tabla5[[#This Row],[Haber]])*Tabla5[[#This Row],[Multiplicador]] -> 0
A101: 2530 | B101: 1 | C101: AAV | D101: =SUMIFS(Tabla_Diario[Importe],Tabla_Diario[Cta],Tabla5[Cuenta],Tabla_Diario[D/H],"D") -> 0 | E101: =SUMIFS(Tabla_Diario[Importe],Tabla_Diario[Cta],Tabla5[Cuenta],Tabla_Diario[D/H],"H") -> 0 | F101: =(Tabla5[[#This Row],[Debe]]-Tabla5[[#This Row],[Haber]])*Tabla5[[#This Row],[Multiplicador]] -> 0
A102: 2540 | B102: 1 | C102: AAV | D102: =SUMIFS(Tabla_Diario[Importe],Tabla_Diario[Cta],Tabla5[Cuenta],Tabla_Diario[D/H],"D") -> 0 | E102: =SUMIFS(Tabla_Diario[Importe],Tabla_Diario[Cta],Tabla5[Cuenta],Tabla_Diario[D/H],"H") -> 0 | F102: =(Tabla5[[#This Row],[Debe]]-Tabla5[[#This Row],[Haber]])*Tabla5[[#This Row],[Multiplicador]] -> 0
A103: 2550 | B103: 1 | C103: AAV | D103: =SUMIFS(Tabla_Diario[Importe],Tabla_Diario[Cta],Tabla5[Cuenta],Tabla_Diario[D/H],"D") -> 0 | E103: =SUMIFS(Tabla_Diario[Importe],Tabla_Diario[Cta],Tabla5[Cuenta],Tabla_Diario[D/H],"H") -> 0 | F103: =(Tabla5[[#This Row],[Debe]]-Tabla5[[#This Row],[Haber]])*Tabla5[[#This Row],[Multiplicador]] -> 0
A104: 2570 | B104: 1 | C104: AAV | D104: =SUMIFS(Tabla_Diario[Importe],Tabla_Diario[Cta],Tabla5[Cuenta],Tabla_Diario[D/H],"D") -> 0 | E104: =SUMIFS(Tabla_Diario[Importe],Tabla_Diario[Cta],Tabla5[Cuenta],Tabla_Diario[D/H],"H") -> 0 | F104: =(Tabla5[[#This Row],[Debe]]-Tabla5[[#This Row],[Haber]])*Tabla5[[#This Row],[Multiplicador]] -> 0
A105: 2580 | B105: 1 | C105: AAV | D105: =SUMIFS(Tabla_Diario[Importe],Tabla_Diario[Cta],Tabla5[Cuenta],Tabla_Diario[D/H],"D") -> 0 | E105: =SUMIFS(Tabla_Diario[Importe],Tabla_Diario[Cta],Tabla5[Cuenta],Tabla_Diario[D/H],"H") -> 0 | F105: =(Tabla5[[#This Row],[Debe]]-Tabla5[[#This Row],[Haber]])*Tabla5[[#This Row],[Multiplicador]] -> 0
A106: 2590 | B106: -1 | C106: AAV | D106: =SUMIFS(Tabla_Diario[Importe],Tabla_Diario[Cta],Tabla5[Cuenta],Tabla_Diario[D/H],"D") -> 0 | E106: =SUMIFS(Tabla_Diario[Importe],Tabla_Diario[Cta],Tabla5[Cuenta],Tabla_Diario[D/H],"H") -> 0 | F106: =(Tabla5[[#This Row],[Debe]]-Tabla5[[#This Row],[Haber]])*Tabla5[[#This Row],[Multiplicador]] -> 0
A107: 2600 | B107: 1 | C107: AAV | D107: =SUMIFS(Tabla_Diario[Importe],Tabla_Diario[Cta],Tabla5[Cuenta],Tabla_Diario[D/H],"D") -> 0 | E107: =SUMIFS(Tabla_Diario[Importe],Tabla_Diario[Cta],Tabla5[Cuenta],Tabla_Diario[D/H],"H") -> 0 | F107: =(Tabla5[[#This Row],[Debe]]-Tabla5[[#This Row],[Haber]])*Tabla5[[#This Row],[Multiplicador]] -> 0
A108: 2650 | B108: 1 | C108: AAV | D108: =SUMIFS(Tabla_Diario[Importe],Tabla_Diario[Cta],Tabla5[Cuenta],Tabla_Diario[D/H],"D") -> 0 | E108: =SUMIFS(Tabla_Diario[Importe],Tabla_Diario[Cta],Tabla5[Cuenta],Tabla_Diario[D/H],"H") -> 0 | F108: =(Tabla5[[#This Row],[Debe]]-Tabla5[[#This Row],[Haber]])*Tabla5[[#This Row],[Multiplicador]] -> 0
A109: 2720 | B109: 1 | C109: AAV | D109: =SUMIFS(Tabla_Diario[Importe],Tabla_Diario[Cta],Tabla5[Cuenta],Tabla_Diario[D/H],"D") -> 0 | E109: =SUMIFS(Tabla_Diario[Importe],Tabla_Diario[Cta],Tabla5[Cuenta],Tabla_Diario[D/H],"H") -> 0 | F109: =(Tabla5[[#This Row],[Debe]]-Tabla5[[#This Row],[Haber]])*Tabla5[[#This Row],[Multiplicador]] -> 0
A110: 2800 | B110: -1 | C110: AAI | D110: =SUMIFS(Tabla_Diario[Importe],Tabla_Diario[Cta],Tabla5[Cuenta],Tabla_Diario[D/H],"D") -> 0 | E110: =SUMIFS(Tabla_Diario[Importe],Tabla_Diario[Cta],Tabla5[Cuenta],Tabla_Diario[D/H],"H") -> 0 | F110: =(Tabla5[[#This Row],[Debe]]-Tabla5[[#This Row],[Haber]])*Tabla5[[#This Row],[Multiplicador]] -> 0
A111: 2810 | B111: -1 | C111: AAII | D111: =SUMIFS(Tabla_Diario[Importe],Tabla_Diario[Cta],Tabla5[Cuenta],Tabla_Diario[D/H],"D") -> 0 | E111: =SUMIFS(Tabla_Diario[Importe],Tabla_Diario[Cta],Tabla5[Cuenta],Tabla_Diario[D/H],"H") -> 0 | F111: =(Tabla5[[#This Row],[Debe]]-Tabla5[[#This Row],[Haber]])*Tabla5[[#This Row],[Multiplicador]] -> 0
A112: 2820 | B112: -1 | C112: AAIII | D112: =SUMIFS(Tabla_Diario[Importe],Tabla_Diario[Cta],Tabla5[Cuenta],Tabla_Diario[D/H],"D") -> 0 | E112: =SUMIFS(Tabla_Diario[Importe],Tabla_Diario[Cta],Tabla5[Cuenta],Tabla_Diario[D/H],"H") -> 0 | F112: =(Tabla5[[#This Row],[Debe]]-Tabla5[[#This Row],[Haber]])*Tabla5[[#This Row],[Multiplicador]] -> 0
A113: 2900 | B113: -1 | C113: AAI | D113: =SUMIFS(Tabla_Diario[Importe],Tabla_Diario[Cta],Tabla5[Cuenta],Tabla_Diario[D/H],"D") -> 0 | E113: =SUMIFS(Tabla_Diario[Importe],Tabla_Diario[Cta],Tabla5[Cuenta],Tabla_Diario[D/H],"H") -> 0 | F113: =(Tabla5[[#This Row],[Debe]]-Tabla5[[#This Row],[Haber]])*Tabla5[[#This Row],[Multiplicador]] -> 0
A114: 2910 | B114: -1 | C114: AAII | D114: =SUMIFS(Tabla_Diario[Importe],Tabla_Diario[Cta],Tabla5[Cuenta],Tabla_Diario[D/H],"D") -> 0 | E114: =SUMIFS(Tabla_Diario[Importe],Tabla_Diario[Cta],Tabla5[Cuenta],Tabla_Diario[D/H],"H") -> 0 | F114: =(Tabla5[[#This Row],[Debe]]-Tabla5[[#This Row],[Haber]])*Tabla5[[#This Row],[Multiplicador]] -> 0
A115: 2920 | B115: -1 | C115: AAIII | D115: =SUMIFS(Tabla_Diario[Importe],Tabla_Diario[Cta],Tabla5[Cuenta],Tabla_Diario[D/H],"D") -> 0 | E115: =SUMIFS(Tabla_Diario[Importe],Tabla_Diario[Cta],Tabla5[Cuenta],Tabla_Diario[D/H],"H") -> 0 | F115: =(Tabla5[[#This Row],[Debe]]-Tabla5[[#This Row],[Haber]])*Tabla5[[#This Row],[Multiplicador]] -> 0
A116: 2930 | B116: -1 | C116: AAIV | D116: =SUMIFS(Tabla_Diario[Importe],Tabla_Diario[Cta],Tabla5[Cuenta],Tabla_Diario[D/H],"D") -> 0 | E116: =SUMIFS(Tabla_Diario[Importe],Tabla_Diario[Cta],Tabla5[Cuenta],Tabla_Diario[D/H],"H") -> 0 | F116: =(Tabla5[[#This Row],[Debe]]-Tabla5[[#This Row],[Haber]])*Tabla5[[#This Row],[Multiplicador]] -> 0
A117: 2940 | B117: -1 | C117: AAV | D117: =SUMIFS(Tabla_Diario[Importe],Tabla_Diario[Cta],Tabla5[Cuenta],Tabla_Diario[D/H],"D") -> 0 | E117: =SUMIFS(Tabla_Diario[Importe],Tabla_Diario[Cta],Tabla5[Cuenta],Tabla_Diario[D/H],"H") -> 0 | F117: =(Tabla5[[#This Row],[Debe]]-Tabla5[[#This Row],[Haber]])*Tabla5[[#This Row],[Multiplicador]] -> 0
A118: 2950 | B118: -1 | C118: AAV | D118: =SUMIFS(Tabla_Diario[Importe],Tabla_Diario[Cta],Tabla5[Cuenta],Tabla_Diario[D/H],"D") -> 0 | E118: =SUMIFS(Tabla_Diario[Importe],Tabla_Diario[Cta],Tabla5[Cuenta],Tabla_Diario[D/H],"H") -> 0 | F118: =(Tabla5[[#This Row],[Debe]]-Tabla5[[#This Row],[Haber]])*Tabla5[[#This Row],[Multiplicador]] -> 0
A119: 2970 | B119: -1 | C119: AAV | D119: =SUMIFS(Tabla_Diario[Importe],Tabla_Diario[Cta],Tabla5[Cuenta],Tabla_Diario[D/H],"D") -> 0 | E119: =SUMIFS(Tabla_Diario[Importe],Tabla_Diario[Cta],Tabla5[Cuenta],Tabla_Diario[D/H],"H") -> 0 | F119: =(Tabla5[[#This Row],[Debe]]-Tabla5[[#This Row],[Haber]])*Tabla5[[#This Row],[Multiplicador]] -> 0
A120: 2980 | B120: -1 | C120: AAV | D120: =SUMIFS(Tabla_Diario[Importe],Tabla_Diario[Cta],Tabla5[Cuenta],Tabla_Diario[D/H],"D") -> 0 | E120: =SUMIFS(Tabla_Diario[Importe],Tabla_Diario[Cta],Tabla5[Cuenta],Tabla_Diario[D/H],"H") -> 0 | F120: =(Tabla5[[#This Row],[Debe]]-Tabla5[[#This Row],[Haber]])*Tabla5[[#This Row],[Multiplicador]] -> 0
A121: 3000 | B121: 1 | C121: ABII | D121: =SUMIFS(Tabla_Diario[Importe],Tabla_Diario[Cta],Tabla5[Cuenta],Tabla_Diario[D/H],"D") -> 1500 | E121: =SUMIFS(Tabla_Diario[Importe],Tabla_Diario[Cta],Tabla5[Cuenta],Tabla_Diario[D/H],"H") -> 0 | F121: =(Tabla5[[#This Row],[Debe]]-Tabla5[[#This Row],[Haber]])*Tabla5[[#This Row],[Multiplicador]] -> 1500
A122: 3010 | B122: 1 | C122: ABII | D122: =SUMIFS(Tabla_Diario[Importe],Tabla_Diario[Cta],Tabla5[Cuenta],Tabla_Diario[D/H],"D") -> 0 | E122: =SUMIFS(Tabla_Diario[Importe],Tabla_Diario[Cta],Tabla5[Cuenta],Tabla_Diario[D/H],"H") -> 0 | F122: =(Tabla5[[#This Row],[Debe]]-Tabla5[[#This Row],[Haber]])*Tabla5[[#This Row],[Multiplicador]] -> 0
A123: 3020 | B123: 1 | C123: ABII | D123: =SUMIFS(Tabla_Diario[Importe],Tabla_Diario[Cta],Tabla5[Cuenta],Tabla_Diario[D/H],"D") -> 0 | E123: =SUMIFS(Tabla_Diario[Importe],Tabla_Diario[Cta],Tabla5[Cuenta],Tabla_Diario[D/H],"H") -> 0 | F123: =(Tabla5[[#This Row],[Debe]]-Tabla5[[#This Row],[Haber]])*Tabla5[[#This Row],[Multiplicador]] -> 0
A124: 3030 | B124: 1 | C124: ABII | D124: =SUMIFS(Tabla_Diario[Importe],Tabla_Diario[Cta],Tabla5[Cuenta],Tabla_Diario[D/H],"D") -> 0 | E124: =SUMIFS(Tabla_Diario[Importe],Tabla_Diario[Cta],Tabla5[Cuenta],Tabla_Diario[D/H],"H") -> 0 | F124: =(Tabla5[[#This Row],[Debe]]-Tabla5[[#This Row],[Haber]])*Tabla5[[#This Row],[Multiplicador]] -> 0
A125: 3040 | B125: 1 | C125: ABII | D125: =SUMIFS(Tabla_Diario[Importe],Tabla_Diario[Cta],Tabla5[Cuenta],Tabla_Diario[D/H],"D") -> 0 | E125: =SUMIFS(Tabla_Diario[Importe],Tabla_Diario[Cta],Tabla5[Cuenta],Tabla_Diario[D/H],"H") -> 0 | F125: =(Tabla5[[#This Row],[Debe]]-Tabla5[[#This Row],[Haber]])*Tabla5[[#This Row],[Multiplicador]] -> 0
A126: 3050 | B126: 1 | C126: ABII | D126: =SUMIFS(Tabla_Diario[Importe],Tabla_Diario[Cta],Tabla5[Cuenta],Tabla_Diario[D/H],"D") -> 0 | E126: =SUMIFS(Tabla_Diario[Importe],Tabla_Diario[Cta],Tabla5[Cuenta],Tabla_Diario[D/H],"H") -> 0 | F126: =(Tabla5[[#This Row],[Debe]]-Tabla5[[#This Row],[Haber]])*Tabla5[[#This Row],[Multiplicador]] -> 0
A127: 3060 | B127: 1 | C127: ABII | D127: =SUMIFS(Tabla_Diario[Importe],Tabla_Diario[Cta],Tabla5[Cuenta],Tabla_Diario[D/H],"D") -> 0 | E127: =SUMIFS(Tabla_Diario[Importe],Tabla_Diario[Cta],Tabla5[Cuenta],Tabla_Diario[D/H],"H") -> 0 | F127: =(Tabla5[[#This Row],[Debe]]-Tabla5[[#This Row],[Haber]])*Tabla5[[#This Row],[Multiplicador]] -> 0
A128: 3070 | B128: 1 | C128: ABII | D128: =SUMIFS(Tabla_Diario[Importe],Tabla_Diario[Cta],Tabla5[Cuenta],Tabla_Diario[D/H],"D") -> 0 | E128: =SUMIFS(Tabla_Diario[Importe],Tabla_Diario[Cta],Tabla5[Cuenta],Tabla_Diario[D/H],"H") -> 0 | F128: =(Tabla5[[#This Row],[Debe]]-Tabla5[[#This Row],[Haber]])*Tabla5[[#This Row],[Multiplicador]] -> 0
A129: 3080 | B129: 1 | C129: ABII | D129: =SUMIFS(Tabla_Diario[Importe],Tabla_Diario[Cta],Tabla5[Cuenta],Tabla_Diario[D/H],"D") -> 0 | E129: =SUMIFS(Tabla_Diario[Importe],Tabla_Diario[Cta],Tabla5[Cuenta],Tabla_Diario[D/H],"H") -> 0 | F129: =(Tabla5[[#This Row],[Debe]]-Tabla5[[#This Row],[Haber]])*Tabla5[[#This Row],[Multiplicador]] -> 0
A130: 3090 | B130: 1 | C130: ABII | D130: =SUMIFS(Tabla_Diario[Importe],Tabla_Diario[Cta],Tabla5[Cuenta],Tabla_Diario[D/H],"D") -> 0 | E130: =SUMIFS(Tabla_Diario[Importe],Tabla_Diario[Cta],Tabla5[Cuenta],Tabla_Diario[D/H],"H") -> 0 | F130: =(Tabla5[[#This Row],[Debe]]-Tabla5[[#This Row],[Haber]])*Tabla5[[#This Row],[Multiplicador]] -> 0
A131: 3100 | B131: 1 | C131: ABII | D131: =SUMIFS(Tabla_Diario[Importe],Tabla_Diario[Cta],Tabla5[Cuenta],Tabla_Diario[D/H],"D") -> 0 | E131: =SUMIFS(Tabla_Diario[Importe],Tabla_Diario[Cta],Tabla5[Cuenta],Tabla_Diario[D/H],"H") -> 0 | F131: =(Tabla5[[#This Row],[Debe]]-Tabla5[[#This Row],[Haber]])*Tabla5[[#This Row],[Multiplicador]] -> 0
A132: 3200 | B132: 1 | C132: ABII | D132: =SUMIFS(Tabla_Diario[Importe],Tabla_Diario[Cta],Tabla5[Cuenta],Tabla_Diario[D/H],"D") -> 0 | E132: =SUMIFS(Tabla_Diario[Importe],Tabla_Diario[Cta],Tabla5[Cuenta],Tabla_Diario[D/H],"H") -> 0 | F132: =(Tabla5[[#This Row],[Debe]]-Tabla5[[#This Row],[Haber]])*Tabla5[[#This Row],[Multiplicador]] -> 0
A133: 3210 | B133: 1 | C133: ABII | D133: =SUMIFS(Tabla_Diario[Importe],Tabla_Diario[Cta],Tabla5[Cuenta],Tabla_Diario[D/H],"D") -> 0 | E133: =SUMIFS(Tabla_Diario[Importe],Tabla_Diario[Cta],Tabla5[Cuenta],Tabla_Diario[D/H],"H") -> 0 | F133: =(Tabla5[[#This Row],[Debe]]-Tabla5[[#This Row],[Haber]])*Tabla5[[#This Row],[Multiplicador]] -> 0
A134: 3220 | B134: 1 | C134: ABII | D134: =SUMIFS(Tabla_Diario[Importe],Tabla_Diario[Cta],Tabla5[Cuenta],Tabla_Diario[D/H],"D") -> 0 | E134: =SUMIFS(Tabla_Diario[Importe],Tabla_Diario[Cta],Tabla5[Cuenta],Tabla_Diario[D/H],"H") -> 0 | F134: =(Tabla5[[#This Row],[Debe]]-Tabla5[[#This Row],[Haber]])*Tabla5[[#This Row],[Multiplicador]] -> 0
A135: 3250 | B135: 1 | C135: ABII | D135: =SUMIFS(Tabla_Diario[Importe],Tabla_Diario[Cta],Tabla5[Cuenta],Tabla_Diario[D/H],"D") -> 0 | E135: =SUMIFS(Tabla_Diario[Importe],Tabla_Diario[Cta],Tabla5[Cuenta],Tabla_Diario[D/H],"H") -> 0 | F135: =(Tabla5[[#This Row],[Debe]]-Tabla5[[#This Row],[Haber]])*Tabla5[[#This Row],[Multiplicador]] -> 0
A136: 3260 | B136: 1 | C136: ABII | D136: =SUMIFS(Tabla_Diario[Importe],Tabla_Diario[Cta],Tabla5[Cuenta],Tabla_Diario[D/H],"D") -> 0 | E136: =SUMIFS(Tabla_Diario[Importe],Tabla_Diario[Cta],Tabla5[Cuenta],Tabla_Diario[D/H],"H") -> 0 | F136: =(Tabla5[[#This Row],[Debe]]-Tabla5[[#This Row],[Haber]])*Tabla5[[#This Row],[Multiplicador]] -> 0
A137: 3270 | B137: 1 | C137: ABII | D137: =SUMIFS(Tabla_Diario[Importe],Tabla_Diario[Cta],Tabla5[Cuenta],Tabla_Diario[D/H],"D") -> 0 | E137: =SUMIFS(Tabla_Diario[Importe],Tabla_Diario[Cta],Tabla5[Cuenta],Tabla_Diario[D/H],"H") -> 0 | F137: =(Tabla5[[#This Row],[Debe]]-Tabla5[[#This Row],[Haber]])*Tabla5[[#This Row],[Multiplicador]] -> 0
A138: 3280 | B138: 1 | C138: ABII | D138: =SUMIFS(Tabla_Diario[Importe],Tabla_Diario[Cta],Tabla5[Cuenta],Tabla_Diario[D/H],"D") -> 0 | E138: =SUMIFS(Tabla_Diario[Importe],Tabla_Diario[Cta],Tabla5[Cuenta],Tabla_Diario[D/H],"H") -> 0 | F138: =(Tabla5[[#This Row],[Debe]]-Tabla5[[#This Row],[Haber]])*Tabla5[[#This Row],[Multiplicador]] -> 0
A139: 3300 | B139: 1 | C139: ABII | D139: =SUMIFS(Tabla_Diario[Importe],Tabla_Diario[Cta],Tabla5[Cuenta],Tabla_Diario[D/H],"D") -> 0 | E139: =SUMIFS(Tabla_Diario[Importe],Tabla_Diario[Cta],Tabla5[Cuenta],Tabla_Diario[D/H],"H") -> 0 | F139: =(Tabla5[[#This Row],[Debe]]-Tabla5[[#This Row],[Haber]])*Tabla5[[#This Row],[Multiplicador]] -> 0
A140: 3310 | B140: 1 | C140: ABII | D140: =SUMIFS(Tabla_Diario[Importe],Tabla_Diario[Cta],Tabla5[Cuenta],Tabla_Diario[D/H],"D") -> 0 | E140: =SUMIFS(Tabla_Diario[Importe],Tabla_Diario[Cta],Tabla5[Cuenta],Tabla_Diario[D/H],"H") -> 0 | F140: =(Tabla5[[#This Row],[Debe]]-Tabla5[[#This Row],[Haber]])*Tabla5[[#This Row],[Multiplicador]] -> 0
A141: 3320 | B141: 1 | C141: ABII | D141: =SUMIFS(Tabla_Diario[Importe],Tabla_Diario[Cta],Tabla5[Cuenta],Tabla_Diario[D/H],"D") -> 0 | E141: =SUMIFS(Tabla_Diario[Importe],Tabla_Diario[Cta],Tabla5[Cuenta],Tabla_Diario[D/H],"H") -> 0 | F141: =(Tabla5[[#This Row],[Debe]]-Tabla5[[#This Row],[Haber]])*Tabla5[[#This Row],[Multiplicador]] -> 0
A142: 3330 | B142: 1 | C142: ABII | D142: =SUMIFS(Tabla_Diario[Importe],Tabla_Diario[Cta],Tabla5[Cuenta],Tabla_Diario[D/H],"D") -> 0 | E142: =SUMIFS(Tabla_Diario[Importe],Tabla_Diario[Cta],Tabla5[Cuenta],Tabla_Diario[D/H],"H") -> 0 | F142: =(Tabla5[[#This Row],[Debe]]-Tabla5[[#This Row],[Haber]])*Tabla5[[#This Row],[Multiplicador]] -> 0
A143: 3340 | B143: 1 | C143: ABII | D143: =SUMIFS(Tabla_Diario[Importe],Tabla_Diario[Cta],Tabla5[Cuenta],Tabla_Diario[D/H],"D") -> 0 | E143: =SUMIFS(Tabla_Diario[Importe],Tabla_Diario[Cta],Tabla5[Cuenta],Tabla_Diario[D/H],"H") -> 0 | F143: =(Tabla5[[#This Row],[Debe]]-Tabla5[[#This Row],[Haber]])*Tabla5[[#This Row],[Multiplicador]] -> 0
A144: 3350 | B144: 1 | C144: ABII | D144: =SUMIFS(Tabla_Diario[Importe],Tabla_Diario[Cta],Tabla5[Cuenta],Tabla_Diario[D/H],"D") -> 0 | E144: =SUMIFS(Tabla_Diario[Importe],Tabla_Diario[Cta],Tabla5[Cuenta],Tabla_Diario[D/H],"H") -> 0 | F144: =(Tabla5[[#This Row],[Debe]]-Tabla5[[#This Row],[Haber]])*Tabla5[[#This Row],[Multiplicador]] -> 0
A145: 3360 | B145: 1 | C145: ABII | D145: =SUMIFS(Tabla_Diario[Importe],Tabla_Diario[Cta],Tabla5[Cuenta],Tabla_Diario[D/H],"D") -> 0 | E145: =SUMIFS(Tabla_Diario[Importe],Tabla_Diario[Cta],Tabla5[Cuenta],Tabla_Diario[D/H],"H") -> 0 | F145: =(Tabla5[[#This Row],[Debe]]-Tabla5[[#This Row],[Haber]])*Tabla5[[#This Row],[Multiplicador]] -> 0
A146: 3370 | B146: 1 | C146: ABII | D146: =SUMIFS(Tabla_Diario[Importe],Tabla_Diario[Cta],Tabla5[Cuenta],Tabla_Diario[D/H],"D") -> 0 | E146: =SUMIFS(Tabla_Diario[Importe],Tabla_Diario[Cta],Tabla5[Cuenta],Tabla_Diario[D/H],"H") -> 0 | F146: =(Tabla5[[#This Row],[Debe]]-Tabla5[[#This Row],[Haber]])*Tabla5[[#This Row],[Multiplicador]] -> 0
A147: 3380 | B147: 1 | C147: ABII | D147: =SUMIFS(Tabla_Diario[Importe],Tabla_Diario[Cta],Tabla5[Cuenta],Tabla_Diario[D/H],"D") -> 0 | E147: =SUMIFS(Tabla_Diario[Importe],Tabla_Diario[Cta],Tabla5[Cuenta],Tabla_Diario[D/H],"H") -> 0 | F147: =(Tabla5[[#This Row],[Debe]]-Tabla5[[#This Row],[Haber]])*Tabla5[[#This Row],[Multiplicador]] -> 0
A148: 3390 | B148: 1 | C148: ABII | D148: =SUMIFS(Tabla_Diario[Importe],Tabla_Diario[Cta],Tabla5[Cuenta],Tabla_Diario[D/H],"D") -> 0 | E148: =SUMIFS(Tabla_Diario[Importe],Tabla_Diario[Cta],Tabla5[Cuenta],Tabla_Diario[D/H],"H") -> 0 | F148: =(Tabla5[[#This Row],[Debe]]-Tabla5[[#This Row],[Haber]])*Tabla5[[#This Row],[Multiplicador]] -> 0
A149: 3400 | B149: 1 | C149: ABII | D149: =SUMIFS(Tabla_Diario[Importe],Tabla_Diario[Cta],Tabla5[Cuenta],Tabla_Diario[D/H],"D") -> 0 | E149: =SUMIFS(Tabla_Diario[Importe],Tabla_Diario[Cta],Tabla5[Cuenta],Tabla_Diario[D/H],"H") -> 0 | F149: =(Tabla5[[#This Row],[Debe]]-Tabla5[[#This Row],[Haber]])*Tabla5[[#This Row],[Multiplicador]] -> 0
A150: 3410 | B150: 1 | C150: ABII | D150: =SUMIFS(Tabla_Diario[Importe],Tabla_Diario[Cta],Tabla5[Cuenta],Tabla_Diario[D/H],"D") -> 0 | E150: =SUMIFS(Tabla_Diario[Importe],Tabla_Diario[Cta],Tabla5[Cuenta],Tabla_Diario[D/H],"H") -> 0 | F150: =(Tabla5[[#This Row],[Debe]]-Tabla5[[#This Row],[Haber]])*Tabla5[[#This Row],[Multiplicador]] -> 0
A151: 3420 | B151: 1 | C151: ABII | D151: =SUMIFS(Tabla_Diario[Importe],Tabla_Diario[Cta],Tabla5[Cuenta],Tabla_Diario[D/H],"D") -> 0 | E151: =SUMIFS(Tabla_Diario[Importe],Tabla_Diario[Cta],Tabla5[Cuenta],Tabla_Diario[D/H],"H") -> 0 | F151: =(Tabla5[[#This Row],[Debe]]-Tabla5[[#This Row],[Haber]])*Tabla5[[#This Row],[Multiplicador]] -> 0
A152: 3430 | B152: 1 | C152: ABII | D152: =SUMIFS(Tabla_Diario[Importe],Tabla_Diario[Cta],Tabla5[Cuenta],Tabla_Diario[D/H],"D") -> 0 | E152: =SUMIFS(Tabla_Diario[Importe],Tabla_Diario[Cta],Tabla5[Cuenta],Tabla_Diario[D/H],"H") -> 0 | F152: =(Tabla5[[#This Row],[Debe]]-Tabla5[[#This Row],[Haber]])*Tabla5[[#This Row],[Multiplicador]] -> 0
A153: 3440 | B153: 1 | C153: ABII | D153: =SUMIFS(Tabla_Diario[Importe],Tabla_Diario[Cta],Tabla5[Cuenta],Tabla_Diario[D/H],"D") -> 0 | E153: =SUMIFS(Tabla_Diario[Importe],Tabla_Diario[Cta],Tabla5[Cuenta],Tabla_Diario[D/H],"H") -> 0 | F153: =(Tabla5[[#This Row],[Debe]]-Tabla5[[#This Row],[Haber]])*Tabla5[[#This Row],[Multiplicador]] -> 0
A154: 3450 | B154: 1 | C154: ABII | D154: =SUMIFS(Tabla_Diario[Importe],Tabla_Diario[Cta],Tabla5[Cuenta],Tabla_Diario[D/H],"D") -> 0 | E154: =SUMIFS(Tabla_Diario[Importe],Tabla_Diario[Cta],Tabla5[Cuenta],Tabla_Diario[D/H],"H") -> 0 | F154: =(Tabla5[[#This Row],[Debe]]-Tabla5[[#This Row],[Haber]])*Tabla5[[#This Row],[Multiplicador]] -> 0
A155: 3460 | B155: 1 | C155: ABII | D155: =SUMIFS(Tabla_Diario[Importe],Tabla_Diario[Cta],Tabla5[Cuenta],Tabla_Diario[D/H],"D") -> 0 | E155: =SUMIFS(Tabla_Diario[Importe],Tabla_Diario[Cta],Tabla5[Cuenta],Tabla_Diario[D/H],"H") -> 0 | F155: =(Tabla5[[#This Row],[Debe]]-Tabla5[[#This Row],[Haber]])*Tabla5[[#This Row],[Multiplicador]] -> 0
A156: 3470 | B156: 1 | C156: ABII | D156: =SUMIFS(Tabla_Diario[Importe],Tabla_Diario[Cta],Tabla5[Cuenta],Tabla_Diario[D/H],"D") -> 0 | E156: =SUMIFS(Tabla_Diario[Importe],Tabla_Diario[Cta],Tabla5[Cuenta],Tabla_Diario[D/H],"H") -> 0 | F156: =(Tabla5[[#This Row],[Debe]]-Tabla5[[#This Row],[Haber]])*Tabla5[[#This Row],[Multiplicador]] -> 0
A157: 3480 | B157: 1 | C157: ABII | D157: =SUMIFS(Tabla_Diario[Importe],Tabla_Diario[Cta],Tabla5[Cuenta],Tabla_Diario[D/H],"D") -> 0 | E157: =SUMIFS(Tabla_Diario[Importe],Tabla_Diario[Cta],Tabla5[Cuenta],Tabla_Diario[D/H],"H") -> 0 | F157: =(Tabla5[[#This Row],[Debe]]-Tabla5[[#This Row],[Haber]])*Tabla5[[#This Row],[Multiplicador]] -> 0
A158: 3490 | B158: 1 | C158: ABII | D158: =SUMIFS(Tabla_Diario[Importe],Tabla_Diario[Cta],Tabla5[Cuenta],Tabla_Diario[D/H],"D") -> 0 | E158: =SUMIFS(Tabla_Diario[Importe],Tabla_Diario[Cta],Tabla5[Cuenta],Tabla_Diario[D/H],"H") -> 0 | F158: =(Tabla5[[#This Row],[Debe]]-Tabla5[[#This Row],[Haber]])*Tabla5[[#This Row],[Multiplicador]] -> 0
A159: 3500 | B159: 1 | C159: ABII | D159: =SUMIFS(Tabla_Diario[Importe],Tabla_Diario[Cta],Tabla5[Cuenta],Tabla_Diario[D/H],"D") -> 0 | E159: =SUMIFS(Tabla_Diario[Importe],Tabla_Diario[Cta],Tabla5[Cuenta],Tabla_Diario[D/H],"H") -> 0 | F159: =(Tabla5[[#This Row],[Debe]]-Tabla5[[#This Row],[Haber]])*Tabla5[[#This Row],[Multiplicador]] -> 0
A160: 3510 | B160: 1 | C160: ABII | D160: =SUMIFS(Tabla_Diario[Importe],Tabla_Diario[Cta],Tabla5[Cuenta],Tabla_Diario[D/H],"D") -> 0 | E160: =SUMIFS(Tabla_Diario[Importe],Tabla_Diario[Cta],Tabla5[Cuenta],Tabla_Diario[D/H],"H") -> 0 | F160: =(Tabla5[[#This Row],[Debe]]-Tabla5[[#This Row],[Haber]])*Tabla5[[#This Row],[Multiplicador]] -> 0
A161: 3520 | B161: 1 | C161: ABII | D161: =SUMIFS(Tabla_Diario[Importe],Tabla_Diario[Cta],Tabla5[Cuenta],Tabla_Diario[D/H],"D") -> 0 | E161: =SUMIFS(Tabla_Diario[Importe],Tabla_Diario[Cta],Tabla5[Cuenta],Tabla_Diario[D/H],"H") -> 0 | F161: =(Tabla5[[#This Row],[Debe]]-Tabla5[[#This Row],[Haber]])*Tabla5[[#This Row],[Multiplicador]] -> 0
A162: 3530 | B162: 1 | C162: ABII | D162: =SUMIFS(Tabla_Diario[Importe],Tabla_Diario[Cta],Tabla5[Cuenta],Tabla_Diario[D/H],"D") -> 0 | E162: =SUMIFS(Tabla_Diario[Importe],Tabla_Diario[Cta],Tabla5[Cuenta],Tabla_Diario[D/H],"H") -> 0 | F162: =(Tabla5[[#This Row],[Debe]]-Tabla5[[#This Row],[Haber]])*Tabla5[[#This Row],[Multiplicador]] -> 0
A163: 3540 | B163: 1 | C163: ABII | D163: =SUMIFS(Tabla_Diario[Importe],Tabla_Diario[Cta],Tabla5[Cuenta],Tabla_Diario[D/H],"D") -> 0 | E163: =SUMIFS(Tabla_Diario[Importe],Tabla_Diario[Cta],Tabla5[Cuenta],Tabla_Diario[D/H],"H") -> 0 | F163: =(Tabla5[[#This Row],[Debe]]-Tabla5[[#This Row],[Haber]])*Tabla5[[#This Row],[Multiplicador]] -> 0
A164: 3550 | B164: 1 | C164: ABII | D164: =SUMIFS(Tabla_Diario[Importe],Tabla_Diario[Cta],Tabla5[Cuenta],Tabla_Diario[D/H],"D") -> 0 | E164: =SUMIFS(Tabla_Diario[Importe],Tabla_Diario[Cta],Tabla5[Cuenta],Tabla_Diario[D/H],"H") -> 0 | F164: =(Tabla5[[#This Row],[Debe]]-Tabla5[[#This Row],[Haber]])*Tabla5[[#This Row],[Multiplicador]] -> 0
A165: 3560 | B165: 1 | C165: ABII | D165: =SUMIFS(Tabla_Diario[Importe],Tabla_Diario[Cta],Tabla5[Cuenta],Tabla_Diario[D/H],"D") -> 0 | E165: =SUMIFS(Tabla_Diario[Importe],Tabla_Diario[Cta],Tabla5[Cuenta],Tabla_Diario[D/H],"H") -> 0 | F165: =(Tabla5[[#This Row],[Debe]]-Tabla5[[#This Row],[Haber]])*Tabla5[[#This Row],[Multiplicador]] -> 0
A166: 3570 | B166: 1 | C166: ABII | D166: =SUMIFS(Tabla_Diario[Importe],Tabla_Diario[Cta],Tabla5[Cuenta],Tabla_Diario[D/H],"D") -> 0 | E166: =SUMIFS(Tabla_Diario[Importe],Tabla_Diario[Cta],Tabla5[Cuenta],Tabla_Diario[D/H],"H") -> 0 | F166: =(Tabla5[[#This Row],[Debe]]-Tabla5[[#This Row],[Haber]])*Tabla5[[#This Row],[Multiplicador]] -> 0
A167: 3580 | B167: 1 | C167: ABII | D167: =SUMIFS(Tabla_Diario[Importe],Tabla_Diario[Cta],Tabla5[Cuenta],Tabla_Diario[D/H],"D") -> 0 | E167: =SUMIFS(Tabla_Diario[Importe],Tabla_Diario[Cta],Tabla5[Cuenta],Tabla_Diario[D/H],"H") -> 0 | F167: =(Tabla5[[#This Row],[Debe]]-Tabla5[[#This Row],[Haber]])*Tabla5[[#This Row],[Multiplicador]] -> 0
A168: 3590 | B168: 1 | C168: ABII | D168: =SUMIFS(Tabla_Diario[Importe],Tabla_Diario[Cta],Tabla5[Cuenta],Tabla_Diario[D/H],"D") -> 0 | E168: =SUMIFS(Tabla_Diario[Importe],Tabla_Diario[Cta],Tabla5[Cuenta],Tabla_Diario[D/H],"H") -> 0 | F168: =(Tabla5[[#This Row],[Debe]]-Tabla5[[#This Row],[Haber]])*Tabla5[[#This Row],[Multiplicador]] -> 0
A169: 3600 | B169: 1 | C169: ABII | D169: =SUMIFS(Tabla_Diario[Importe],Tabla_Diario[Cta],Tabla5[Cuenta],Tabla_Diario[D/H],"D") -> 0 | E169: =SUMIFS(Tabla_Diario[Importe],Tabla_Diario[Cta],Tabla5[Cuenta],Tabla_Diario[D/H],"H") -> 0 | F169: =(Tabla5[[#This Row],[Debe]]-Tabla5[[#This Row],[Haber]])*Tabla5[[#This Row],[Multiplicador]] -> 0
A170: 3610 | B170: 1 | C170: ABII | D170: =SUMIFS(Tabla_Diario[Importe],Tabla_Diario[Cta],Tabla5[Cuenta],Tabla_Diario[D/H],"D") -> 0 | E170: =SUMIFS(Tabla_Diario[Importe],Tabla_Diario[Cta],Tabla5[Cuenta],Tabla_Diario[D/H],"H") -> 0 | F170: =(Tabla5[[#This Row],[Debe]]-Tabla5[[#This Row],[Haber]])*Tabla5[[#This Row],[Multiplicador]] -> 0
A171: 3650 | B171: 1 | C171: ABII | D171: =SUMIFS(Tabla_Diario[Importe],Tabla_Diario[Cta],Tabla5[Cuenta],Tabla_Diario[D/H],"D") -> 0 | E171: =SUMIFS(Tabla_Diario[Importe],Tabla_Diario[Cta],Tabla5[Cuenta],Tabla_Diario[D/H],"H") -> 0 | F171: =(Tabla5[[#This Row],[Debe]]-Tabla5[[#This Row],[Haber]])*Tabla5[[#This Row],[Multiplicador]] -> 0
A172: 3660 | B172: 1 | C172: ABII | D172: =SUMIFS(Tabla_Diario[Importe],Tabla_Diario[Cta],Tabla5[Cuenta],Tabla_Diario[D/H],"D") -> 0 | E172: =SUMIFS(Tabla_Diario[Importe],Tabla_Diario[Cta],Tabla5[Cuenta],Tabla_Diario[D/H],"H") -> 0 | F172: =(Tabla5[[#This Row],[Debe]]-Tabla5[[#This Row],[Haber]])*Tabla5[[#This Row],[Multiplicador]] -> 0
A173: 3680 | B173: 1 | C173: ABII | D173: =SUMIFS(Tabla_Diario[Importe],Tabla_Diario[Cta],Tabla5[Cuenta],Tabla_Diario[D/H],"D") -> 0 | E173: =SUMIFS(Tabla_Diario[Importe],Tabla_Diario[Cta],Tabla5[Cuenta],Tabla_Diario[D/H],"H") -> 0 | F173: =(Tabla5[[#This Row],[Debe]]-Tabla5[[#This Row],[Haber]])*Tabla5[[#This Row],[Multiplicador]] -> 0
A174: 3690 | B174: 1 | C174: ABII | D174: =SUMIFS(Tabla_Diario[Importe],Tabla_Diario[Cta],Tabla5[Cuenta],Tabla_Diario[D/H],"D") -> 0 | E174: =SUMIFS(Tabla_Diario[Importe],Tabla_Diario[Cta],Tabla5[Cuenta],Tabla_Diario[D/H],"H") -> 0 | F174: =(Tabla5[[#This Row],[Debe]]-Tabla5[[#This Row],[Haber]])*Tabla5[[#This Row],[Multiplicador]] -> 0
A175: 3900 | B175: -1 | C175: ABII | D175: =SUMIFS(Tabla_Diario[Importe],Tabla_Diario[Cta],Tabla5[Cuenta],Tabla_Diario[D/H],"D") -> 0 | E175: =SUMIFS(Tabla_Diario[Importe],Tabla_Diario[Cta],Tabla5[Cuenta],Tabla_Diario[D/H],"H") -> 0 | F175: =(Tabla5[[#This Row],[Debe]]-Tabla5[[#This Row],[Haber]])*Tabla5[[#This Row],[Multiplicador]] -> 0
A176: 3910 | B176: -1 | C176: ABII | D176: =SUMIFS(Tabla_Diario[Importe],Tabla_Diario[Cta],Tabla5[Cuenta],Tabla_Diario[D/H],"D") -> 0 | E176: =SUMIFS(Tabla_Diario[Importe],Tabla_Diario[Cta],Tabla5[Cuenta],Tabla_Diario[D/H],"H") -> 0 | F176: =(Tabla5[[#This Row],[Debe]]-Tabla5[[#This Row],[Haber]])*Tabla5[[#This Row],[Multiplicador]] -> 0
A177: 3920 | B177: -1 | C177: ABII | D177: =SUMIFS(Tabla_Diario[Importe],Tabla_Diario[Cta],Tabla5[Cuenta],Tabla_Diario[D/H],"D") -> 0 | E177: =SUMIFS(Tabla_Diario[Importe],Tabla_Diario[Cta],Tabla5[Cuenta],Tabla_Diario[D/H],"H") -> 0 | F177: =(Tabla5[[#This Row],[Debe]]-Tabla5[[#This Row],[Haber]])*Tabla5[[#This Row],[Multiplicador]] -> 0
A178: 3930 | B178: -1 | C178: ABII | D178: =SUMIFS(Tabla_Diario[Importe],Tabla_Diario[Cta],Tabla5[Cuenta],Tabla_Diario[D/H],"D") -> 0 | E178: =SUMIFS(Tabla_Diario[Importe],Tabla_Diario[Cta],Tabla5[Cuenta],Tabla_Diario[D/H],"H") -> 0 | F178: =(Tabla5[[#This Row],[Debe]]-Tabla5[[#This Row],[Haber]])*Tabla5[[#This Row],[Multiplicador]] -> 0
A179: 3940 | B179: -1 | C179: ABII | D179: =SUMIFS(Tabla_Diario[Importe],Tabla_Diario[Cta],Tabla5[Cuenta],Tabla_Diario[D/H],"D") -> 0 | E179: =SUMIFS(Tabla_Diario[Importe],Tabla_Diario[Cta],Tabla5[Cuenta],Tabla_Diario[D/H],"H") -> 0 | F179: =(Tabla5[[#This Row],[Debe]]-Tabla5[[#This Row],[Haber]])*Tabla5[[#This Row],[Multiplicador]] -> 0
A180: 3950 | B180: -1 | C180: ABII | D180: =SUMIFS(Tabla_Diario[Importe],Tabla_Diario[Cta],Tabla5[Cuenta],Tabla_Diario[D/H],"D") -> 0 | E180: =SUMIFS(Tabla_Diario[Importe],Tabla_Diario[Cta],Tabla5[Cuenta],Tabla_Diario[D/H],"H") -> 0 | F180: =(Tabla5[[#This Row],[Debe]]-Tabla5[[#This Row],[Haber]])*Tabla5[[#This Row],[Multiplicador]] -> 0
A181: 3960 | B181: -1 | C181: ABII | D181: =SUMIFS(Tabla_Diario[Importe],Tabla_Diario[Cta],Tabla5[Cuenta],Tabla_Diario[D/H],"D") -> 0 | E181: =SUMIFS(Tabla_Diario[Importe],Tabla_Diario[Cta],Tabla5[Cuenta],Tabla_Diario[D/H],"H") -> 0 | F181: =(Tabla5[[#This Row],[Debe]]-Tabla5[[#This Row],[Haber]])*Tabla5[[#This Row],[Multiplicador]] -> 0
A182: 4000 | B182: -1 | C182: PCV1 | D182: =SUMIFS(Tabla_Diario[Importe],Tabla_Diario[Cta],Tabla5[Cuenta],Tabla_Diario[D/H],"D") -> 0 | E182: =SUMIFS(Tabla_Diario[Importe],Tabla_Diario[Cta],Tabla5[Cuenta],Tabla_Diario[D/H],"H") -> 5000 | F182: =(Tabla5[[#This Row],[Debe]]-Tabla5[[#This Row],[Haber]])*Tabla5[[#This Row],[Multiplicador]] -> 5000
A183: 4010 | B183: -1 | C183: PCV1 | D183: =SUMIFS(Tabla_Diario[Importe],Tabla_Diario[Cta],Tabla5[Cuenta],Tabla_Diario[D/H],"D") -> 0 | E183: =SUMIFS(Tabla_Diario[Importe],Tabla_Diario[Cta],Tabla5[Cuenta],Tabla_Diario[D/H],"H") -> 0 | F183: =(Tabla5[[#This Row],[Debe]]-Tabla5[[#This Row],[Haber]])*Tabla5[[#This Row],[Multiplicador]] -> 0
A184: 4030 | B184: -1 | C184: PCV1 | D184: =SUMIFS(Tabla_Diario[Importe],Tabla_Diario[Cta],Tabla5[Cuenta],Tabla_Diario[D/H],"D") -> 0 | E184: =SUMIFS(Tabla_Diario[Importe],Tabla_Diario[Cta],Tabla5[Cuenta],Tabla_Diario[D/H],"H") -> 0 | F184: =(Tabla5[[#This Row],[Debe]]-Tabla5[[#This Row],[Haber]])*Tabla5[[#This Row],[Multiplicador]] -> 0
A185: 4040 | B185: -1 | C185: PCV1 | D185: =SUMIFS(Tabla_Diario[Importe],Tabla_Diario[Cta],Tabla5[Cuenta],Tabla_Diario[D/H],"D") -> 0 | E185: =SUMIFS(Tabla_Diario[Importe],Tabla_Diario[Cta],Tabla5[Cuenta],Tabla_Diario[D/H],"H") -> 0 | F185: =(Tabla5[[#This Row],[Debe]]-Tabla5[[#This Row],[Haber]])*Tabla5[[#This Row],[Multiplicador]] -> 0
A186: 4050 | B186: -1 | C186: PCV1 | D186: =SUMIFS(Tabla_Diario[Importe],Tabla_Diario[Cta],Tabla5[Cuenta],Tabla_Diario[D/H],"D") -> 0 | E186: =SUMIFS(Tabla_Diario[Importe],Tabla_Diario[Cta],Tabla5[Cuenta],Tabla_Diario[D/H],"H") -> 0 | F186: =(Tabla5[[#This Row],[Debe]]-Tabla5[[#This Row],[Haber]])*Tabla5[[#This Row],[Multiplicador]] -> 0
A187: 4060 | B187: 1 | C187: PCV1 | D187: =SUMIFS(Tabla_Diario[Importe],Tabla_Diario[Cta],Tabla5[Cuenta],Tabla_Diario[D/H],"D") -> 0 | E187: =SUMIFS(Tabla_Diario[Importe],Tabla_Diario[Cta],Tabla5[Cuenta],Tabla_Diario[D/H],"H") -> 0 | F187: =(Tabla5[[#This Row],[Debe]]-Tabla5[[#This Row],[Haber]])*Tabla5[[#This Row],[Multiplicador]] -> 0
A188: 4070 | B188: 1 | C188: ABII | D188: =SUMIFS(Tabla_Diario[Importe],Tabla_Diario[Cta],Tabla5[Cuenta],Tabla_Diario[D/H],"D") -> 0 | E188: =SUMIFS(Tabla_Diario[Importe],Tabla_Diario[Cta],Tabla5[Cuenta],Tabla_Diario[D/H],"H") -> 0 | F188: =(Tabla5[[#This Row],[Debe]]-Tabla5[[#This Row],[Haber]])*Tabla5[[#This Row],[Multiplicador]] -> 0
A189: 4100 | B189: -1 | C189: PCV2 | D189: =SUMIFS(Tabla_Diario[Importe],Tabla_Diario[Cta],Tabla5[Cuenta],Tabla_Diario[D/H],"D") -> 0 | E189: =SUMIFS(Tabla_Diario[Importe],Tabla_Diario[Cta],Tabla5[Cuenta],Tabla_Diario[D/H],"H") -> 0 | F189: =(Tabla5[[#This Row],[Debe]]-Tabla5[[#This Row],[Haber]])*Tabla5[[#This Row],[Multiplicador]] -> 0
A190: 4110 | B190: -1 | C190: PCV2 | D190: =SUMIFS(Tabla_Diario[Importe],Tabla_Diario[Cta],Tabla5[Cuenta],Tabla_Diario[D/H],"D") -> 0 | E190: =SUMIFS(Tabla_Diario[Importe],Tabla_Diario[Cta],Tabla5[Cuenta],Tabla_Diario[D/H],"H") -> 3600 | F190: =(Tabla5[[#This Row],[Debe]]-Tabla5[[#This Row],[Haber]])*Tabla5[[#This Row],[Multiplicador]] -> 3600
A191: 4190 | B191: -1 | C191: PCV2 | D191: =SUMIFS(Tabla_Diario[Importe],Tabla_Diario[Cta],Tabla5[Cuenta],Tabla_Diario[D/H],"D") -> 0 | E191: =SUMIFS(Tabla_Diario[Importe],Tabla_Diario[Cta],Tabla5[Cuenta],Tabla_Diario[D/H],"H") -> 0 | F191: =(Tabla5[[#This Row],[Debe]]-Tabla5[[#This Row],[Haber]])*Tabla5[[#This Row],[Multiplicador]] -> 0
A192: 4300 | B192: 1 | C192: ABIII1 | D192: =SUMIFS(Tabla_Diario[Importe],Tabla_Diario[Cta],Tabla5[Cuenta],Tabla_Diario[D/H],"D") -> 1500 | E192: =SUMIFS(Tabla_Diario[Importe],Tabla_Diario[Cta],Tabla5[Cuenta],Tabla_Diario[D/H],"H") -> 1500 | F192: =(Tabla5[[#This Row],[Debe]]-Tabla5[[#This Row],[Haber]])*Tabla5[[#This Row],[Multiplicador]] -> 0
A193: 4310 | B193: 1 | C193: ABIII1 | D193: =SUMIFS(Tabla_Diario[Importe],Tabla_Diario[Cta],Tabla5[Cuenta],Tabla_Diario[D/H],"D") -> 3500 | E193: =SUMIFS(Tabla_Diario[Importe],Tabla_Diario[Cta],Tabla5[Cuenta],Tabla_Diario[D/H],"H") -> 0 | F193: =(Tabla5[[#This Row],[Debe]]-Tabla5[[#This Row],[Haber]])*Tabla5[[#This Row],[Multiplicador]] -> 3500
A194: 4320 | B194: 1 | C194: ABIII1 | D194: =SUMIFS(Tabla_Diario[Importe],Tabla_Diario[Cta],Tabla5[Cuenta],Tabla_Diario[D/H],"D") -> 0 | E194: =SUMIFS(Tabla_Diario[Importe],Tabla_Diario[Cta],Tabla5[Cuenta],Tabla_Diario[D/H],"H") -> 0 | F194: =(Tabla5[[#This Row],[Debe]]-Tabla5[[#This Row],[Haber]])*Tabla5[[#This Row],[Multiplicador]] -> 0
A195: 4330 | B195: 1 | C195: ABIII1 | D195: =SUMIFS(Tabla_Diario[Importe],Tabla_Diario[Cta],Tabla5[Cuenta],Tabla_Diario[D/H],"D") -> 0 | E195: =SUMIFS(Tabla_Diario[Importe],Tabla_Diario[Cta],Tabla5[Cuenta],Tabla_Diario[D/H],"H") -> 0 | F195: =(Tabla5[[#This Row],[Debe]]-Tabla5[[#This Row],[Haber]])*Tabla5[[#This Row],[Multiplicador]] -> 0
A196: 4340 | B196: 1 | C196: ABIII1 | D196: =SUMIFS(Tabla_Diario[Importe],Tabla_Diario[Cta],Tabla5[Cuenta],Tabla_Diario[D/H],"D") -> 0 | E196: =SUMIFS(Tabla_Diario[Importe],Tabla_Diario[Cta],Tabla5[Cuenta],Tabla_Diario[D/H],"H") -> 0 | F196: =(Tabla5[[#This Row],[Debe]]-Tabla5[[#This Row],[Haber]])*Tabla5[[#This Row],[Multiplicador]] -> 0
A197: 4350 | B197: 1 | C197: ABIII1 | D197: =SUMIFS(Tabla_Diario[Importe],Tabla_Diario[Cta],Tabla5[Cuenta],Tabla_Diario[D/H],"D") -> 0 | E197: =SUMIFS(Tabla_Diario[Importe],Tabla_Diario[Cta],Tabla5[Cuenta],Tabla_Diario[D/H],"H") -> 0 | F197: =(Tabla5[[#This Row],[Debe]]-Tabla5[[#This Row],[Haber]])*Tabla5[[#This Row],[Multiplicador]] -> 0
A198: 4360 | B198: 1 | C198: ABIII1 | D198: =SUMIFS(Tabla_Diario[Importe],Tabla_Diario[Cta],Tabla5[Cuenta],Tabla_Diario[D/H],"D") -> 0 | E198: =SUMIFS(Tabla_Diario[Importe],Tabla_Diario[Cta],Tabla5[Cuenta],Tabla_Diario[D/H],"H") -> 0 | F198: =(Tabla5[[#This Row],[Debe]]-Tabla5[[#This Row],[Haber]])*Tabla5[[#This Row],[Multiplicador]] -> 0
A199: 4370 | B199: -1 | C199: ABIII1 | D199: =SUMIFS(Tabla_Diario[Importe],Tabla_Diario[Cta],Tabla5[Cuenta],Tabla_Diario[D/H],"D") -> 0 | E199: =SUMIFS(Tabla_Diario[Importe],Tabla_Diario[Cta],Tabla5[Cuenta],Tabla_Diario[D/H],"H") -> 0 | F199: =(Tabla5[[#This Row],[Debe]]-Tabla5[[#This Row],[Haber]])*Tabla5[[#This Row],[Multiplicador]] -> 0
A200: 4380 | B200: -1 | C200: PCV2 | D200: =SUMIFS(Tabla_Diario[Importe],Tabla_Diario[Cta],Tabla5[Cuenta],Tabla_Diario[D/H],"D") -> 0 | E200: =SUMIFS(Tabla_Diario[Importe],Tabla_Diario[Cta],Tabla5[Cuenta],Tabla_Diario[D/H],"H") -> 0 | F200: =(Tabla5[[#This Row],[Debe]]-Tabla5[[#This Row],[Haber]])*Tabla5[[#This Row],[Multiplicador]] -> 0
... 260 more rows

Sheet Solucion (hidden)
A1: Nº As | B1: Importe | C1: Cta | D1: Descripción | E1: D/H | F1: Fecha | G1: Observaciones | H1: Codigo | I1: Codigo 2 | P1: joseignacioicod@gmail.com
A2: 0 | B2: 0 | C2: 0 | D2: 0 | E2: D | F2: 42005 | G2: Apertura | H2: 0-0 | I2: 0-0-D-0 | P2: Sociedad Blue SL
A3: 1 | B3: 12000 | C3: 5700 | D3: Caja, euros | E3: D | F3: 42006 | G3: creacion de la sociedad | H3: 5700-Caja, euros | I3: 1-5700-D-12000 | P3: 42276.68581
A4: 1 | B4: 12000 | C4: 1000 | D4: Capital social | E4: H | F4: 42006 | G4: creacion de la sociedad | H4: 1000-Capital social | I4: 1-1000-H-12000 | P4: 6858
A5: 2 | B5: 9500 | C5: 5720 | D5: Bancos e instituciones de crédito c/c vista, euros | E5: D | F5: 42014 | G5: N/I:1234 | H5: 5720-Bancos e instituciones de crédito c/c vista, euros | I5: 2-5720-D-9500
A6: 2 | B6: 9500 | C6: 5700 | D6: Caja, euros | E6: H | F6: 42014 | G6: N/I:1234 | H6: 5700-Caja, euros | I6: 2-5700-H-9500
A7: 3 | B7: 3000 | C7: 6000 | D7: Compras de mercaderías | E7: D | F7: 42019 | G7: S/F:1234-B | H7: 6000-Compras de mercaderías | I7: 3-6000-D-3000
A8: 3 | B8: 3000 | C8: 4000 | D8: Proveedores | E8: H | F8: 42019 | G8: S/F:1234-B | H8: 4000-Proveedores | I8: 3-4000-H-3000
A9: 4 | B9: 1500 | C9: 4300 | D9: Clientes | E9: D | F9: 42019 | G9: N/F nº: 1-A | H9: 4300-Clientes | I9: 4-4300-D-1500
A10: 4 | B10: 1500 | C10: 7000 | D10: Ventas de mercaderías | E10: H | F10: 42019 | G10: N/F nº: 1-A | H10: 7000-Ventas de mercaderías | I10: 4-7000-H-1500
A11: 5 | B11: 1000 | C11: 6400 | D11: Sueldos y salarios | E11: D | F11: 42070 | G11: N/T nº:3434 | H11: 6400-Sueldos y salarios | I11: 5-6400-D-1000
A12: 5 | B12: 1000 | C12: 5720 | D12: Bancos e instituciones de crédito c/c vista, euros | E12: H | F12: 42070 | G12: N/T nº:3434 | H12: 5720-Bancos e instituciones de crédito c/c vista, euros | I12: 5-5720-H-1000
A13: 6 | B13: 450 | C13: 6420 | D13: Seguridad Social a cargo de la empresa | E13: D | F13: 42097 | G13: N/T nº:3435 | H13: 6420-Seguridad Social a cargo de la empresa | I13: 6-6420-D-450
A14: 6 | B14: 450 | C14: 5720 | D14: Bancos e instituciones de crédito c/c vista, euros | E14: H | F14: 42097 | G14: N/T nº:3435 | H14: 5720-Bancos e instituciones de crédito c/c vista, euros | I14: 6-5720-H-450
A15: 7 | B15: 600 | C15: 2160 | D15: Mobiliario | E15: D | F15: 42149 | G15: S/F nº:3432 | H15: 2160-Mobiliario | I15: 7-2160-D-600
A16: 7 | B16: 600 | C16: 5700 | D16: Caja, euros | E16: H | F16: 42149 | G16: S/F nº:3432 | H16: 5700-Caja, euros | I16: 7-5700-H-600
A17: 8 | B17: 750 | C17: 6210 | D17: Arrendamientos y cánones | E17: D | F17: 42166 | G17: S/R Nº:2545 | H17: 6210-Arrendamientos y cánones | I17: 8-6210-D-750
A18: 8 | B18: 750 | C18: 5700 | D18: Caja, euros | E18: H | F18: 42166 | G18: S/R Nº:2545 | H18: 5700-Caja, euros | I18: 8-5700-H-750
A19: 9 | B19: 100 | C19: 6280 | D19: Suministros | E19: D | F19: 42175 | G19: pago suministros varios | H19: 6280-Suministros | I19: 9-6280-D-100
A20: 9 | B20: 100 | C20: 5700 | D20: Caja, euros | E20: H | F20: 42175 | G20: pago suministros varios | H20: 5700-Caja, euros | I20: 9-5700-H-100
A21: 10 | B21: 4000 | C21: 2180 | D21: Elementos de transporte | E21: D | F21: 42175 | G21: S/F nº:53456 | H21: 2180-Elementos de transporte | I21: 10-2180-D-4000
A22: 10 | B22: 3600 | C22: 4110 | D22: Acreedores, efectos comerciales a pagar | E22: H | F22: 42175 | G22: S/F nº:53456 | H22: 4110-Acreedores, efectos comerciales a pagar | I22: 10-4110-H-3600
A23: 10 | B23: 400 | C23: 5700 | D23: Caja, euros | E23: H | F23: 42175 | G23: S/F nº:53456 | H23: 5700-Caja, euros | I23: 10-5700-H-400
A24: 11 | B24: 1500 | C24: 4310 | D24: Clientes, efectos comerciales a cobrar | E24: D | F24: 42193 | G24: N/F nº 2-A | H24: 4310-Clientes, efectos comerciales a cobrar | I24: 11-4310-D-1500
A25: 11 | B25: 1500 | C25: 7000 | D25: Ventas de mercaderías | E25: H | F25: 42193 | G25: N/F nº 2-A | H25: 7000-Ventas de mercaderías | I25: 11-7000-H-1500
A26: 12 | B26: 350 | C26: 6310 | D26: Otros tributos | E26: D | F26: 42236 | G26: pago impuestos locales | H26: 6310-Otros tributos | I26: 12-6310-D-350
A27: 12 | B27: 350 | C27: 5700 | D27: Caja, euros | E27: H | F27: 42236 | G27: pago impuestos locales | H27: 5700-Caja, euros | I27: 12-5700-H-350
A28: 13 | B28: 2000 | C28: 6000 | D28: Compras de mercaderías | E28: D | F28: 42262 | G28: S/F nº:965B | H28: 6000-Compras de mercaderías | I28: 13-6000-D-2000
A29: 13 | B29: 2000 | C29: 4000 | D29: Proveedores | E29: H | F29: 42262 | G29: S/F nº:965B | H29: 4000-Proveedores | I29: 13-4000-H-2000
A30: 14 | B30: 100 | C30: 6230 | D30: Servicios de profesionales independientes | E30: D | F30: 42302 | G30: N/R nº: 1 | H30: 6230-Servicios de profesionales independientes | I30: 14-6230-D-100
A31: 14 | B31: 100 | C31: 5700 | D31: Caja, euros | E31: H | F31: 42302 | G31: N/R nº: 1 | H31: 5700-Caja, euros | I31: 14-5700-H-100
A32: 15 | B32: 1500 | C32: 5700 | D32: Caja, euros | E32: D | F32: 42330 | G32: N/R nº: 2 | H32: 5700-Caja, euros | I32: 15-5700-D-1500
A33: 15 | B33: 1500 | C33: 4300 | D33: Clientes | E33: H | F33: 42330 | G33: N/R nº:2 | H33: 4300-Clientes | I33: 15-4300-H-1500
A34: 16 | B34: 2000 | C34: 4310 | D34: Clientes, efectos comerciales a cobrar | E34: D | F34: 42339 | G34: N/F: nº 3-A | H34: 4310-Clientes, efectos comerciales a cobrar | I34: 16-4310-D-2000
A35: 16 | B35: 2000 | C35: 7000 | D35: Ventas de mercaderías | E35: H | F35: 42339 | G35: N/F: nº 3-A | H35: 7000-Ventas de mercaderías | I35: 16-7000-H-2000
A36: 17 | B36: 4000 | C36: 6710 | D36: Pérdidas procedentes del inmovilizado material | E36: D | F36: 42353 | G36: Accidente furgoneta, siniestro total | H36: 6710-Pérdidas procedentes del inmovilizado material | I36: 17-6710-D-4000
A37: 17 | B37: 4000 | C37: 2180 | D37: Elementos de transporte | E37: H | F37: 42353 | G37: Accidente furgoneta, siniestro total | H37: 2180-Elementos de transporte | I37: 17-2180-H-4000
A38: 18 | B38: 1500 | C38: 3000 | D38: Mercaderías A | E38: D | F38: 42353 | G38: Regularización de Existencias | H38: 3000-Mercaderías A | I38: 18-3000-D-1500
A39: 18 | B39: 1500 | C39: 6100 | D39: Variación de existencias de mercaderías | E39: H | F39: 42353 | G39: Regularización de Existencias | H39: 6100-Variación de existencias de mercaderías | I39: 18-6100-H-1500
